Workbook

Sheet Instructions
D6: Instructions:
D8: 1. Insert YTD actual data in yellow shaded area of YTD_Actual_Data sheet for each tax type and tax collectorate
D9: 2. Select charts for Page 1 using cell B2 to B5 and for Page 2 using cell B78 to B85 in Charts sheet
D10: 3. Pick a historical year other than previous year using cell B10 to compare against
D11: 4. Enter the flagging level in cell B11 to indicate if actual is lower than the target by entered level.
D12: 5. Enter the date in cell B12 of Charts sheet at which the actual data is extracted from either AFMIS or RMIS.
D13: 6. Finally, enter the source of data (AFMIS or RMIS)
D15: Remarks: This report should be compiled using data from both AFMIS and RMIS, and the source should be identified in cell B13 of Charts sheet.

Sheet FY1399_YTD_Actual
A1: =Targets!C118 -> Actual | B1: M1 | C1: M2 | D1: M3 | E1: M4 | F1: M5 | G1: M6 | H1: M7 | I1: M8 | J1: M9 | K1: M10 | L1: M11 | M1: M12 | N1: Total
A3: =Targets!B3 -> Customs Department | B3: =SUM(B4:B9) -> 5551.316933 | C3: =SUM(C4:C9) -> 6482.798998 | D3: =SUM(D4:D9) -> 5425.073312 | E3: =SUM(E4:E9) -> 2776.852754 | F3: =SUM(F4:F9) -> 1130.495807 | G3: =SUM(G4:G9) -> 0 | H3: =SUM(H4:H9) -> 0 | I3: =SUM(I4:I9) -> 0 | J3: =SUM(J4:J9) -> 0 | K3: =SUM(K4:K9) -> 0 | L3: =SUM(L4:L9) -> 0 | M3: =SUM(M4:M9) -> 0 | N3: =SUM(N4:N9) -> 21366.5378
A4: =Targets!B4 -> Herat Customs Office | B4: 1014.264063 | C4: 1248.346791 | D4: 1262.16223 | E4: 614.619094 | F4: 239.728462 | G4: 0 | N4: =SUM(B4:M4) -> 4379.12064
A5: =Targets!B5 -> Nangarhar Customs Office | B5: 1099.89838 | C5: 1745.768924 | D5: 1251.9192 | E5: 80.464446 | F5: 69.360511 | N5: 4247.411461
A6: =Targets!B6 -> Balkh Customs Office | B6: 1121.217111 | C6: 857.827388 | D6: 875.704863 | E6: 1051.230011 | F6: 358.338396 | N6: 4264.317769
A7: =Targets!B7 -> Kandahar Customs Office | B7: 802.167706 | C7: 1045.150478 | D7: 549.893363 | E7: 109.538639 | F7: 121.95689 | N7: 2628.707076
A8: =Targets!B8 -> Nimroz Customs Office | B8: 479.916473 | C8: 502.502494 | D8: 426.876086 | E8: 301.632259 | F8: 149.985325 | N8: 1860.912637
A9: =Targets!B9 -> Other Customs Offices | B9: 1033.8532 | C9: 1083.202923 | D9: 1058.51757 | E9: 619.368305 | F9: 191.126223 | N9: 3986.068221
A10: =Targets!B10 -> Afghanistan Revenue Department | B10: =SUM(B11:B15) -> 6257.329698 | C10: =SUM(C11:C15) -> 6177.412871 | D10: 7512.851577 | E10: 3698.268393 | F10: 269.2855176 | G10: 0 | H10: 0 | I10: 0 | J10: 0 | K10: 0 | L10: 0 | M10: 0 | N10: 23915.14806
A11: =Targets!B11 -> Mustofiats | B11: 1252.820145 | C11: 1569.219783 | D11: 1418.445547 | E11: 788.489019 | F11: 100.973151 | N11: 5129.947645
A12: =Targets!B12 -> LTO | B12: 2143.597224 | C12: 1277.948313 | D12: 2177.542371 | E12: 1700.045218 | F12: 3.33154724 | N12: 7302.464672
A13: =Targets!B13 -> MTO | B13: 950.9558282 | C13: 1118.014286 | D13: 1294.890603 | E13: 1024.720891 | F13: 164.9808194 | N13: 4553.562427
A14: =Targets!B14 -> STO | B14: 203.287436 | C14: 184.758696 | D14: 534.974656 | E14: 170.86934 | F14: 0 | N14: 1093.890128
A15: =Targets!B15 -> Ministries | B15: 1706.669065 | C15: 2027.471793 | D15: 2086.998401 | E15: 14.14392472 | F15: 0 | N15: 5835.283183
A16: =Targets!B16 -> Total Revenues | B16: =B10+B3 -> 11808.64663 | C16: =C10+C3 -> 12660.21187 | D16: =D10+D3 -> 12937.92489 | E16: =E10+E3 -> 6475.121147 | F16: =F10+F3 -> 1399.781325 | G16: =G10+G3 -> 0 | H16: 0 | I16: 0 | J16: 0 | K16: 0 | L16: 0 | M16: 0 | N16: 45281.68586
A17: =Targets!B17 -> Tax Revenues | B17: 6164.532237 | C17: 5762.132658 | D17: 6844.580727 | E17: 3129.461929 | F17: 741.2869176 | N17: =SUM(B17:M17) -> 22641.99447
A18: =Targets!B18 -> Customs Revenues | B18: 2398.667029 | C18: 2966.028115 | D18: 2534.474049 | E18: 1160.563017 | F18: 487.751443 | N18: =SUM(B18:M18) -> 9547.483653
A19: =Targets!B19 -> Non-tax Revenues | B19: 3245.447365 | C19: 3932.051096 | D19: 3558.870113 | E19: 2185.096201 | F19: 170.742964 | N19: =SUM(B19:M19) -> 13092.20774
A20: =Targets!B20 -> Total Revenues | B20: =SUM(B17:B19) -> 11808.64663 | C20: =SUM(C17:C19) -> 12660.21187 | D20: 12937.92489 | E20: 6475.121147 | F20: 1399.781325 | G20: =SUM(G17:G19) -> 0 | H20: 0 | I20: 0 | J20: 0 | K20: 0 | L20: 0 | M20: 0 | N20: =SUM(B20:M20) -> 45281.68586 | Q20: =N20+O20 -> 45281.68586
A22: Check | B22: =B16-B20 -> 0 | C22: =C16-C20 -> 0 | D22: =D16-D20 -> 0 | E22: 0 | F22: 0 | G22: 0 | H22: 0 | I22: 0 | J22: 0 | K22: 0 | L22: 0 | M22: 0 | N22: =N16-N20 -> 0
A24: AFMIS | B24: =B1 -> M1 | C24: =C1 -> M2 | D24: M3 | E24: M4 | F24: M5 | G24: M6 | H24: M7 | I24: M8 | J24: M9 | K24: M10 | L24: M11 | M24: M12
A25: Total Revenues | B25: 11770 | C25: 12810 | D25: 13780 | E25: 22220 | F25: 1750 | N25: =SUM(B25:M25) -> 62330 | P25: =IF(B25=0,#N/A,(SUM($B$25:B25))) -> 11770 | Q25: =IF(C25=0,#N/A,(SUM($B$25:C25))) -> 24580 | R25: =IF(D25=0,#N/A,(SUM($B$25:D25))) -> 38360 | S25: =IF(E25=0,#N/A,(SUM($B$25:E25))) -> 60580 | T25: =IF(F25=0,#N/A,(SUM($B$25:F25))) -> 62330 | U25: =IF(G25=0,#N/A,(SUM($B$25:G25))) ->  | V25: =IF(H25=0,#N/A,(SUM($B$25:H25))) ->  | W25: =IF(I25=0,#N/A,(SUM($B$25:I25))) ->  | X25: =IF(J25=0,#N/A,(SUM($B$25:J25))) ->  | Y25: =IF(K25=0,#N/A,(SUM($B$25:K25))) ->  | Z25: =IF(L25=0,#N/A,(SUM($B$25:L25))) ->  | AA25: =IF(M25=0,#N/A,(SUM($B$25:M25))) -> 
A28: Note:

Sheet Charts
A1: Select charts for page 1: | D1: Ministry of Finance | AE1: M1 | AF1: M2 | AG1: M3 | AH1: M4 | AI1: M5 | AJ1: M6 | AK1: M7 | AL1: M8 | AM1: M9 | AN1: M10 | AO1: M11 | AP1: M12
A2: Figure 1: | B2: Total Revenues | C2: =A2&" "&B2 -> Figure 1: Total Revenues | AC2: =A2 -> Figure 1: | AD2: =FY1399_YTD_Actual!$A$1 -> Actual | AE2: =IF(INDEX(FY1399_YTD_Actual!B$3:B$19,MATCH($B$2,FY1399_YTD_Actual!$A$3:$A$19,0))=0,#N/A,INDEX(FY1399_YTD_Actual!B$3:B$19,MATCH($B$2,FY1399_YTD_Actual!$A$3:$A$19,0))) -> 11808.64663 | AF2: =IF(INDEX(FY1399_YTD_Actual!C$3:C$19,MATCH($B$2,FY1399_YTD_Actual!$A$3:$A$19,0))=0,#N/A,INDEX(FY1399_YTD_Actual!C$3:C$19,MATCH($B$2,FY1399_YTD_Actual!$A$3:$A$19,0))) -> 12660.21187 | AG2: =IF(INDEX(FY1399_YTD_Actual!D$3:D$19,MATCH($B$2,FY1399_YTD_Actual!$A$3:$A$19,0))=0,#N/A,INDEX(FY1399_YTD_Actual!D$3:D$19,MATCH($B$2,FY1399_YTD_Actual!$A$3:$A$19,0))) -> 12937.92489 | AH2: =IF(INDEX(FY1399_YTD_Actual!E$3:E$19,MATCH($B$2,FY1399_YTD_Actual!$A$3:$A$19,0))=0,#N/A,INDEX(FY1399_YTD_Actual!E$3:E$19,MATCH($B$2,FY1399_YTD_Actual!$A$3:$A$19,0))) -> 6475.121147 | AI2: =IF(INDEX(FY1399_YTD_Actual!F$3:F$19,MATCH($B$2,FY1399_YTD_Actual!$A$3:$A$19,0))=0,#N/A,INDEX(FY1399_YTD_Actual!F$3:F$19,MATCH($B$2,FY1399_YTD_Actual!$A$3:$A$19,0))) -> 1399.781325 | AJ2: =IF(INDEX(FY1399_YTD_Actual!G$3:G$19,MATCH($B$2,FY1399_YTD_Actual!$A$3:$A$19,0))=0,#N/A,INDEX(FY1399_YTD_Actual!G$3:G$19,MATCH($B$2,FY1399_YTD_Actual!$A$3:$A$19,0))) ->  | AK2: =IF(INDEX(FY1399_YTD_Actual!H$3:H$19,MATCH($B$2,FY1399_YTD_Actual!$A$3:$A$19,0))=0,#N/A,INDEX(FY1399_YTD_Actual!H$3:H$19,MATCH($B$2,FY1399_YTD_Actual!$A$3:$A$19,0))) ->  | AL2: =IF(INDEX(FY1399_YTD_Actual!I$3:I$19,MATCH($B$2,FY1399_YTD_Actual!$A$3:$A$19,0))=0,#N/A,INDEX(FY1399_YTD_Actual!I$3:I$19,MATCH($B$2,FY1399_YTD_Actual!$A$3:$A$19,0))) ->  | AM2: =IF(INDEX(FY1399_YTD_Actual!J$3:J$19,MATCH($B$2,FY1399_YTD_Actual!$A$3:$A$19,0))=0,#N/A,INDEX(FY1399_YTD_Actual!J$3:J$19,MATCH($B$2,FY1399_YTD_Actual!$A$3:$A$19,0))) ->  | AN2: =IF(INDEX(FY1399_YTD_Actual!K$3:K$19,MATCH($B$2,FY1399_YTD_Actual!$A$3:$A$19,0))=0,#N/A,INDEX(FY1399_YTD_Actual!K$3:K$19,MATCH($B$2,FY1399_YTD_Actual!$A$3:$A$19,0))) ->  | AO2: =IF(INDEX(FY1399_YTD_Actual!L$3:L$19,MATCH($B$2,FY1399_YTD_Actual!$A$3:$A$19,0))=0,#N/A,INDEX(FY1399_YTD_Actual!L$3:L$19,MATCH($B$2,FY1399_YTD_Actual!$A$3:$A$19,0))) ->  | AP2: =IF(INDEX(FY1399_YTD_Actual!M$3:M$19,MATCH($B$2,FY1399_YTD_Actual!$A$3:$A$19,0))=0,#N/A,INDEX(FY1399_YTD_Actual!M$3:M$19,MATCH($B$2,FY1399_YTD_Actual!$A$3:$A$19,0))) -> 
A3: Figure 2: | B3: Tax Revenues | C3: =A3&" "&B3 -> Figure 2: Tax Revenues | AC3: =AD3&$B$2 -> 2019 TargetTotal Revenues | AD3: =Targets!$C$115 -> 2019 Target | AE3: =INDEX(Targets!C$3:C$41,MATCH(Charts!$AC3,Targets!$A$3:$A$41,0)) ->  | AF3: =INDEX(Targets!D$3:D$41,MATCH(Charts!$AC3,Targets!$A$3:$A$41,0)) ->  | AG3: =INDEX(Targets!E$3:E$41,MATCH(Charts!$AC3,Targets!$A$3:$A$41,0)) ->  | AH3: =INDEX(Targets!F$3:F$41,MATCH(Charts!$AC3,Targets!$A$3:$A$41,0)) ->  | AI3: =INDEX(Targets!G$3:G$41,MATCH(Charts!$AC3,Targets!$A$3:$A$41,0)) ->  | AJ3: =INDEX(Targets!H$3:H$41,MATCH(Charts!$AC3,Targets!$A$3:$A$41,0)) ->  | AK3: =INDEX(Targets!I$3:I$41,MATCH(Charts!$AC3,Targets!$A$3:$A$41,0)) ->  | AL3: =INDEX(Targets!J$3:J$41,MATCH(Charts!$AC3,Targets!$A$3:$A$41,0)) ->  | AM3: =INDEX(Targets!K$3:K$41,MATCH(Charts!$AC3,Targets!$A$3:$A$41,0)) ->  | AN3: =INDEX(Targets!L$3:L$41,MATCH(Charts!$AC3,Targets!$A$3:$A$41,0)) ->  | AO3: =INDEX(Targets!M$3:M$41,MATCH(Charts!$AC3,Targets!$A$3:$A$41,0)) ->  | AP3: =INDEX(Targets!N$3:N$41,MATCH(Charts!$AC3,Targets!$A$3:$A$41,0)) -> 
A4: Figure 3: | B4: Customs Revenues | C4: Figure 3: Customs Revenues | D4: YTD Revenue | AB4: 1397 | AC4: =AD4&$B$2 -> Previous Year performanceTotal Revenues | AD4: =Targets!$C$116 -> Previous Year performance | AE4: =INDEX(Targets!C$3:C$41,MATCH(Charts!$AC4,Targets!$A$3:$A$41,0)) -> 14436.95751 | AF4: =INDEX(Targets!D$3:D$41,MATCH(Charts!$AC4,Targets!$A$3:$A$41,0)) -> 13504.98002 | AG4: =INDEX(Targets!E$3:E$41,MATCH(Charts!$AC4,Targets!$A$3:$A$41,0)) -> 14225.5148 | AH4: =INDEX(Targets!F$3:F$41,MATCH(Charts!$AC4,Targets!$A$3:$A$41,0)) -> 15525.0627 | AI4: =INDEX(Targets!G$3:G$41,MATCH(Charts!$AC4,Targets!$A$3:$A$41,0)) -> 22166.7083 | AJ4: =INDEX(Targets!H$3:H$41,MATCH(Charts!$AC4,Targets!$A$3:$A$41,0)) -> 13319.77922 | AK4: =INDEX(Targets!I$3:I$41,MATCH(Charts!$AC4,Targets!$A$3:$A$41,0)) -> 15854.54395 | AL4: =INDEX(Targets!J$3:J$41,MATCH(Charts!$AC4,Targets!$A$3:$A$41,0)) -> 11317.19183 | AM4: =INDEX(Targets!K$3:K$41,MATCH(Charts!$AC4,Targets!$A$3:$A$41,0)) -> 15137.34904 | AN4: =INDEX(Targets!L$3:L$41,MATCH(Charts!$AC4,Targets!$A$3:$A$41,0)) -> 19806.26174 | AO4: =INDEX(Targets!M$3:M$41,MATCH(Charts!$AC4,Targets!$A$3:$A$41,0)) -> 15073.94355 | AP4: =INDEX(Targets!N$3:N$41,MATCH(Charts!$AC4,Targets!$A$3:$A$41,0)) -> 36991.06444
A5: Figure 4: | B5: Non-tax Revenues | C5: Figure 4: Non-tax Revenues | D5: Date: | E5: =B12 -> 2020-05-02 | Q5: Source: | R5: RMIS | AD5: Cummulative
C6: =#REF!&" "&#REF! ->  | AD6: =AD2 -> Actual | AE6: 11808.64663 | AF6: =SUM($AE2:AF2) -> 24468.8585 | AG6: =SUM($AE2:AG2) -> 37406.78339 | AH6: =SUM($AE2:AH2) -> 43881.90454 | AI6: =SUM($AE2:AI2) -> 45281.68586 | AJ6: =SUM($AE2:AJ2) ->  | AK6: =SUM($AE2:AK2) ->  | AL6: =SUM($AE2:AL2) ->  | AM6: =SUM($AE2:AM2) ->  | AN6: =SUM($AE2:AN2) ->  | AO6: =SUM($AE2:AO2) ->  | AP6: =SUM($AE2:AP2) ->  | AQ6: Flag if any | AR6: =IF((1-AE6/AE7)>$B$11,AE6,#N/A) -> 
C7: =A5&" "&B5 -> Figure 4: Non-tax Revenues | AD7: 2019 Target | AF7: =SUM($AE3:AF3) ->  | AG7: =SUM($AE3:AG3) ->  | AH7: =SUM($AE3:AH3) ->  | AI7: =SUM($AE3:AI3) ->  | AJ7: =SUM($AE3:AJ3) ->  | AK7: =SUM($AE3:AK3) ->  | AL7: =SUM($AE3:AL3) ->  | AM7: =SUM($AE3:AM3) ->  | AN7: =SUM($AE3:AN3) ->  | AO7: =SUM($AE3:AO3) ->  | AP7: =SUM($AE3:AP3) ->  | AQ7: Historical Year Performance | AR7: =INDEX(Targets!Q$70:Q$109,MATCH(Charts!$AQ8,Targets!$A$70:$A$109,0)) -> 10450 | AS7: =INDEX(Targets!R$70:R$109,MATCH(Charts!$AQ8,Targets!$A$70:$A$109,0)) -> 20620 | AT7: =INDEX(Targets!S$70:S$109,MATCH(Charts!$AQ8,Targets!$A$70:$A$109,0)) -> 32249 | AU7: =INDEX(Targets!T$70:T$109,MATCH(Charts!$AQ8,Targets!$A$70:$A$109,0)) -> 45155 | AV7: =INDEX(Targets!U$70:U$109,MATCH(Charts!$AQ8,Targets!$A$70:$A$109,0)) -> 56611 | AW7: =INDEX(Targets!V$70:V$109,MATCH(Charts!$AQ8,Targets!$A$70:$A$109,0)) -> 80027 | AX7: =INDEX(Targets!W$70:W$109,MATCH(Charts!$AQ8,Targets!$A$70:$A$109,0)) -> 91418 | AY7: =INDEX(Targets!X$70:X$109,MATCH(Charts!$AQ8,Targets!$A$70:$A$109,0)) -> 104859 | AZ7: =INDEX(Targets!Y$70:Y$109,MATCH(Charts!$AQ8,Targets!$A$70:$A$109,0)) -> 114426 | BA7: =INDEX(Targets!Z$70:Z$109,MATCH(Charts!$AQ8,Targets!$A$70:$A$109,0)) -> 125355 | BB7: =INDEX(Targets!AA$70:AA$109,MATCH(Charts!$AQ8,Targets!$A$70:$A$109,0)) -> 139116 | BC7: =INDEX(Targets!AB$70:AB$109,MATCH(Charts!$AQ8,Targets!$A$70:$A$109,0)) -> 153496
C8: =#REF!&" "&#REF! ->  | AD8: Previous Year performance | AE8: 14436.95751 | AF8: =SUM($AE4:AF4) -> 27941.93753 | AG8: =SUM($AE4:AG4) -> 42167.45233 | AH8: =SUM($AE4:AH4) -> 57692.51503 | AI8: =SUM($AE4:AI4) -> 79859.22333 | AJ8: =SUM($AE4:AJ4) -> 93179.00255 | AK8: =SUM($AE4:AK4) -> 109033.5465 | AL8: =SUM($AE4:AL4) -> 120350.7383 | AM8: =SUM($AE4:AM4) -> 135488.0874 | AN8: =SUM($AE4:AN4) -> 155294.3491 | AO8: =SUM($AE4:AO4) -> 170368.2927 | AP8: =SUM($AE4:AP4) -> 207359.3571 | AQ8: =$B$10&$B$2 -> FY1395Total Revenues
AC9: =#REF! ->  | AD9: =FY1399_YTD_Actual!$A$1 -> Actual | AE9: =IF(INDEX(FY1399_YTD_Actual!B$3:B$19,MATCH($B$3,FY1399_YTD_Actual!$A$3:$A$19,0))=0,#N/A,INDEX(FY1399_YTD_Actual!B$3:B$19,MATCH($B$3,FY1399_YTD_Actual!$A$3:$A$19,0))) -> 6164.532237 | AF9: =IF(INDEX(FY1399_YTD_Actual!C$3:C$19,MATCH($B$2,FY1399_YTD_Actual!$A$3:$A$19,0))=0,#N/A,INDEX(FY1399_YTD_Actual!C$3:C$19,MATCH($B$2,FY1399_YTD_Actual!$A$3:$A$19,0))) -> 12660.21187 | AG9: =IF(INDEX(FY1399_YTD_Actual!D$3:D$19,MATCH($B$2,FY1399_YTD_Actual!$A$3:$A$19,0))=0,#N/A,INDEX(FY1399_YTD_Actual!D$3:D$19,MATCH($B$2,FY1399_YTD_Actual!$A$3:$A$19,0))) -> 12937.92489 | AH9: =IF(INDEX(FY1399_YTD_Actual!E$3:E$19,MATCH($B$2,FY1399_YTD_Actual!$A$3:$A$19,0))=0,#N/A,INDEX(FY1399_YTD_Actual!E$3:E$19,MATCH($B$2,FY1399_YTD_Actual!$A$3:$A$19,0))) -> 6475.121147 | AI9: =IF(INDEX(FY1399_YTD_Actual!F$3:F$19,MATCH($B$2,FY1399_YTD_Actual!$A$3:$A$19,0))=0,#N/A,INDEX(FY1399_YTD_Actual!F$3:F$19,MATCH($B$2,FY1399_YTD_Actual!$A$3:$A$19,0))) -> 1399.781325 | AJ9: =IF(INDEX(FY1399_YTD_Actual!G$3:G$19,MATCH($B$2,FY1399_YTD_Actual!$A$3:$A$19,0))=0,#N/A,INDEX(FY1399_YTD_Actual!G$3:G$19,MATCH($B$2,FY1399_YTD_Actual!$A$3:$A$19,0))) ->  | AK9: =IF(INDEX(FY1399_YTD_Actual!H$3:H$19,MATCH($B$2,FY1399_YTD_Actual!$A$3:$A$19,0))=0,#N/A,INDEX(FY1399_YTD_Actual!H$3:H$19,MATCH($B$2,FY1399_YTD_Actual!$A$3:$A$19,0))) ->  | AL9: =IF(INDEX(FY1399_YTD_Actual!I$3:I$19,MATCH($B$2,FY1399_YTD_Actual!$A$3:$A$19,0))=0,#N/A,INDEX(FY1399_YTD_Actual!I$3:I$19,MATCH($B$2,FY1399_YTD_Actual!$A$3:$A$19,0))) ->  | AM9: =IF(INDEX(FY1399_YTD_Actual!J$3:J$19,MATCH($B$2,FY1399_YTD_Actual!$A$3:$A$19,0))=0,#N/A,INDEX(FY1399_YTD_Actual!J$3:J$19,MATCH($B$2,FY1399_YTD_Actual!$A$3:$A$19,0))) ->  | AN9: =IF(INDEX(FY1399_YTD_Actual!K$3:K$19,MATCH($B$2,FY1399_YTD_Actual!$A$3:$A$19,0))=0,#N/A,INDEX(FY1399_YTD_Actual!K$3:K$19,MATCH($B$2,FY1399_YTD_Actual!$A$3:$A$19,0))) ->  | AO9: =IF(INDEX(FY1399_YTD_Actual!L$3:L$19,MATCH($B$2,FY1399_YTD_Actual!$A$3:$A$19,0))=0,#N/A,INDEX(FY1399_YTD_Actual!L$3:L$19,MATCH($B$2,FY1399_YTD_Actual!$A$3:$A$19,0))) ->  | AP9: =IF(INDEX(FY1399_YTD_Actual!M$3:M$19,MATCH($B$2,FY1399_YTD_Actual!$A$3:$A$19,0))=0,#N/A,INDEX(FY1399_YTD_Actual!M$3:M$19,MATCH($B$2,FY1399_YTD_Actual!$A$3:$A$19,0))) ->  | AQ9: =IFERROR(IF(AR9="#N/A","","AFMIS"),"") -> AFMIS | AR9: =INDEX(FY1399_YTD_Actual!P25,MATCH(Charts!$B$2,FY1399_YTD_Actual!$A$25,0)) -> 11770 | AS9: =INDEX(FY1399_YTD_Actual!Q25,MATCH(Charts!$B$2,FY1399_YTD_Actual!$A$25,0)) -> 24580 | AT9: =INDEX(FY1399_YTD_Actual!R25,MATCH(Charts!$B$2,FY1399_YTD_Actual!$A$25,0)) -> 38360 | AU9: =INDEX(FY1399_YTD_Actual!S25,MATCH(Charts!$B$2,FY1399_YTD_Actual!$A$25,0)) -> 60580 | AV9: =INDEX(FY1399_YTD_Actual!T25,MATCH(Charts!$B$2,FY1399_YTD_Actual!$A$25,0)) -> 62330 | AW9: =INDEX(FY1399_YTD_Actual!U25,MATCH(Charts!$B$2,FY1399_YTD_Actual!$A$25,0)) ->  | AX9: =INDEX(FY1399_YTD_Actual!V25,MATCH(Charts!$B$2,FY1399_YTD_Actual!$A$25,0)) ->  | AY9: =INDEX(FY1399_YTD_Actual!W25,MATCH(Charts!$B$2,FY1399_YTD_Actual!$A$25,0)) ->  | AZ9: =INDEX(FY1399_YTD_Actual!X25,MATCH(Charts!$B$2,FY1399_YTD_Actual!$A$25,0)) ->  | BA9: =INDEX(FY1399_YTD_Actual!Y25,MATCH(Charts!$B$2,FY1399_YTD_Actual!$A$25,0)) ->  | BB9: =INDEX(FY1399_YTD_Actual!Z25,MATCH(Charts!$B$2,FY1399_YTD_Actual!$A$25,0)) ->  | BC9: =INDEX(FY1399_YTD_Actual!AA25,MATCH(Charts!$B$2,FY1399_YTD_Actual!$A$25,0)) -> 
A10: Historical Year Comparison | B10: FY1395 | AC10: =AD10&#REF! ->  | AD10: =Targets!$C$115 -> 2019 Target | AE10: =INDEX(Targets!C$3:C$41,MATCH(Charts!$AC10,Targets!$A$3:$A$41,0)) ->  | AF10: =INDEX(Targets!D$3:D$41,MATCH(Charts!$AC10,Targets!$A$3:$A$41,0)) ->  | AG10: =INDEX(Targets!E$3:E$41,MATCH(Charts!$AC10,Targets!$A$3:$A$41,0)) ->  | AH10: =INDEX(Targets!F$3:F$41,MATCH(Charts!$AC10,Targets!$A$3:$A$41,0)) ->  | AI10: =INDEX(Targets!G$3:G$41,MATCH(Charts!$AC10,Targets!$A$3:$A$41,0)) ->  | AJ10: =INDEX(Targets!H$3:H$41,MATCH(Charts!$AC10,Targets!$A$3:$A$41,0)) ->  | AK10: =INDEX(Targets!I$3:I$41,MATCH(Charts!$AC10,Targets!$A$3:$A$41,0)) ->  | AL10: =INDEX(Targets!J$3:J$41,MATCH(Charts!$AC10,Targets!$A$3:$A$41,0)) ->  | AM10: =INDEX(Targets!K$3:K$41,MATCH(Charts!$AC10,Targets!$A$3:$A$41,0)) ->  | AN10: =INDEX(Targets!L$3:L$41,MATCH(Charts!$AC10,Targets!$A$3:$A$41,0)) ->  | AO10: =INDEX(Targets!M$3:M$41,MATCH(Charts!$AC10,Targets!$A$3:$A$41,0)) ->  | AP10: =INDEX(Targets!N$3:N$41,MATCH(Charts!$AC10,Targets!$A$3:$A$41,0)) -> 
A11: Flag if actual is lower by: | B11: 0.1 | AC11: =AD11&#REF! ->  | AD11: =Targets!$C$116 -> Previous Year performance | AE11: =INDEX(Targets!C$3:C$41,MATCH(Charts!$AC11,Targets!$A$3:$A$41,0)) ->  | AF11: =INDEX(Targets!D$3:D$41,MATCH(Charts!$AC11,Targets!$A$3:$A$41,0)) ->  | AG11: =INDEX(Targets!E$3:E$41,MATCH(Charts!$AC11,Targets!$A$3:$A$41,0)) ->  | AH11: =INDEX(Targets!F$3:F$41,MATCH(Charts!$AC11,Targets!$A$3:$A$41,0)) ->  | AI11: =INDEX(Targets!G$3:G$41,MATCH(Charts!$AC11,Targets!$A$3:$A$41,0)) ->  | AJ11: =INDEX(Targets!H$3:H$41,MATCH(Charts!$AC11,Targets!$A$3:$A$41,0)) ->  | AK11: =INDEX(Targets!I$3:I$41,MATCH(Charts!$AC11,Targets!$A$3:$A$41,0)) ->  | AL11: =INDEX(Targets!J$3:J$41,MATCH(Charts!$AC11,Targets!$A$3:$A$41,0)) ->  | AM11: =INDEX(Targets!K$3:K$41,MATCH(Charts!$AC11,Targets!$A$3:$A$41,0)) ->  | AN11: =INDEX(Targets!L$3:L$41,MATCH(Charts!$AC11,Targets!$A$3:$A$41,0)) ->  | AO11: =INDEX(Targets!M$3:M$41,MATCH(Charts!$AC11,Targets!$A$3:$A$41,0)) ->  | AP11: =INDEX(Targets!N$3:N$41,MATCH(Charts!$AC11,Targets!$A$3:$A$41,0)) -> 
A12: Date: | B12: 2020-05-02 | AD12: Cummulative
AD13: =AD9 -> Actual | AE13: 6164.532237 | AF13: =SUM($AE9:AF9) -> 18824.74411 | AG13: =SUM($AE9:AG9) -> 31762.66899 | AH13: =SUM($AE9:AH9) -> 38237.79014 | AI13: =SUM($AE9:AI9) -> 39637.57147 | AJ13: =SUM($AE9:AJ9) ->  | AK13: =SUM($AE9:AK9) ->  | AL13: =SUM($AE9:AL9) ->  | AM13: =SUM($AE9:AM9) ->  | AN13: =SUM($AE9:AN9) ->  | AO13: =SUM($AE9:AO9) ->  | AP13: =SUM($AE9:AP9) ->  | AQ13: =AQ6 -> Flag if any | AR13: =IF((1-AE13/AE14)>$B$11,AE13,#N/A) -> 
AD14: 2019 Target | AF14: =SUM($AE10:AF10) ->  | AG14: =SUM($AE10:AG10) ->  | AH14: =SUM($AE10:AH10) ->  | AI14: =SUM($AE10:AI10) ->  | AJ14: =SUM($AE10:AJ10) ->  | AK14: =SUM($AE10:AK10) ->  | AL14: =SUM($AE10:AL10) ->  | AM14: =SUM($AE10:AM10) ->  | AN14: =SUM($AE10:AN10) ->  | AO14: =SUM($AE10:AO10) ->  | AP14: =SUM($AE10:AP10) -> 
AD15: Previous Year performance | AF15: =SUM($AE11:AF11) ->  | AG15: =SUM($AE11:AG11) ->  | AH15: =SUM($AE11:AH11) ->  | AI15: =SUM($AE11:AI11) ->  | AJ15: =SUM($AE11:AJ11) ->  | AK15: =SUM($AE11:AK11) ->  | AL15: =SUM($AE11:AL11) ->  | AM15: =SUM($AE11:AM11) ->  | AN15: =SUM($AE11:AN11) ->  | AO15: =SUM($AE11:AO11) ->  | AP15: =SUM($AE11:AP11) -> 
AC16: =A3 -> Figure 2: | AD16: =FY1399_YTD_Actual!$A$1 -> Actual | AE16: =IF(INDEX(FY1399_YTD_Actual!B$3:B$19,MATCH($B$3,FY1399_YTD_Actual!$A$3:$A$19,0))=0,#N/A,INDEX(FY1399_YTD_Actual!B$3:B$19,MATCH($B$3,FY1399_YTD_Actual!$A$3:$A$19,0))) -> 6164.532237 | AF16: =IF(INDEX(FY1399_YTD_Actual!C$3:C$19,MATCH($B$3,FY1399_YTD_Actual!$A$3:$A$19,0))=0,#N/A,INDEX(FY1399_YTD_Actual!C$3:C$19,MATCH($B$3,FY1399_YTD_Actual!$A$3:$A$19,0))) -> 5762.132658 | AG16: =IF(INDEX(FY1399_YTD_Actual!D$3:D$19,MATCH($B$3,FY1399_YTD_Actual!$A$3:$A$19,0))=0,#N/A,INDEX(FY1399_YTD_Actual!D$3:D$19,MATCH($B$3,FY1399_YTD_Actual!$A$3:$A$19,0))) -> 6844.580727 | AH16: =IF(INDEX(FY1399_YTD_Actual!E$3:E$19,MATCH($B$3,FY1399_YTD_Actual!$A$3:$A$19,0))=0,#N/A,INDEX(FY1399_YTD_Actual!E$3:E$19,MATCH($B$3,FY1399_YTD_Actual!$A$3:$A$19,0))) -> 3129.461929 | AI16: =IF(INDEX(FY1399_YTD_Actual!F$3:F$19,MATCH($B$3,FY1399_YTD_Actual!$A$3:$A$19,0))=0,#N/A,INDEX(FY1399_YTD_Actual!F$3:F$19,MATCH($B$3,FY1399_YTD_Actual!$A$3:$A$19,0))) -> 741.2869176 | AJ16: =IF(INDEX(FY1399_YTD_Actual!G$3:G$19,MATCH($B$3,FY1399_YTD_Actual!$A$3:$A$19,0))=0,#N/A,INDEX(FY1399_YTD_Actual!G$3:G$19,MATCH($B$3,FY1399_YTD_Actual!$A$3:$A$19,0))) ->  | AK16: =IF(INDEX(FY1399_YTD_Actual!H$3:H$19,MATCH($B$3,FY1399_YTD_Actual!$A$3:$A$19,0))=0,#N/A,INDEX(FY1399_YTD_Actual!H$3:H$19,MATCH($B$3,FY1399_YTD_Actual!$A$3:$A$19,0))) ->  | AL16: =IF(INDEX(FY1399_YTD_Actual!I$3:I$19,MATCH($B$3,FY1399_YTD_Actual!$A$3:$A$19,0))=0,#N/A,INDEX(FY1399_YTD_Actual!I$3:I$19,MATCH($B$3,FY1399_YTD_Actual!$A$3:$A$19,0))) ->  | AM16: =IF(INDEX(FY1399_YTD_Actual!J$3:J$19,MATCH($B$3,FY1399_YTD_Actual!$A$3:$A$19,0))=0,#N/A,INDEX(FY1399_YTD_Actual!J$3:J$19,MATCH($B$3,FY1399_YTD_Actual!$A$3:$A$19,0))) ->  | AN16: =IF(INDEX(FY1399_YTD_Actual!K$3:K$19,MATCH($B$3,FY1399_YTD_Actual!$A$3:$A$19,0))=0,#N/A,INDEX(FY1399_YTD_Actual!K$3:K$19,MATCH($B$3,FY1399_YTD_Actual!$A$3:$A$19,0))) ->  | AO16: =IF(INDEX(FY1399_YTD_Actual!L$3:L$19,MATCH($B$3,FY1399_YTD_Actual!$A$3:$A$19,0))=0,#N/A,INDEX(FY1399_YTD_Actual!L$3:L$19,MATCH($B$3,FY1399_YTD_Actual!$A$3:$A$19,0))) ->  | AP16: =IF(INDEX(FY1399_YTD_Actual!M$3:M$19,MATCH($B$3,FY1399_YTD_Actual!$A$3:$A$19,0))=0,#N/A,INDEX(FY1399_YTD_Actual!M$3:M$19,MATCH($B$3,FY1399_YTD_Actual!$A$3:$A$19,0))) -> 
AC17: =AD17&$B$3 -> 2019 TargetTax Revenues | AD17: =Targets!$C$115 -> 2019 Target | AE17: =INDEX(Targets!C$3:C$41,MATCH(Charts!$AC17,Targets!$A$3:$A$41,0)) ->  | AF17: =INDEX(Targets!D$3:D$41,MATCH(Charts!$AC17,Targets!$A$3:$A$41,0)) ->  | AG17: =INDEX(Targets!E$3:E$41,MATCH(Charts!$AC17,Targets!$A$3:$A$41,0)) ->  | AH17: =INDEX(Targets!F$3:F$41,MATCH(Charts!$AC17,Targets!$A$3:$A$41,0)) ->  | AI17: =INDEX(Targets!G$3:G$41,MATCH(Charts!$AC17,Targets!$A$3:$A$41,0)) ->  | AJ17: =INDEX(Targets!H$3:H$41,MATCH(Charts!$AC17,Targets!$A$3:$A$41,0)) ->  | AK17: =INDEX(Targets!I$3:I$41,MATCH(Charts!$AC17,Targets!$A$3:$A$41,0)) ->  | AL17: =INDEX(Targets!J$3:J$41,MATCH(Charts!$AC17,Targets!$A$3:$A$41,0)) ->  | AM17: =INDEX(Targets!K$3:K$41,MATCH(Charts!$AC17,Targets!$A$3:$A$41,0)) ->  | AN17: =INDEX(Targets!L$3:L$41,MATCH(Charts!$AC17,Targets!$A$3:$A$41,0)) ->  | AO17: =INDEX(Targets!M$3:M$41,MATCH(Charts!$AC17,Targets!$A$3:$A$41,0)) ->  | AP17: =INDEX(Targets!N$3:N$41,MATCH(Charts!$AC17,Targets!$A$3:$A$41,0)) -> 
AC18: =AD18&$B$3 -> Previous Year performanceTax Revenues | AD18: =Targets!$C$116 -> Previous Year performance | AE18: =INDEX(Targets!C$3:C$41,MATCH(Charts!$AC18,Targets!$A$3:$A$41,0)) -> 7546.190495 | AF18: =INDEX(Targets!D$3:D$41,MATCH(Charts!$AC18,Targets!$A$3:$A$41,0)) -> 6161.385337 | AG18: =INDEX(Targets!E$3:E$41,MATCH(Charts!$AC18,Targets!$A$3:$A$41,0)) -> 6578.882001 | AH18: =INDEX(Targets!F$3:F$41,MATCH(Charts!$AC18,Targets!$A$3:$A$41,0)) -> 7922.712859 | AI18: =INDEX(Targets!G$3:G$41,MATCH(Charts!$AC18,Targets!$A$3:$A$41,0)) -> 6302.572913 | AJ18: =INDEX(Targets!H$3:H$41,MATCH(Charts!$AC18,Targets!$A$3:$A$41,0)) -> 7228.577312 | AK18: =INDEX(Targets!I$3:I$41,MATCH(Charts!$AC18,Targets!$A$3:$A$41,0)) -> 7870.631984 | AL18: =INDEX(Targets!J$3:J$41,MATCH(Charts!$AC18,Targets!$A$3:$A$41,0)) -> 5158.898995 | AM18: =INDEX(Targets!K$3:K$41,MATCH(Charts!$AC18,Targets!$A$3:$A$41,0)) -> 5641.597106 | AN18: =INDEX(Targets!L$3:L$41,MATCH(Charts!$AC18,Targets!$A$3:$A$41,0)) -> 8370.05697 | AO18: =INDEX(Targets!M$3:M$41,MATCH(Charts!$AC18,Targets!$A$3:$A$41,0)) -> 6953.59959 | AP18: =INDEX(Targets!N$3:N$41,MATCH(Charts!$AC18,Targets!$A$3:$A$41,0)) -> 9672.511581
AD19: Cummulative
AD20: =AD16 -> Actual | AE20: 6164.532237 | AF20: =SUM($AE16:AF16) -> 11926.6649 | AG20: =SUM($AE16:AG16) -> 18771.24562 | AH20: =SUM($AE16:AH16) -> 21900.70755 | AI20: =SUM($AE16:AI16) -> 22641.99447 | AJ20: =SUM($AE16:AJ16) ->  | AK20: =SUM($AE16:AK16) ->  | AL20: =SUM($AE16:AL16) ->  | AM20: =SUM($AE16:AM16) ->  | AN20: =SUM($AE16:AN16) ->  | AO20: =SUM($AE16:AO16) ->  | AP20: =SUM($AE16:AP16) ->  | AQ20: =AQ13 -> Flag if any | AR20: =IF((1-AE20/AE21)>$B$11,AE20,#N/A) -> 
AD21: 2019 Target | AF21: =SUM($AE17:AF17) ->  | AG21: =SUM($AE17:AG17) ->  | AH21: =SUM($AE17:AH17) ->  | AI21: =SUM($AE17:AI17) ->  | AJ21: =SUM($AE17:AJ17) ->  | AK21: =SUM($AE17:AK17) ->  | AL21: =SUM($AE17:AL17) ->  | AM21: =SUM($AE17:AM17) ->  | AN21: =SUM($AE17:AN17) ->  | AO21: =SUM($AE17:AO17) ->  | AP21: =SUM($AE17:AP17) ->  | AQ21: Historical Year Performance | AR21: =INDEX(Targets!Q$70:Q$109,MATCH(Charts!$AQ22,Targets!$A$70:$A$109,0)) -> 5377 | AS21: =INDEX(Targets!R$70:R$109,MATCH(Charts!$AQ22,Targets!$A$70:$A$109,0)) -> 9985 | AT21: =INDEX(Targets!S$70:S$109,MATCH(Charts!$AQ22,Targets!$A$70:$A$109,0)) -> 15331 | AU21: =INDEX(Targets!T$70:T$109,MATCH(Charts!$AQ22,Targets!$A$70:$A$109,0)) -> 21774 | AV21: =INDEX(Targets!U$70:U$109,MATCH(Charts!$AQ22,Targets!$A$70:$A$109,0)) -> 26926 | AW21: =INDEX(Targets!V$70:V$109,MATCH(Charts!$AQ22,Targets!$A$70:$A$109,0)) -> 31792 | AX21: =INDEX(Targets!W$70:W$109,MATCH(Charts!$AQ22,Targets!$A$70:$A$109,0)) -> 37870 | AY21: =INDEX(Targets!X$70:X$109,MATCH(Charts!$AQ22,Targets!$A$70:$A$109,0)) -> 43732 | AZ21: =INDEX(Targets!Y$70:Y$109,MATCH(Charts!$AQ22,Targets!$A$70:$A$109,0)) -> 48007 | BA21: =INDEX(Targets!Z$70:Z$109,MATCH(Charts!$AQ22,Targets!$A$70:$A$109,0)) -> 55020 | BB21: =INDEX(Targets!AA$70:AA$109,MATCH(Charts!$AQ22,Targets!$A$70:$A$109,0)) -> 61403 | BC21: =INDEX(Targets!AB$70:AB$109,MATCH(Charts!$AQ22,Targets!$A$70:$A$109,0)) -> 69498
AD22: Previous Year performance | AE22: 7546.190495 | AF22: =SUM($AE18:AF18) -> 13707.57583 | AG22: =SUM($AE18:AG18) -> 20286.45783 | AH22: =SUM($AE18:AH18) -> 28209.17069 | AI22: =SUM($AE18:AI18) -> 34511.74361 | AJ22: =SUM($AE18:AJ18) -> 41740.32092 | AK22: =SUM($AE18:AK18) -> 49610.9529 | AL22: =SUM($AE18:AL18) -> 54769.8519 | AM22: =SUM($AE18:AM18) -> 60411.449 | AN22: =SUM($AE18:AN18) -> 68781.50597 | AO22: =SUM($AE18:AO18) -> 75735.10556 | AP22: =SUM($AE18:AP18) -> 85407.61714 | AQ22: =$B$10&$B$3 -> FY1395Tax Revenues
AC23: =#REF! ->  | AD23: =FY1399_YTD_Actual!$A$1 -> Actual | AE23: =IF(INDEX(FY1399_YTD_Actual!B$3:B$19,MATCH($B$2,FY1399_YTD_Actual!$A$3:$A$19,0))=0,#N/A,INDEX(FY1399_YTD_Actual!B$3:B$19,MATCH($B$2,FY1399_YTD_Actual!$A$3:$A$19,0))) -> 11808.64663 | AF23: =IF(INDEX(FY1399_YTD_Actual!C$3:C$19,MATCH($B$2,FY1399_YTD_Actual!$A$3:$A$19,0))=0,#N/A,INDEX(FY1399_YTD_Actual!C$3:C$19,MATCH($B$2,FY1399_YTD_Actual!$A$3:$A$19,0))) -> 12660.21187 | AG23: =IF(INDEX(FY1399_YTD_Actual!D$3:D$19,MATCH($B$2,FY1399_YTD_Actual!$A$3:$A$19,0))=0,#N/A,INDEX(FY1399_YTD_Actual!D$3:D$19,MATCH($B$2,FY1399_YTD_Actual!$A$3:$A$19,0))) -> 12937.92489 | AH23: =IF(INDEX(FY1399_YTD_Actual!E$3:E$19,MATCH($B$2,FY1399_YTD_Actual!$A$3:$A$19,0))=0,#N/A,INDEX(FY1399_YTD_Actual!E$3:E$19,MATCH($B$2,FY1399_YTD_Actual!$A$3:$A$19,0))) -> 6475.121147 | AI23: =IF(INDEX(FY1399_YTD_Actual!F$3:F$19,MATCH($B$2,FY1399_YTD_Actual!$A$3:$A$19,0))=0,#N/A,INDEX(FY1399_YTD_Actual!F$3:F$19,MATCH($B$2,FY1399_YTD_Actual!$A$3:$A$19,0))) -> 1399.781325 | AJ23: =IF(INDEX(FY1399_YTD_Actual!G$3:G$19,MATCH($B$2,FY1399_YTD_Actual!$A$3:$A$19,0))=0,#N/A,INDEX(FY1399_YTD_Actual!G$3:G$19,MATCH($B$2,FY1399_YTD_Actual!$A$3:$A$19,0))) ->  | AK23: =IF(INDEX(FY1399_YTD_Actual!H$3:H$19,MATCH($B$2,FY1399_YTD_Actual!$A$3:$A$19,0))=0,#N/A,INDEX(FY1399_YTD_Actual!H$3:H$19,MATCH($B$2,FY1399_YTD_Actual!$A$3:$A$19,0))) ->  | AL23: =IF(INDEX(FY1399_YTD_Actual!I$3:I$19,MATCH($B$2,FY1399_YTD_Actual!$A$3:$A$19,0))=0,#N/A,INDEX(FY1399_YTD_Actual!I$3:I$19,MATCH($B$2,FY1399_YTD_Actual!$A$3:$A$19,0))) ->  | AM23: =IF(INDEX(FY1399_YTD_Actual!J$3:J$19,MATCH($B$2,FY1399_YTD_Actual!$A$3:$A$19,0))=0,#N/A,INDEX(FY1399_YTD_Actual!J$3:J$19,MATCH($B$2,FY1399_YTD_Actual!$A$3:$A$19,0))) ->  | AN23: =IF(INDEX(FY1399_YTD_Actual!K$3:K$19,MATCH($B$2,FY1399_YTD_Actual!$A$3:$A$19,0))=0,#N/A,INDEX(FY1399_YTD_Actual!K$3:K$19,MATCH($B$2,FY1399_YTD_Actual!$A$3:$A$19,0))) ->  | AO23: =IF(INDEX(FY1399_YTD_Actual!L$3:L$19,MATCH($B$2,FY1399_YTD_Actual!$A$3:$A$19,0))=0,#N/A,INDEX(FY1399_YTD_Actual!L$3:L$19,MATCH($B$2,FY1399_YTD_Actual!$A$3:$A$19,0))) ->  | AP23: =IF(INDEX(FY1399_YTD_Actual!M$3:M$19,MATCH($B$2,FY1399_YTD_Actual!$A$3:$A$19,0))=0,#N/A,INDEX(FY1399_YTD_Actual!M$3:M$19,MATCH($B$2,FY1399_YTD_Actual!$A$3:$A$19,0))) -> 
AC24: =AD24&#REF! ->  | AD24: =Targets!$C$115 -> 2019 Target | AE24: =INDEX(Targets!C$3:C$41,MATCH(Charts!$AC24,Targets!$A$3:$A$41,0)) ->  | AF24: =INDEX(Targets!D$3:D$41,MATCH(Charts!$AC24,Targets!$A$3:$A$41,0)) ->  | AG24: =INDEX(Targets!E$3:E$41,MATCH(Charts!$AC24,Targets!$A$3:$A$41,0)) ->  | AH24: =INDEX(Targets!F$3:F$41,MATCH(Charts!$AC24,Targets!$A$3:$A$41,0)) ->  | AI24: =INDEX(Targets!G$3:G$41,MATCH(Charts!$AC24,Targets!$A$3:$A$41,0)) ->  | AJ24: =INDEX(Targets!H$3:H$41,MATCH(Charts!$AC24,Targets!$A$3:$A$41,0)) ->  | AK24: =INDEX(Targets!I$3:I$41,MATCH(Charts!$AC24,Targets!$A$3:$A$41,0)) ->  | AL24: =INDEX(Targets!J$3:J$41,MATCH(Charts!$AC24,Targets!$A$3:$A$41,0)) ->  | AM24: =INDEX(Targets!K$3:K$41,MATCH(Charts!$AC24,Targets!$A$3:$A$41,0)) ->  | AN24: =INDEX(Targets!L$3:L$41,MATCH(Charts!$AC24,Targets!$A$3:$A$41,0)) ->  | AO24: =INDEX(Targets!M$3:M$41,MATCH(Charts!$AC24,Targets!$A$3:$A$41,0)) ->  | AP24: =INDEX(Targets!N$3:N$41,MATCH(Charts!$AC24,Targets!$A$3:$A$41,0)) -> 
AC25: =AD25&#REF! ->  | AD25: =Targets!$C$116 -> Previous Year performance | AE25: =INDEX(Targets!C$3:C$41,MATCH(Charts!$AC25,Targets!$A$3:$A$41,0)) ->  | AF25: =INDEX(Targets!D$3:D$41,MATCH(Charts!$AC25,Targets!$A$3:$A$41,0)) ->  | AG25: =INDEX(Targets!E$3:E$41,MATCH(Charts!$AC25,Targets!$A$3:$A$41,0)) ->  | AH25: =INDEX(Targets!F$3:F$41,MATCH(Charts!$AC25,Targets!$A$3:$A$41,0)) ->  | AI25: =INDEX(Targets!G$3:G$41,MATCH(Charts!$AC25,Targets!$A$3:$A$41,0)) ->  | AJ25: =INDEX(Targets!H$3:H$41,MATCH(Charts!$AC25,Targets!$A$3:$A$41,0)) ->  | AK25: =INDEX(Targets!I$3:I$41,MATCH(Charts!$AC25,Targets!$A$3:$A$41,0)) ->  | AL25: =INDEX(Targets!J$3:J$41,MATCH(Charts!$AC25,Targets!$A$3:$A$41,0)) ->  | AM25: =INDEX(Targets!K$3:K$41,MATCH(Charts!$AC25,Targets!$A$3:$A$41,0)) ->  | AN25: =INDEX(Targets!L$3:L$41,MATCH(Charts!$AC25,Targets!$A$3:$A$41,0)) ->  | AO25: =INDEX(Targets!M$3:M$41,MATCH(Charts!$AC25,Targets!$A$3:$A$41,0)) ->  | AP25: =INDEX(Targets!N$3:N$41,MATCH(Charts!$AC25,Targets!$A$3:$A$41,0)) -> 
AD26: Cummulative
AD27: =AD23 -> Actual | AE27: 11808.64663 | AF27: =SUM($AE23:AF23) -> 24468.8585 | AG27: =SUM($AE23:AG23) -> 37406.78339 | AH27: =SUM($AE23:AH23) -> 43881.90454 | AI27: =SUM($AE23:AI23) -> 45281.68586 | AJ27: =SUM($AE23:AJ23) ->  | AK27: =SUM($AE23:AK23) ->  | AL27: =SUM($AE23:AL23) ->  | AM27: =SUM($AE23:AM23) ->  | AN27: =SUM($AE23:AN23) ->  | AO27: =SUM($AE23:AO23) ->  | AP27: =SUM($AE23:AP23) ->  | AQ27: =AQ20 -> Flag if any | AR27: =IF((1-AE27/AE28)>$B$11,AE27,#N/A) -> 
AD28: 2019 Target | AF28: =SUM($AE24:AF24) ->  | AG28: =SUM($AE24:AG24) ->  | AH28: =SUM($AE24:AH24) ->  | AI28: =SUM($AE24:AI24) ->  | AJ28: =SUM($AE24:AJ24) ->  | AK28: =SUM($AE24:AK24) ->  | AL28: =SUM($AE24:AL24) ->  | AM28: =SUM($AE24:AM24) ->  | AN28: =SUM($AE24:AN24) ->  | AO28: =SUM($AE24:AO24) ->  | AP28: =SUM($AE24:AP24) -> 
AD29: Previous Year performance | AF29: =SUM($AE25:AF25) ->  | AG29: =SUM($AE25:AG25) ->  | AH29: =SUM($AE25:AH25) ->  | AI29: =SUM($AE25:AI25) ->  | AJ29: =SUM($AE25:AJ25) ->  | AK29: =SUM($AE25:AK25) ->  | AL29: =SUM($AE25:AL25) ->  | AM29: =SUM($AE25:AM25) ->  | AN29: =SUM($AE25:AN25) ->  | AO29: =SUM($AE25:AO25) ->  | AP29: =SUM($AE25:AP25) -> 
AC30: =A4 -> Figure 3: | AD30: =FY1399_YTD_Actual!$A$1 -> Actual | AE30: =IF(INDEX(FY1399_YTD_Actual!B$3:B$19,MATCH($B$4,FY1399_YTD_Actual!$A$3:$A$19,0))=0,#N/A,INDEX(FY1399_YTD_Actual!B$3:B$19,MATCH($B$4,FY1399_YTD_Actual!$A$3:$A$19,0))) -> 2398.667029 | AF30: =IF(INDEX(FY1399_YTD_Actual!C$3:C$19,MATCH($B$4,FY1399_YTD_Actual!$A$3:$A$19,0))=0,#N/A,INDEX(FY1399_YTD_Actual!C$3:C$19,MATCH($B$4,FY1399_YTD_Actual!$A$3:$A$19,0))) -> 2966.028115 | AG30: =IF(INDEX(FY1399_YTD_Actual!D$3:D$19,MATCH($B$4,FY1399_YTD_Actual!$A$3:$A$19,0))=0,#N/A,INDEX(FY1399_YTD_Actual!D$3:D$19,MATCH($B$4,FY1399_YTD_Actual!$A$3:$A$19,0))) -> 2534.474049 | AH30: =IF(INDEX(FY1399_YTD_Actual!E$3:E$19,MATCH($B$4,FY1399_YTD_Actual!$A$3:$A$19,0))=0,#N/A,INDEX(FY1399_YTD_Actual!E$3:E$19,MATCH($B$4,FY1399_YTD_Actual!$A$3:$A$19,0))) -> 1160.563017 | AI30: =IF(INDEX(FY1399_YTD_Actual!F$3:F$19,MATCH($B$4,FY1399_YTD_Actual!$A$3:$A$19,0))=0,#N/A,INDEX(FY1399_YTD_Actual!F$3:F$19,MATCH($B$4,FY1399_YTD_Actual!$A$3:$A$19,0))) -> 487.751443 | AJ30: =IF(INDEX(FY1399_YTD_Actual!G$3:G$19,MATCH($B$4,FY1399_YTD_Actual!$A$3:$A$19,0))=0,#N/A,INDEX(FY1399_YTD_Actual!G$3:G$19,MATCH($B$4,FY1399_YTD_Actual!$A$3:$A$19,0))) ->  | AK30: =IF(INDEX(FY1399_YTD_Actual!H$3:H$19,MATCH($B$4,FY1399_YTD_Actual!$A$3:$A$19,0))=0,#N/A,INDEX(FY1399_YTD_Actual!H$3:H$19,MATCH($B$4,FY1399_YTD_Actual!$A$3:$A$19,0))) ->  | AL30: =IF(INDEX(FY1399_YTD_Actual!I$3:I$19,MATCH($B$4,FY1399_YTD_Actual!$A$3:$A$19,0))=0,#N/A,INDEX(FY1399_YTD_Actual!I$3:I$19,MATCH($B$4,FY1399_YTD_Actual!$A$3:$A$19,0))) ->  | AM30: =IF(INDEX(FY1399_YTD_Actual!J$3:J$19,MATCH($B$4,FY1399_YTD_Actual!$A$3:$A$19,0))=0,#N/A,INDEX(FY1399_YTD_Actual!J$3:J$19,MATCH($B$4,FY1399_YTD_Actual!$A$3:$A$19,0))) ->  | AN30: =IF(INDEX(FY1399_YTD_Actual!K$3:K$19,MATCH($B$4,FY1399_YTD_Actual!$A$3:$A$19,0))=0,#N/A,INDEX(FY1399_YTD_Actual!K$3:K$19,MATCH($B$4,FY1399_YTD_Actual!$A$3:$A$19,0))) ->  | AO30: =IF(INDEX(FY1399_YTD_Actual!L$3:L$19,MATCH($B$4,FY1399_YTD_Actual!$A$3:$A$19,0))=0,#N/A,INDEX(FY1399_YTD_Actual!L$3:L$19,MATCH($B$4,FY1399_YTD_Actual!$A$3:$A$19,0))) ->  | AP30: =IF(INDEX(FY1399_YTD_Actual!M$3:M$19,MATCH($B$4,FY1399_YTD_Actual!$A$3:$A$19,0))=0,#N/A,INDEX(FY1399_YTD_Actual!M$3:M$19,MATCH($B$4,FY1399_YTD_Actual!$A$3:$A$19,0))) -> 
AC31: =AD31&$B$4 -> 2019 TargetCustoms Revenues | AD31: =Targets!$C$115 -> 2019 Target | AE31: =INDEX(Targets!C$3:C$41,MATCH(Charts!$AC31,Targets!$A$3:$A$41,0)) ->  | AF31: =INDEX(Targets!D$3:D$41,MATCH(Charts!$AC31,Targets!$A$3:$A$41,0)) ->  | AG31: =INDEX(Targets!E$3:E$41,MATCH(Charts!$AC31,Targets!$A$3:$A$41,0)) ->  | AH31: =INDEX(Targets!F$3:F$41,MATCH(Charts!$AC31,Targets!$A$3:$A$41,0)) ->  | AI31: =INDEX(Targets!G$3:G$41,MATCH(Charts!$AC31,Targets!$A$3:$A$41,0)) ->  | AJ31: =INDEX(Targets!H$3:H$41,MATCH(Charts!$AC31,Targets!$A$3:$A$41,0)) ->  | AK31: =INDEX(Targets!I$3:I$41,MATCH(Charts!$AC31,Targets!$A$3:$A$41,0)) ->  | AL31: =INDEX(Targets!J$3:J$41,MATCH(Charts!$AC31,Targets!$A$3:$A$41,0)) ->  | AM31: =INDEX(Targets!K$3:K$41,MATCH(Charts!$AC31,Targets!$A$3:$A$41,0)) ->  | AN31: =INDEX(Targets!L$3:L$41,MATCH(Charts!$AC31,Targets!$A$3:$A$41,0)) ->  | AO31: =INDEX(Targets!M$3:M$41,MATCH(Charts!$AC31,Targets!$A$3:$A$41,0)) ->  | AP31: =INDEX(Targets!N$3:N$41,MATCH(Charts!$AC31,Targets!$A$3:$A$41,0)) -> 
AC32: =AD32&$B$4 -> Previous Year performanceCustoms Revenues | AD32: =Targets!$C$116 -> Previous Year performance | AE32: =INDEX(Targets!C$3:C$41,MATCH(Charts!$AC32,Targets!$A$3:$A$41,0)) -> 3319.310992 | AF32: =INDEX(Targets!D$3:D$41,MATCH(Charts!$AC32,Targets!$A$3:$A$41,0)) -> 3053.049711 | AG32: =INDEX(Targets!E$3:E$41,MATCH(Charts!$AC32,Targets!$A$3:$A$41,0)) -> 3110.94217 | AH32: =INDEX(Targets!F$3:F$41,MATCH(Charts!$AC32,Targets!$A$3:$A$41,0)) -> 3138.926383 | AI32: =INDEX(Targets!G$3:G$41,MATCH(Charts!$AC32,Targets!$A$3:$A$41,0)) -> 3434.973687 | AJ32: =INDEX(Targets!H$3:H$41,MATCH(Charts!$AC32,Targets!$A$3:$A$41,0)) -> 2808.631128 | AK32: =INDEX(Targets!I$3:I$41,MATCH(Charts!$AC32,Targets!$A$3:$A$41,0)) -> 3478.960038 | AL32: =INDEX(Targets!J$3:J$41,MATCH(Charts!$AC32,Targets!$A$3:$A$41,0)) -> 2496.733137 | AM32: =INDEX(Targets!K$3:K$41,MATCH(Charts!$AC32,Targets!$A$3:$A$41,0)) -> 2893.910815 | AN32: =INDEX(Targets!L$3:L$41,MATCH(Charts!$AC32,Targets!$A$3:$A$41,0)) -> 2610.28863 | AO32: =INDEX(Targets!M$3:M$41,MATCH(Charts!$AC32,Targets!$A$3:$A$41,0)) -> 3206.019526 | AP32: =INDEX(Targets!N$3:N$41,MATCH(Charts!$AC32,Targets!$A$3:$A$41,0)) -> 3554.224693
AD33: Cummulative
AD34: =AD30 -> Actual | AE34: 2398.667029 | AF34: =SUM($AE30:AF30) -> 5364.695144 | AG34: =SUM($AE30:AG30) -> 7899.169193 | AH34: =SUM($AE30:AH30) -> 9059.73221 | AI34: =SUM($AE30:AI30) -> 9547.483653 | AJ34: =SUM($AE30:AJ30) ->  | AK34: =SUM($AE30:AK30) ->  | AL34: =SUM($AE30:AL30) ->  | AM34: =SUM($AE30:AM30) ->  | AN34: =SUM($AE30:AN30) ->  | AO34: =SUM($AE30:AO30) ->  | AP34: =SUM($AE30:AP30) ->  | AQ34: =AQ27 -> Flag if any | AR34: =IF((1-AE34/AE35)>$B$11,AE34,#N/A) -> 
AD35: 2019 Target | AF35: =SUM($AE31:AF31) ->  | AG35: =SUM($AE31:AG31) ->  | AH35: =SUM($AE31:AH31) ->  | AI35: =SUM($AE31:AI31) ->  | AJ35: =SUM($AE31:AJ31) ->  | AK35: =SUM($AE31:AK31) ->  | AL35: =SUM($AE31:AL31) ->  | AM35: =SUM($AE31:AM31) ->  | AN35: =SUM($AE31:AN31) ->  | AO35: =SUM($AE31:AO31) ->  | AP35: =SUM($AE31:AP31) ->  | AQ35: Historical Year Performance | AR35: =INDEX(Targets!Q$70:Q$109,MATCH(Charts!$AQ36,Targets!$A$70:$A$109,0)) -> 2512 | AS35: =INDEX(Targets!R$70:R$109,MATCH(Charts!$AQ36,Targets!$A$70:$A$109,0)) -> 5059 | AT35: =INDEX(Targets!S$70:S$109,MATCH(Charts!$AQ36,Targets!$A$70:$A$109,0)) -> 7765 | AU35: =INDEX(Targets!T$70:T$109,MATCH(Charts!$AQ36,Targets!$A$70:$A$109,0)) -> 10285 | AV35: =INDEX(Targets!U$70:U$109,MATCH(Charts!$AQ36,Targets!$A$70:$A$109,0)) -> 13154 | AW35: =INDEX(Targets!V$70:V$109,MATCH(Charts!$AQ36,Targets!$A$70:$A$109,0)) -> 15801 | AX35: =INDEX(Targets!W$70:W$109,MATCH(Charts!$AQ36,Targets!$A$70:$A$109,0)) -> 18023 | AY35: =INDEX(Targets!X$70:X$109,MATCH(Charts!$AQ36,Targets!$A$70:$A$109,0)) -> 20658 | AZ35: =INDEX(Targets!Y$70:Y$109,MATCH(Charts!$AQ36,Targets!$A$70:$A$109,0)) -> 23082 | BA35: =INDEX(Targets!Z$70:Z$109,MATCH(Charts!$AQ36,Targets!$A$70:$A$109,0)) -> 25813 | BB35: =INDEX(Targets!AA$70:AA$109,MATCH(Charts!$AQ36,Targets!$A$70:$A$109,0)) -> 28771 | BC35: =INDEX(Targets!AB$70:AB$109,MATCH(Charts!$AQ36,Targets!$A$70:$A$109,0)) -> 31266
AD36: Previous Year performance | AE36: 3319.310992 | AF36: =SUM($AE32:AF32) -> 6372.360703 | AG36: =SUM($AE32:AG32) -> 9483.302873 | AH36: =SUM($AE32:AH32) -> 12622.22926 | AI36: =SUM($AE32:AI32) -> 16057.20294 | AJ36: =SUM($AE32:AJ32) -> 18865.83407 | AK36: =SUM($AE32:AK32) -> 22344.79411 | AL36: =SUM($AE32:AL32) -> 24841.52725 | AM36: =SUM($AE32:AM32) -> 27735.43806 | AN36: =SUM($AE32:AN32) -> 30345.72669 | AO36: =SUM($AE32:AO32) -> 33551.74622 | AP36: =SUM($AE32:AP32) -> 37105.97091 | AQ36: =$B$10&$B$4 -> FY1395Customs Revenues
AC37: =#REF! ->  | AD37: =FY1399_YTD_Actual!$A$1 -> Actual | AE37: =IF(INDEX(FY1399_YTD_Actual!B$3:B$19,MATCH($B$2,FY1399_YTD_Actual!$A$3:$A$19,0))=0,#N/A,INDEX(FY1399_YTD_Actual!B$3:B$19,MATCH($B$2,FY1399_YTD_Actual!$A$3:$A$19,0))) -> 11808.64663 | AF37: =IF(INDEX(FY1399_YTD_Actual!C$3:C$19,MATCH($B$2,FY1399_YTD_Actual!$A$3:$A$19,0))=0,#N/A,INDEX(FY1399_YTD_Actual!C$3:C$19,MATCH($B$2,FY1399_YTD_Actual!$A$3:$A$19,0))) -> 12660.21187 | AG37: =IF(INDEX(FY1399_YTD_Actual!D$3:D$19,MATCH($B$2,FY1399_YTD_Actual!$A$3:$A$19,0))=0,#N/A,INDEX(FY1399_YTD_Actual!D$3:D$19,MATCH($B$2,FY1399_YTD_Actual!$A$3:$A$19,0))) -> 12937.92489 | AH37: =IF(INDEX(FY1399_YTD_Actual!E$3:E$19,MATCH($B$2,FY1399_YTD_Actual!$A$3:$A$19,0))=0,#N/A,INDEX(FY1399_YTD_Actual!E$3:E$19,MATCH($B$2,FY1399_YTD_Actual!$A$3:$A$19,0))) -> 6475.121147 | AI37: =IF(INDEX(FY1399_YTD_Actual!F$3:F$19,MATCH($B$2,FY1399_YTD_Actual!$A$3:$A$19,0))=0,#N/A,INDEX(FY1399_YTD_Actual!F$3:F$19,MATCH($B$2,FY1399_YTD_Actual!$A$3:$A$19,0))) -> 1399.781325 | AJ37: =IF(INDEX(FY1399_YTD_Actual!G$3:G$19,MATCH($B$2,FY1399_YTD_Actual!$A$3:$A$19,0))=0,#N/A,INDEX(FY1399_YTD_Actual!G$3:G$19,MATCH($B$2,FY1399_YTD_Actual!$A$3:$A$19,0))) ->  | AK37: =IF(INDEX(FY1399_YTD_Actual!H$3:H$19,MATCH($B$2,FY1399_YTD_Actual!$A$3:$A$19,0))=0,#N/A,INDEX(FY1399_YTD_Actual!H$3:H$19,MATCH($B$2,FY1399_YTD_Actual!$A$3:$A$19,0))) ->  | AL37: =IF(INDEX(FY1399_YTD_Actual!I$3:I$19,MATCH($B$2,FY1399_YTD_Actual!$A$3:$A$19,0))=0,#N/A,INDEX(FY1399_YTD_Actual!I$3:I$19,MATCH($B$2,FY1399_YTD_Actual!$A$3:$A$19,0))) ->  | AM37: =IF(INDEX(FY1399_YTD_Actual!J$3:J$19,MATCH($B$2,FY1399_YTD_Actual!$A$3:$A$19,0))=0,#N/A,INDEX(FY1399_YTD_Actual!J$3:J$19,MATCH($B$2,FY1399_YTD_Actual!$A$3:$A$19,0))) ->  | AN37: =IF(INDEX(FY1399_YTD_Actual!K$3:K$19,MATCH($B$2,FY1399_YTD_Actual!$A$3:$A$19,0))=0,#N/A,INDEX(FY1399_YTD_Actual!K$3:K$19,MATCH($B$2,FY1399_YTD_Actual!$A$3:$A$19,0))) ->  | AO37: =IF(INDEX(FY1399_YTD_Actual!L$3:L$19,MATCH($B$2,FY1399_YTD_Actual!$A$3:$A$19,0))=0,#N/A,INDEX(FY1399_YTD_Actual!L$3:L$19,MATCH($B$2,FY1399_YTD_Actual!$A$3:$A$19,0))) ->  | AP37: =IF(INDEX(FY1399_YTD_Actual!M$3:M$19,MATCH($B$2,FY1399_YTD_Actual!$A$3:$A$19,0))=0,#N/A,INDEX(FY1399_YTD_Actual!M$3:M$19,MATCH($B$2,FY1399_YTD_Actual!$A$3:$A$19,0))) -> 
AC38: =AD38&#REF! ->  | AD38: =Targets!$C$115 -> 2019 Target | AE38: =INDEX(Targets!C$3:C$41,MATCH(Charts!$AC38,Targets!$A$3:$A$41,0)) ->  | AF38: =INDEX(Targets!D$3:D$41,MATCH(Charts!$AC38,Targets!$A$3:$A$41,0)) ->  | AG38: =INDEX(Targets!E$3:E$41,MATCH(Charts!$AC38,Targets!$A$3:$A$41,0)) ->  | AH38: =INDEX(Targets!F$3:F$41,MATCH(Charts!$AC38,Targets!$A$3:$A$41,0)) ->  | AI38: =INDEX(Targets!G$3:G$41,MATCH(Charts!$AC38,Targets!$A$3:$A$41,0)) ->  | AJ38: =INDEX(Targets!H$3:H$41,MATCH(Charts!$AC38,Targets!$A$3:$A$41,0)) ->  | AK38: =INDEX(Targets!I$3:I$41,MATCH(Charts!$AC38,Targets!$A$3:$A$41,0)) ->  | AL38: =INDEX(Targets!J$3:J$41,MATCH(Charts!$AC38,Targets!$A$3:$A$41,0)) ->  | AM38: =INDEX(Targets!K$3:K$41,MATCH(Charts!$AC38,Targets!$A$3:$A$41,0)) ->  | AN38: =INDEX(Targets!L$3:L$41,MATCH(Charts!$AC38,Targets!$A$3:$A$41,0)) ->  | AO38: =INDEX(Targets!M$3:M$41,MATCH(Charts!$AC38,Targets!$A$3:$A$41,0)) ->  | AP38: =INDEX(Targets!N$3:N$41,MATCH(Charts!$AC38,Targets!$A$3:$A$41,0)) -> 
AC39: =AD39&#REF! ->  | AD39: =Targets!$C$116 -> Previous Year performance | AE39: =INDEX(Targets!C$3:C$41,MATCH(Charts!$AC39,Targets!$A$3:$A$41,0)) ->  | AF39: =INDEX(Targets!D$3:D$41,MATCH(Charts!$AC39,Targets!$A$3:$A$41,0)) ->  | AG39: =INDEX(Targets!E$3:E$41,MATCH(Charts!$AC39,Targets!$A$3:$A$41,0)) ->  | AH39: =INDEX(Targets!F$3:F$41,MATCH(Charts!$AC39,Targets!$A$3:$A$41,0)) ->  | AI39: =INDEX(Targets!G$3:G$41,MATCH(Charts!$AC39,Targets!$A$3:$A$41,0)) ->  | AJ39: =INDEX(Targets!H$3:H$41,MATCH(Charts!$AC39,Targets!$A$3:$A$41,0)) ->  | AK39: =INDEX(Targets!I$3:I$41,MATCH(Charts!$AC39,Targets!$A$3:$A$41,0)) ->  | AL39: =INDEX(Targets!J$3:J$41,MATCH(Charts!$AC39,Targets!$A$3:$A$41,0)) ->  | AM39: =INDEX(Targets!K$3:K$41,MATCH(Charts!$AC39,Targets!$A$3:$A$41,0)) ->  | AN39: =INDEX(Targets!L$3:L$41,MATCH(Charts!$AC39,Targets!$A$3:$A$41,0)) ->  | AO39: =INDEX(Targets!M$3:M$41,MATCH(Charts!$AC39,Targets!$A$3:$A$41,0)) ->  | AP39: =INDEX(Targets!N$3:N$41,MATCH(Charts!$AC39,Targets!$A$3:$A$41,0)) -> 
AD40: Cummulative
AD41: =AD37 -> Actual | AE41: 11808.64663 | AF41: =SUM($AE37:AF37) -> 24468.8585 | AG41: =SUM($AE37:AG37) -> 37406.78339 | AH41: =SUM($AE37:AH37) -> 43881.90454 | AI41: =SUM($AE37:AI37) -> 45281.68586 | AJ41: =SUM($AE37:AJ37) ->  | AK41: =SUM($AE37:AK37) ->  | AL41: =SUM($AE37:AL37) ->  | AM41: =SUM($AE37:AM37) ->  | AN41: =SUM($AE37:AN37) ->  | AO41: =SUM($AE37:AO37) ->  | AP41: =SUM($AE37:AP37) ->  | AQ41: =AQ34 -> Flag if any | AR41: =IF((1-AE41/AE42)>$B$11,AE41,#N/A) -> 
AD42: 2019 Target | AF42: =SUM($AE38:AF38) ->  | AG42: =SUM($AE38:AG38) ->  | AH42: =SUM($AE38:AH38) ->  | AI42: =SUM($AE38:AI38) ->  | AJ42: =SUM($AE38:AJ38) ->  | AK42: =SUM($AE38:AK38) ->  | AL42: =SUM($AE38:AL38) ->  | AM42: =SUM($AE38:AM38) ->  | AN42: =SUM($AE38:AN38) ->  | AO42: =SUM($AE38:AO38) ->  | AP42: =SUM($AE38:AP38) -> 
AD43: Previous Year performance | AF43: =SUM($AE39:AF39) ->  | AG43: =SUM($AE39:AG39) ->  | AH43: =SUM($AE39:AH39) ->  | AI43: =SUM($AE39:AI39) ->  | AJ43: =SUM($AE39:AJ39) ->  | AK43: =SUM($AE39:AK39) ->  | AL43: =SUM($AE39:AL39) ->  | AM43: =SUM($AE39:AM39) ->  | AN43: =SUM($AE39:AN39) ->  | AO43: =SUM($AE39:AO39) ->  | AP43: =SUM($AE39:AP39) -> 
AC44: =A5 -> Figure 4: | AD44: =FY1399_YTD_Actual!$A$1 -> Actual | AE44: =IF(INDEX(FY1399_YTD_Actual!B$3:B$19,MATCH($B$5,FY1399_YTD_Actual!$A$3:$A$19,0))=0,#N/A,INDEX(FY1399_YTD_Actual!B$3:B$19,MATCH($B$5,FY1399_YTD_Actual!$A$3:$A$19,0))) -> 3245.447365 | AF44: =IF(INDEX(FY1399_YTD_Actual!C$3:C$19,MATCH($B$5,FY1399_YTD_Actual!$A$3:$A$19,0))=0,#N/A,INDEX(FY1399_YTD_Actual!C$3:C$19,MATCH($B$5,FY1399_YTD_Actual!$A$3:$A$19,0))) -> 3932.051096 | AG44: =IF(INDEX(FY1399_YTD_Actual!D$3:D$19,MATCH($B$5,FY1399_YTD_Actual!$A$3:$A$19,0))=0,#N/A,INDEX(FY1399_YTD_Actual!D$3:D$19,MATCH($B$5,FY1399_YTD_Actual!$A$3:$A$19,0))) -> 3558.870113 | AH44: =IF(INDEX(FY1399_YTD_Actual!E$3:E$19,MATCH($B$5,FY1399_YTD_Actual!$A$3:$A$19,0))=0,#N/A,INDEX(FY1399_YTD_Actual!E$3:E$19,MATCH($B$5,FY1399_YTD_Actual!$A$3:$A$19,0))) -> 2185.096201 | AI44: =IF(INDEX(FY1399_YTD_Actual!F$3:F$19,MATCH($B$5,FY1399_YTD_Actual!$A$3:$A$19,0))=0,#N/A,INDEX(FY1399_YTD_Actual!F$3:F$19,MATCH($B$5,FY1399_YTD_Actual!$A$3:$A$19,0))) -> 170.742964 | AJ44: =IF(INDEX(FY1399_YTD_Actual!G$3:G$19,MATCH($B$5,FY1399_YTD_Actual!$A$3:$A$19,0))=0,#N/A,INDEX(FY1399_YTD_Actual!G$3:G$19,MATCH($B$5,FY1399_YTD_Actual!$A$3:$A$19,0))) ->  | AK44: =IF(INDEX(FY1399_YTD_Actual!H$3:H$19,MATCH($B$5,FY1399_YTD_Actual!$A$3:$A$19,0))=0,#N/A,INDEX(FY1399_YTD_Actual!H$3:H$19,MATCH($B$5,FY1399_YTD_Actual!$A$3:$A$19,0))) ->  | AL44: =IF(INDEX(FY1399_YTD_Actual!I$3:I$19,MATCH($B$5,FY1399_YTD_Actual!$A$3:$A$19,0))=0,#N/A,INDEX(FY1399_YTD_Actual!I$3:I$19,MATCH($B$5,FY1399_YTD_Actual!$A$3:$A$19,0))) ->  | AM44: =IF(INDEX(FY1399_YTD_Actual!J$3:J$19,MATCH($B$5,FY1399_YTD_Actual!$A$3:$A$19,0))=0,#N/A,INDEX(FY1399_YTD_Actual!J$3:J$19,MATCH($B$5,FY1399_YTD_Actual!$A$3:$A$19,0))) ->  | AN44: =IF(INDEX(FY1399_YTD_Actual!K$3:K$19,MATCH($B$5,FY1399_YTD_Actual!$A$3:$A$19,0))=0,#N/A,INDEX(FY1399_YTD_Actual!K$3:K$19,MATCH($B$5,FY1399_YTD_Actual!$A$3:$A$19,0))) ->  | AO44: =IF(INDEX(FY1399_YTD_Actual!L$3:L$19,MATCH($B$5,FY1399_YTD_Actual!$A$3:$A$19,0))=0,#N/A,INDEX(FY1399_YTD_Actual!L$3:L$19,MATCH($B$5,FY1399_YTD_Actual!$A$3:$A$19,0))) ->  | AP44: =IF(INDEX(FY1399_YTD_Actual!M$3:M$19,MATCH($B$5,FY1399_YTD_Actual!$A$3:$A$19,0))=0,#N/A,INDEX(FY1399_YTD_Actual!M$3:M$19,MATCH($B$5,FY1399_YTD_Actual!$A$3:$A$19,0))) -> 
AC45: =AD45&$B$5 -> 2019 TargetNon-tax Revenues | AD45: =Targets!$C$115 -> 2019 Target | AE45: =INDEX(Targets!C$3:C$41,MATCH(Charts!$AC45,Targets!$A$3:$A$41,0)) ->  | AF45: =INDEX(Targets!D$3:D$41,MATCH(Charts!$AC45,Targets!$A$3:$A$41,0)) ->  | AG45: =INDEX(Targets!E$3:E$41,MATCH(Charts!$AC45,Targets!$A$3:$A$41,0)) ->  | AH45: =INDEX(Targets!F$3:F$41,MATCH(Charts!$AC45,Targets!$A$3:$A$41,0)) ->  | AI45: =INDEX(Targets!G$3:G$41,MATCH(Charts!$AC45,Targets!$A$3:$A$41,0)) ->  | AJ45: =INDEX(Targets!H$3:H$41,MATCH(Charts!$AC45,Targets!$A$3:$A$41,0)) ->  | AK45: =INDEX(Targets!I$3:I$41,MATCH(Charts!$AC45,Targets!$A$3:$A$41,0)) ->  | AL45: =INDEX(Targets!J$3:J$41,MATCH(Charts!$AC45,Targets!$A$3:$A$41,0)) ->  | AM45: =INDEX(Targets!K$3:K$41,MATCH(Charts!$AC45,Targets!$A$3:$A$41,0)) ->  | AN45: =INDEX(Targets!L$3:L$41,MATCH(Charts!$AC45,Targets!$A$3:$A$41,0)) ->  | AO45: =INDEX(Targets!M$3:M$41,MATCH(Charts!$AC45,Targets!$A$3:$A$41,0)) ->  | AP45: =INDEX(Targets!N$3:N$41,MATCH(Charts!$AC45,Targets!$A$3:$A$41,0)) -> 
AC46: =AD46&$B$5 -> Previous Year performanceNon-tax Revenues | AD46: =Targets!$C$116 -> Previous Year performance | AE46: =INDEX(Targets!C$3:C$41,MATCH(Charts!$AC46,Targets!$A$3:$A$41,0)) -> 3571.456021 | AF46: =INDEX(Targets!D$3:D$41,MATCH(Charts!$AC46,Targets!$A$3:$A$41,0)) -> 4290.544974 | AG46: =INDEX(Targets!E$3:E$41,MATCH(Charts!$AC46,Targets!$A$3:$A$41,0)) -> 4535.690629 | AH46: =INDEX(Targets!F$3:F$41,MATCH(Charts!$AC46,Targets!$A$3:$A$41,0)) -> 4463.42346 | AI46: =INDEX(Targets!G$3:G$41,MATCH(Charts!$AC46,Targets!$A$3:$A$41,0)) -> 12429.1617 | AJ46: =INDEX(Targets!H$3:H$41,MATCH(Charts!$AC46,Targets!$A$3:$A$41,0)) -> 3282.570782 | AK46: =INDEX(Targets!I$3:I$41,MATCH(Charts!$AC46,Targets!$A$3:$A$41,0)) -> 4504.951925 | AL46: =INDEX(Targets!J$3:J$41,MATCH(Charts!$AC46,Targets!$A$3:$A$41,0)) -> 3661.559696 | AM46: =INDEX(Targets!K$3:K$41,MATCH(Charts!$AC46,Targets!$A$3:$A$41,0)) -> 6601.841119 | AN46: =INDEX(Targets!L$3:L$41,MATCH(Charts!$AC46,Targets!$A$3:$A$41,0)) -> 8825.916138 | AO46: =INDEX(Targets!M$3:M$41,MATCH(Charts!$AC46,Targets!$A$3:$A$41,0)) -> 4914.324435 | AP46: =INDEX(Targets!N$3:N$41,MATCH(Charts!$AC46,Targets!$A$3:$A$41,0)) -> 23764.32816
AD47: Cummulative
AD48: =AD44 -> Actual | AE48: 3245.447365 | AF48: =SUM($AE44:AF44) -> 7177.498461 | AG48: =SUM($AE44:AG44) -> 10736.36857 | AH48: =SUM($AE44:AH44) -> 12921.46477 | AI48: =SUM($AE44:AI44) -> 13092.20774 | AJ48: =SUM($AE44:AJ44) ->  | AK48: =SUM($AE44:AK44) ->  | AL48: =SUM($AE44:AL44) ->  | AM48: =SUM($AE44:AM44) ->  | AN48: =SUM($AE44:AN44) ->  | AO48: =SUM($AE44:AO44) ->  | AP48: =SUM($AE44:AP44) ->  | AQ48: =AQ41 -> Flag if any | AR48: =IF((1-AE48/AE49)>$B$11,AE48,#N/A) -> 
AD49: 2019 Target | AF49: =SUM($AE45:AF45) ->  | AG49: =SUM($AE45:AG45) ->  | AH49: =SUM($AE45:AH45) ->  | AI49: =SUM($AE45:AI45) ->  | AJ49: =SUM($AE45:AJ45) ->  | AK49: =SUM($AE45:AK45) ->  | AL49: =SUM($AE45:AL45) ->  | AM49: =SUM($AE45:AM45) ->  | AN49: =SUM($AE45:AN45) ->  | AO49: =SUM($AE45:AO45) ->  | AP49: =SUM($AE45:AP45) ->  | AQ49: Historical Year Performance | AR49: =INDEX(Targets!Q$70:Q$109,MATCH(Charts!$AQ50,Targets!$A$70:$A$109,0)) -> 2561 | AS49: =INDEX(Targets!R$70:R$109,MATCH(Charts!$AQ50,Targets!$A$70:$A$109,0)) -> 5576 | AT49: =INDEX(Targets!S$70:S$109,MATCH(Charts!$AQ50,Targets!$A$70:$A$109,0)) -> 9153 | AU49: =INDEX(Targets!T$70:T$109,MATCH(Charts!$AQ50,Targets!$A$70:$A$109,0)) -> 13096 | AV49: =INDEX(Targets!U$70:U$109,MATCH(Charts!$AQ50,Targets!$A$70:$A$109,0)) -> 16531 | AW49: =INDEX(Targets!V$70:V$109,MATCH(Charts!$AQ50,Targets!$A$70:$A$109,0)) -> 32434 | AX49: =INDEX(Targets!W$70:W$109,MATCH(Charts!$AQ50,Targets!$A$70:$A$109,0)) -> 35525 | AY49: =INDEX(Targets!X$70:X$109,MATCH(Charts!$AQ50,Targets!$A$70:$A$109,0)) -> 40469 | AZ49: =INDEX(Targets!Y$70:Y$109,MATCH(Charts!$AQ50,Targets!$A$70:$A$109,0)) -> 43337 | BA49: =INDEX(Targets!Z$70:Z$109,MATCH(Charts!$AQ50,Targets!$A$70:$A$109,0)) -> 44522 | BB49: =INDEX(Targets!AA$70:AA$109,MATCH(Charts!$AQ50,Targets!$A$70:$A$109,0)) -> 48942 | BC49: =INDEX(Targets!AB$70:AB$109,MATCH(Charts!$AQ50,Targets!$A$70:$A$109,0)) -> 52732
AD50: Previous Year performance | AE50: 3571.456021 | AF50: =SUM($AE46:AF46) -> 7862.000995 | AG50: =SUM($AE46:AG46) -> 12397.69162 | AH50: =SUM($AE46:AH46) -> 16861.11508 | AI50: =SUM($AE46:AI46) -> 29290.27679 | AJ50: =SUM($AE46:AJ46) -> 32572.84757 | AK50: =SUM($AE46:AK46) -> 37077.79949 | AL50: =SUM($AE46:AL46) -> 40739.35919 | AM50: =SUM($AE46:AM46) -> 47341.20031 | AN50: =SUM($AE46:AN46) -> 56167.11644 | AO50: =SUM($AE46:AO46) -> 61081.44088 | AP50: =SUM($AE46:AP46) -> 84845.76904 | AQ50: =$B$10&$B$5 -> FY1395Non-tax Revenues
AC51: =#REF! ->  | AD51: =FY1399_YTD_Actual!$A$1 -> Actual | AE51: =IF(INDEX(FY1399_YTD_Actual!B$3:B$19,MATCH($B$2,FY1399_YTD_Actual!$A$3:$A$19,0))=0,#N/A,INDEX(FY1399_YTD_Actual!B$3:B$19,MATCH($B$2,FY1399_YTD_Actual!$A$3:$A$19,0))) -> 11808.64663 | AF51: =IF(INDEX(FY1399_YTD_Actual!C$3:C$19,MATCH($B$2,FY1399_YTD_Actual!$A$3:$A$19,0))=0,#N/A,INDEX(FY1399_YTD_Actual!C$3:C$19,MATCH($B$2,FY1399_YTD_Actual!$A$3:$A$19,0))) -> 12660.21187 | AG51: =IF(INDEX(FY1399_YTD_Actual!D$3:D$19,MATCH($B$2,FY1399_YTD_Actual!$A$3:$A$19,0))=0,#N/A,INDEX(FY1399_YTD_Actual!D$3:D$19,MATCH($B$2,FY1399_YTD_Actual!$A$3:$A$19,0))) -> 12937.92489 | AH51: =IF(INDEX(FY1399_YTD_Actual!E$3:E$19,MATCH($B$2,FY1399_YTD_Actual!$A$3:$A$19,0))=0,#N/A,INDEX(FY1399_YTD_Actual!E$3:E$19,MATCH($B$2,FY1399_YTD_Actual!$A$3:$A$19,0))) -> 6475.121147 | AI51: =IF(INDEX(FY1399_YTD_Actual!F$3:F$19,MATCH($B$2,FY1399_YTD_Actual!$A$3:$A$19,0))=0,#N/A,INDEX(FY1399_YTD_Actual!F$3:F$19,MATCH($B$2,FY1399_YTD_Actual!$A$3:$A$19,0))) -> 1399.781325 | AJ51: =IF(INDEX(FY1399_YTD_Actual!G$3:G$19,MATCH($B$2,FY1399_YTD_Actual!$A$3:$A$19,0))=0,#N/A,INDEX(FY1399_YTD_Actual!G$3:G$19,MATCH($B$2,FY1399_YTD_Actual!$A$3:$A$19,0))) ->  | AK51: =IF(INDEX(FY1399_YTD_Actual!H$3:H$19,MATCH($B$2,FY1399_YTD_Actual!$A$3:$A$19,0))=0,#N/A,INDEX(FY1399_YTD_Actual!H$3:H$19,MATCH($B$2,FY1399_YTD_Actual!$A$3:$A$19,0))) ->  | AL51: =IF(INDEX(FY1399_YTD_Actual!I$3:I$19,MATCH($B$2,FY1399_YTD_Actual!$A$3:$A$19,0))=0,#N/A,INDEX(FY1399_YTD_Actual!I$3:I$19,MATCH($B$2,FY1399_YTD_Actual!$A$3:$A$19,0))) ->  | AM51: =IF(INDEX(FY1399_YTD_Actual!J$3:J$19,MATCH($B$2,FY1399_YTD_Actual!$A$3:$A$19,0))=0,#N/A,INDEX(FY1399_YTD_Actual!J$3:J$19,MATCH($B$2,FY1399_YTD_Actual!$A$3:$A$19,0))) ->  | AN51: =IF(INDEX(FY1399_YTD_Actual!K$3:K$19,MATCH($B$2,FY1399_YTD_Actual!$A$3:$A$19,0))=0,#N/A,INDEX(FY1399_YTD_Actual!K$3:K$19,MATCH($B$2,FY1399_YTD_Actual!$A$3:$A$19,0))) ->  | AO51: =IF(INDEX(FY1399_YTD_Actual!L$3:L$19,MATCH($B$2,FY1399_YTD_Actual!$A$3:$A$19,0))=0,#N/A,INDEX(FY1399_YTD_Actual!L$3:L$19,MATCH($B$2,FY1399_YTD_Actual!$A$3:$A$19,0))) ->  | AP51: =IF(INDEX(FY1399_YTD_Actual!M$3:M$19,MATCH($B$2,FY1399_YTD_Actual!$A$3:$A$19,0))=0,#N/A,INDEX(FY1399_YTD_Actual!M$3:M$19,MATCH($B$2,FY1399_YTD_Actual!$A$3:$A$19,0))) -> 
AC52: =AD52&#REF! ->  | AD52: =Targets!$C$115 -> 2019 Target | AE52: =INDEX(Targets!C$3:C$41,MATCH(Charts!$AC52,Targets!$A$3:$A$41,0)) ->  | AF52: =INDEX(Targets!D$3:D$41,MATCH(Charts!$AC52,Targets!$A$3:$A$41,0)) ->  | AG52: =INDEX(Targets!E$3:E$41,MATCH(Charts!$AC52,Targets!$A$3:$A$41,0)) ->  | AH52: =INDEX(Targets!F$3:F$41,MATCH(Charts!$AC52,Targets!$A$3:$A$41,0)) ->  | AI52: =INDEX(Targets!G$3:G$41,MATCH(Charts!$AC52,Targets!$A$3:$A$41,0)) ->  | AJ52: =INDEX(Targets!H$3:H$41,MATCH(Charts!$AC52,Targets!$A$3:$A$41,0)) ->  | AK52: =INDEX(Targets!I$3:I$41,MATCH(Charts!$AC52,Targets!$A$3:$A$41,0)) ->  | AL52: =INDEX(Targets!J$3:J$41,MATCH(Charts!$AC52,Targets!$A$3:$A$41,0)) ->  | AM52: =INDEX(Targets!K$3:K$41,MATCH(Charts!$AC52,Targets!$A$3:$A$41,0)) ->  | AN52: =INDEX(Targets!L$3:L$41,MATCH(Charts!$AC52,Targets!$A$3:$A$41,0)) ->  | AO52: =INDEX(Targets!M$3:M$41,MATCH(Charts!$AC52,Targets!$A$3:$A$41,0)) ->  | AP52: =INDEX(Targets!N$3:N$41,MATCH(Charts!$AC52,Targets!$A$3:$A$41,0)) -> 
AC53: =AD53&#REF! ->  | AD53: =Targets!$C$116 -> Previous Year performance | AE53: =INDEX(Targets!C$3:C$41,MATCH(Charts!$AC53,Targets!$A$3:$A$41,0)) ->  | AF53: =INDEX(Targets!D$3:D$41,MATCH(Charts!$AC53,Targets!$A$3:$A$41,0)) ->  | AG53: =INDEX(Targets!E$3:E$41,MATCH(Charts!$AC53,Targets!$A$3:$A$41,0)) ->  | AH53: =INDEX(Targets!F$3:F$41,MATCH(Charts!$AC53,Targets!$A$3:$A$41,0)) ->  | AI53: =INDEX(Targets!G$3:G$41,MATCH(Charts!$AC53,Targets!$A$3:$A$41,0)) ->  | AJ53: =INDEX(Targets!H$3:H$41,MATCH(Charts!$AC53,Targets!$A$3:$A$41,0)) ->  | AK53: =INDEX(Targets!I$3:I$41,MATCH(Charts!$AC53,Targets!$A$3:$A$41,0)) ->  | AL53: =INDEX(Targets!J$3:J$41,MATCH(Charts!$AC53,Targets!$A$3:$A$41,0)) ->  | AM53: =INDEX(Targets!K$3:K$41,MATCH(Charts!$AC53,Targets!$A$3:$A$41,0)) ->  | AN53: =INDEX(Targets!L$3:L$41,MATCH(Charts!$AC53,Targets!$A$3:$A$41,0)) ->  | AO53: =INDEX(Targets!M$3:M$41,MATCH(Charts!$AC53,Targets!$A$3:$A$41,0)) ->  | AP53: =INDEX(Targets!N$3:N$41,MATCH(Charts!$AC53,Targets!$A$3:$A$41,0)) -> 
AD54: Cummulative
AD55: =AD51 -> Actual | AE55: 11808.64663 | AF55: =SUM($AE51:AF51) -> 24468.8585 | AG55: =SUM($AE51:AG51) -> 37406.78339 | AH55: =SUM($AE51:AH51) -> 43881.90454 | AI55: =SUM($AE51:AI51) -> 45281.68586 | AJ55: =SUM($AE51:AJ51) ->  | AK55: =SUM($AE51:AK51) ->  | AL55: =SUM($AE51:AL51) ->  | AM55: =SUM($AE51:AM51) ->  | AN55: =SUM($AE51:AN51) ->  | AO55: =SUM($AE51:AO51) ->  | AP55: =SUM($AE51:AP51) ->  | AQ55: =AQ48 -> Flag if any | AR55: =IF((1-AE55/AE56)>$B$11,AE55,#N/A) -> 
AD56: 2019 Target | AF56: =SUM($AE52:AF52) ->  | AG56: =SUM($AE52:AG52) ->  | AH56: =SUM($AE52:AH52) ->  | AI56: =SUM($AE52:AI52) ->  | AJ56: =SUM($AE52:AJ52) ->  | AK56: =SUM($AE52:AK52) ->  | AL56: =SUM($AE52:AL52) ->  | AM56: =SUM($AE52:AM52) ->  | AN56: =SUM($AE52:AN52) ->  | AO56: =SUM($AE52:AO52) ->  | AP56: =SUM($AE52:AP52) -> 
AD57: Previous Year performance | AF57: =SUM($AE53:AF53) ->  | AG57: =SUM($AE53:AG53) ->  | AH57: =SUM($AE53:AH53) ->  | AI57: =SUM($AE53:AI53) ->  | AJ57: =SUM($AE53:AJ53) ->  | AK57: =SUM($AE53:AK53) ->  | AL57: =SUM($AE53:AL53) ->  | AM57: =SUM($AE53:AM53) ->  | AN57: =SUM($AE53:AN53) ->  | AO57: =SUM($AE53:AO53) ->  | AP57: =SUM($AE53:AP53) -> 
AC58: =A78 -> Figure 5: | AD58: =FY1399_YTD_Actual!$A$1 -> Actual | AE58: =IF(INDEX(FY1399_YTD_Actual!B$3:B$19,MATCH($B$78,FY1399_YTD_Actual!$A$3:$A$19,0))=0,#N/A,INDEX(FY1399_YTD_Actual!B$3:B$19,MATCH($B$78,FY1399_YTD_Actual!$A$3:$A$19,0))) -> 5551.316933 | AF58: =IF(INDEX(FY1399_YTD_Actual!C$3:C$19,MATCH($B$78,FY1399_YTD_Actual!$A$3:$A$19,0))=0,#N/A,INDEX(FY1399_YTD_Actual!C$3:C$19,MATCH($B$78,FY1399_YTD_Actual!$A$3:$A$19,0))) -> 6482.798998 | AG58: =IF(INDEX(FY1399_YTD_Actual!D$3:D$19,MATCH($B$78,FY1399_YTD_Actual!$A$3:$A$19,0))=0,#N/A,INDEX(FY1399_YTD_Actual!D$3:D$19,MATCH($B$78,FY1399_YTD_Actual!$A$3:$A$19,0))) -> 5425.073312 | AH58: =IF(INDEX(FY1399_YTD_Actual!E$3:E$19,MATCH($B$78,FY1399_YTD_Actual!$A$3:$A$19,0))=0,#N/A,INDEX(FY1399_YTD_Actual!E$3:E$19,MATCH($B$78,FY1399_YTD_Actual!$A$3:$A$19,0))) -> 2776.852754 | AI58: =IF(INDEX(FY1399_YTD_Actual!F$3:F$19,MATCH($B$78,FY1399_YTD_Actual!$A$3:$A$19,0))=0,#N/A,INDEX(FY1399_YTD_Actual!F$3:F$19,MATCH($B$78,FY1399_YTD_Actual!$A$3:$A$19,0))) -> 1130.495807 | AJ58: =IF(INDEX(FY1399_YTD_Actual!G$3:G$19,MATCH($B$78,FY1399_YTD_Actual!$A$3:$A$19,0))=0,#N/A,INDEX(FY1399_YTD_Actual!G$3:G$19,MATCH($B$78,FY1399_YTD_Actual!$A$3:$A$19,0))) ->  | AK58: =IF(INDEX(FY1399_YTD_Actual!H$3:H$19,MATCH($B$78,FY1399_YTD_Actual!$A$3:$A$19,0))=0,#N/A,INDEX(FY1399_YTD_Actual!H$3:H$19,MATCH($B$78,FY1399_YTD_Actual!$A$3:$A$19,0))) ->  | AL58: =IF(INDEX(FY1399_YTD_Actual!I$3:I$19,MATCH($B$78,FY1399_YTD_Actual!$A$3:$A$19,0))=0,#N/A,INDEX(FY1399_YTD_Actual!I$3:I$19,MATCH($B$78,FY1399_YTD_Actual!$A$3:$A$19,0))) ->  | AM58: =IF(INDEX(FY1399_YTD_Actual!J$3:J$19,MATCH($B$78,FY1399_YTD_Actual!$A$3:$A$19,0))=0,#N/A,INDEX(FY1399_YTD_Actual!J$3:J$19,MATCH($B$78,FY1399_YTD_Actual!$A$3:$A$19,0))) ->  | AN58: =IF(INDEX(FY1399_YTD_Actual!K$3:K$19,MATCH($B$78,FY1399_YTD_Actual!$A$3:$A$19,0))=0,#N/A,INDEX(FY1399_YTD_Actual!K$3:K$19,MATCH($B$78,FY1399_YTD_Actual!$A$3:$A$19,0))) ->  | AO58: =IF(INDEX(FY1399_YTD_Actual!L$3:L$19,MATCH($B$78,FY1399_YTD_Actual!$A$3:$A$19,0))=0,#N/A,INDEX(FY1399_YTD_Actual!L$3:L$19,MATCH($B$78,FY1399_YTD_Actual!$A$3:$A$19,0))) ->  | AP58: =IF(INDEX(FY1399_YTD_Actual!M$3:M$19,MATCH($B$78,FY1399_YTD_Actual!$A$3:$A$19,0))=0,#N/A,INDEX(FY1399_YTD_Actual!M$3:M$19,MATCH($B$78,FY1399_YTD_Actual!$A$3:$A$19,0))) -> 
AC59: =AD59&$B$78 -> 2019 TargetCustoms Department | AD59: =Targets!$C$115 -> 2019 Target | AE59: =INDEX(Targets!C$3:C$41,MATCH(Charts!$AC59,Targets!$A$3:$A$41,0)) ->  | AF59: =INDEX(Targets!D$3:D$41,MATCH(Charts!$AC59,Targets!$A$3:$A$41,0)) ->  | AG59: =INDEX(Targets!E$3:E$41,MATCH(Charts!$AC59,Targets!$A$3:$A$41,0)) ->  | AH59: =INDEX(Targets!F$3:F$41,MATCH(Charts!$AC59,Targets!$A$3:$A$41,0)) ->  | AI59: =INDEX(Targets!G$3:G$41,MATCH(Charts!$AC59,Targets!$A$3:$A$41,0)) ->  | AJ59: =INDEX(Targets!H$3:H$41,MATCH(Charts!$AC59,Targets!$A$3:$A$41,0)) ->  | AK59: =INDEX(Targets!I$3:I$41,MATCH(Charts!$AC59,Targets!$A$3:$A$41,0)) ->  | AL59: =INDEX(Targets!J$3:J$41,MATCH(Charts!$AC59,Targets!$A$3:$A$41,0)) ->  | AM59: =INDEX(Targets!K$3:K$41,MATCH(Charts!$AC59,Targets!$A$3:$A$41,0)) ->  | AN59: =INDEX(Targets!L$3:L$41,MATCH(Charts!$AC59,Targets!$A$3:$A$41,0)) ->  | AO59: =INDEX(Targets!M$3:M$41,MATCH(Charts!$AC59,Targets!$A$3:$A$41,0)) ->  | AP59: =INDEX(Targets!N$3:N$41,MATCH(Charts!$AC59,Targets!$A$3:$A$41,0)) -> 
AC60: =AD60&$B$78 -> Previous Year performanceCustoms Department | AD60: =Targets!$C$116 -> Previous Year performance | AE60: =INDEX(Targets!C$3:C$41,MATCH(Charts!$AC60,Targets!$A$3:$A$41,0)) -> 7121.954075 | AF60: =INDEX(Targets!D$3:D$41,MATCH(Charts!$AC60,Targets!$A$3:$A$41,0)) -> 6626.573266 | AG60: =INDEX(Targets!E$3:E$41,MATCH(Charts!$AC60,Targets!$A$3:$A$41,0)) -> 6314.747443 | AH60: =INDEX(Targets!F$3:F$41,MATCH(Charts!$AC60,Targets!$A$3:$A$41,0)) -> 6445.142824 | AI60: =INDEX(Targets!G$3:G$41,MATCH(Charts!$AC60,Targets!$A$3:$A$41,0)) -> 7100.673798 | AJ60: =INDEX(Targets!H$3:H$41,MATCH(Charts!$AC60,Targets!$A$3:$A$41,0)) -> 5923.310036 | AK60: =INDEX(Targets!I$3:I$41,MATCH(Charts!$AC60,Targets!$A$3:$A$41,0)) -> 7042.078335 | AL60: =INDEX(Targets!J$3:J$41,MATCH(Charts!$AC60,Targets!$A$3:$A$41,0)) -> 5525.767132 | AM60: =INDEX(Targets!K$3:K$41,MATCH(Charts!$AC60,Targets!$A$3:$A$41,0)) -> 6328.26713 | AN60: =INDEX(Targets!L$3:L$41,MATCH(Charts!$AC60,Targets!$A$3:$A$41,0)) -> 5820.816818 | AO60: =INDEX(Targets!M$3:M$41,MATCH(Charts!$AC60,Targets!$A$3:$A$41,0)) -> 6994.265015 | AP60: =INDEX(Targets!N$3:N$41,MATCH(Charts!$AC60,Targets!$A$3:$A$41,0)) -> 7881.569284
AD61: Cummulative
AD62: =AD58 -> Actual | AE62: 5551.316933 | AF62: =SUM($AE58:AF58) -> 12034.11593 | AG62: =SUM($AE58:AG58) -> 17459.18924 | AH62: =SUM($AE58:AH58) -> 20236.042 | AI62: =SUM($AE58:AI58) -> 21366.5378 | AJ62: =SUM($AE58:AJ58) ->  | AK62: =SUM($AE58:AK58) ->  | AL62: =SUM($AE58:AL58) ->  | AM62: =SUM($AE58:AM58) ->  | AN62: =SUM($AE58:AN58) ->  | AO62: =SUM($AE58:AO58) ->  | AP62: =SUM($AE58:AP58) ->  | AQ62: =AQ55 -> Flag if any | AR62: =IF((1-AE62/AE63)>$B$11,AE62,#N/A) -> 
AD63: 2019 Target | AF63: =SUM($AE59:AF59) ->  | AG63: =SUM($AE59:AG59) ->  | AH63: =SUM($AE59:AH59) ->  | AI63: =SUM($AE59:AI59) ->  | AJ63: =SUM($AE59:AJ59) ->  | AK63: =SUM($AE59:AK59) ->  | AL63: =SUM($AE59:AL59) ->  | AM63: =SUM($AE59:AM59) ->  | AN63: =SUM($AE59:AN59) ->  | AO63: =SUM($AE59:AO59) ->  | AP63: =SUM($AE59:AP59) ->  | AQ63: Historical Year Performance | AR63: =INDEX(Targets!Q$70:Q$109,MATCH(Charts!$AQ64,Targets!$A$70:$A$109,0)) -> 5263 | AS63: =INDEX(Targets!R$70:R$109,MATCH(Charts!$AQ64,Targets!$A$70:$A$109,0)) -> 10707 | AT63: =INDEX(Targets!S$70:S$109,MATCH(Charts!$AQ64,Targets!$A$70:$A$109,0)) -> 16398 | AU63: =INDEX(Targets!T$70:T$109,MATCH(Charts!$AQ64,Targets!$A$70:$A$109,0)) -> 21515 | AV63: =INDEX(Targets!U$70:U$109,MATCH(Charts!$AQ64,Targets!$A$70:$A$109,0)) -> 26946 | AW63: =INDEX(Targets!V$70:V$109,MATCH(Charts!$AQ64,Targets!$A$70:$A$109,0)) -> 32181 | AX63: =INDEX(Targets!W$70:W$109,MATCH(Charts!$AQ64,Targets!$A$70:$A$109,0)) -> 36714 | AY63: =INDEX(Targets!X$70:X$109,MATCH(Charts!$AQ64,Targets!$A$70:$A$109,0)) -> 42014 | AZ63: =INDEX(Targets!Y$70:Y$109,MATCH(Charts!$AQ64,Targets!$A$70:$A$109,0)) -> 46729 | BA63: =INDEX(Targets!Z$70:Z$109,MATCH(Charts!$AQ64,Targets!$A$70:$A$109,0)) -> 52077 | BB63: =INDEX(Targets!AA$70:AA$109,MATCH(Charts!$AQ64,Targets!$A$70:$A$109,0)) -> 58143 | BC63: =INDEX(Targets!AB$70:AB$109,MATCH(Charts!$AQ64,Targets!$A$70:$A$109,0)) -> 65313
AD64: Previous Year performance | AE64: 7121.954075 | AF64: =SUM($AE60:AF60) -> 13748.52734 | AG64: =SUM($AE60:AG60) -> 20063.27478 | AH64: =SUM($AE60:AH60) -> 26508.41761 | AI64: =SUM($AE60:AI60) -> 33609.09141 | AJ64: =SUM($AE60:AJ60) -> 39532.40144 | AK64: =SUM($AE60:AK60) -> 46574.47978 | AL64: =SUM($AE60:AL60) -> 52100.24691 | AM64: =SUM($AE60:AM60) -> 58428.51404 | AN64: =SUM($AE60:AN60) -> 64249.33086 | AO64: =SUM($AE60:AO60) -> 71243.59587 | AP64: =SUM($AE60:AP60) -> 79125.16516 | AQ64: =$B$10&$B$78 -> FY1395Customs Department
AC65: =A79 -> Figure 6: | AD65: =FY1399_YTD_Actual!$A$1 -> Actual | AE65: =IF(INDEX(FY1399_YTD_Actual!B$3:B$19,MATCH($B$79,FY1399_YTD_Actual!$A$3:$A$19,0))=0,#N/A,INDEX(FY1399_YTD_Actual!B$3:B$19,MATCH($B$79,FY1399_YTD_Actual!$A$3:$A$19,0))) -> 1014.264063 | AF65: =IF(INDEX(FY1399_YTD_Actual!C$3:C$19,MATCH($B$79,FY1399_YTD_Actual!$A$3:$A$19,0))=0,#N/A,INDEX(FY1399_YTD_Actual!C$3:C$19,MATCH($B$79,FY1399_YTD_Actual!$A$3:$A$19,0))) -> 1248.346791 | AG65: =IF(INDEX(FY1399_YTD_Actual!D$3:D$19,MATCH($B$79,FY1399_YTD_Actual!$A$3:$A$19,0))=0,#N/A,INDEX(FY1399_YTD_Actual!D$3:D$19,MATCH($B$79,FY1399_YTD_Actual!$A$3:$A$19,0))) -> 1262.16223 | AH65: =IF(INDEX(FY1399_YTD_Actual!E$3:E$19,MATCH($B$79,FY1399_YTD_Actual!$A$3:$A$19,0))=0,#N/A,INDEX(FY1399_YTD_Actual!E$3:E$19,MATCH($B$79,FY1399_YTD_Actual!$A$3:$A$19,0))) -> 614.619094 | AI65: =IF(INDEX(FY1399_YTD_Actual!F$3:F$19,MATCH($B$79,FY1399_YTD_Actual!$A$3:$A$19,0))=0,#N/A,INDEX(FY1399_YTD_Actual!F$3:F$19,MATCH($B$79,FY1399_YTD_Actual!$A$3:$A$19,0))) -> 239.728462 | AJ65: =IF(INDEX(FY1399_YTD_Actual!G$3:G$19,MATCH($B$79,FY1399_YTD_Actual!$A$3:$A$19,0))=0,#N/A,INDEX(FY1399_YTD_Actual!G$3:G$19,MATCH($B$79,FY1399_YTD_Actual!$A$3:$A$19,0))) ->  | AK65: =IF(INDEX(FY1399_YTD_Actual!H$3:H$19,MATCH($B$79,FY1399_YTD_Actual!$A$3:$A$19,0))=0,#N/A,INDEX(FY1399_YTD_Actual!H$3:H$19,MATCH($B$79,FY1399_YTD_Actual!$A$3:$A$19,0))) ->  | AL65: =IF(INDEX(FY1399_YTD_Actual!I$3:I$19,MATCH($B$79,FY1399_YTD_Actual!$A$3:$A$19,0))=0,#N/A,INDEX(FY1399_YTD_Actual!I$3:I$19,MATCH($B$79,FY1399_YTD_Actual!$A$3:$A$19,0))) ->  | AM65: =IF(INDEX(FY1399_YTD_Actual!J$3:J$19,MATCH($B$79,FY1399_YTD_Actual!$A$3:$A$19,0))=0,#N/A,INDEX(FY1399_YTD_Actual!J$3:J$19,MATCH($B$79,FY1399_YTD_Actual!$A$3:$A$19,0))) ->  | AN65: =IF(INDEX(FY1399_YTD_Actual!K$3:K$19,MATCH($B$79,FY1399_YTD_Actual!$A$3:$A$19,0))=0,#N/A,INDEX(FY1399_YTD_Actual!K$3:K$19,MATCH($B$79,FY1399_YTD_Actual!$A$3:$A$19,0))) ->  | AO65: =IF(INDEX(FY1399_YTD_Actual!L$3:L$19,MATCH($B$79,FY1399_YTD_Actual!$A$3:$A$19,0))=0,#N/A,INDEX(FY1399_YTD_Actual!L$3:L$19,MATCH($B$79,FY1399_YTD_Actual!$A$3:$A$19,0))) ->  | AP65: =IF(INDEX(FY1399_YTD_Actual!M$3:M$19,MATCH($B$79,FY1399_YTD_Actual!$A$3:$A$19,0))=0,#N/A,INDEX(FY1399_YTD_Actual!M$3:M$19,MATCH($B$79,FY1399_YTD_Actual!$A$3:$A$19,0))) -> 
AC66: =AD66&$B$79 -> 2019 TargetHerat Customs Office | AD66: =Targets!$C$115 -> 2019 Target | AE66: =INDEX(Targets!C$3:C$41,MATCH(Charts!$AC66,Targets!$A$3:$A$41,0)) ->  | AF66: =INDEX(Targets!D$3:D$41,MATCH(Charts!$AC66,Targets!$A$3:$A$41,0)) ->  | AG66: =INDEX(Targets!E$3:E$41,MATCH(Charts!$AC66,Targets!$A$3:$A$41,0)) ->  | AH66: =INDEX(Targets!F$3:F$41,MATCH(Charts!$AC66,Targets!$A$3:$A$41,0)) ->  | AI66: =INDEX(Targets!G$3:G$41,MATCH(Charts!$AC66,Targets!$A$3:$A$41,0)) ->  | AJ66: =INDEX(Targets!H$3:H$41,MATCH(Charts!$AC66,Targets!$A$3:$A$41,0)) ->  | AK66: =INDEX(Targets!I$3:I$41,MATCH(Charts!$AC66,Targets!$A$3:$A$41,0)) ->  | AL66: =INDEX(Targets!J$3:J$41,MATCH(Charts!$AC66,Targets!$A$3:$A$41,0)) ->  | AM66: =INDEX(Targets!K$3:K$41,MATCH(Charts!$AC66,Targets!$A$3:$A$41,0)) ->  | AN66: =INDEX(Targets!L$3:L$41,MATCH(Charts!$AC66,Targets!$A$3:$A$41,0)) ->  | AO66: =INDEX(Targets!M$3:M$41,MATCH(Charts!$AC66,Targets!$A$3:$A$41,0)) ->  | AP66: =INDEX(Targets!N$3:N$41,MATCH(Charts!$AC66,Targets!$A$3:$A$41,0)) -> 
AC67: =AD67&$B$79 -> Previous Year performanceHerat Customs Office | AD67: =Targets!$C$116 -> Previous Year performance | AE67: =INDEX(Targets!C$3:C$41,MATCH(Charts!$AC67,Targets!$A$3:$A$41,0)) -> 1669.959583 | AF67: =INDEX(Targets!D$3:D$41,MATCH(Charts!$AC67,Targets!$A$3:$A$41,0)) -> 1522.535612 | AG67: =INDEX(Targets!E$3:E$41,MATCH(Charts!$AC67,Targets!$A$3:$A$41,0)) -> 1639.108452 | AH67: =INDEX(Targets!F$3:F$41,MATCH(Charts!$AC67,Targets!$A$3:$A$41,0)) -> 1327.363441 | AI67: =INDEX(Targets!G$3:G$41,MATCH(Charts!$AC67,Targets!$A$3:$A$41,0)) -> 1551.811893 | AJ67: =INDEX(Targets!H$3:H$41,MATCH(Charts!$AC67,Targets!$A$3:$A$41,0)) -> 1535.73312 | AK67: =INDEX(Targets!I$3:I$41,MATCH(Charts!$AC67,Targets!$A$3:$A$41,0)) -> 1733.299742 | AL67: =INDEX(Targets!J$3:J$41,MATCH(Charts!$AC67,Targets!$A$3:$A$41,0)) -> 1321.997578 | AM67: =INDEX(Targets!K$3:K$41,MATCH(Charts!$AC67,Targets!$A$3:$A$41,0)) -> 1433.418012 | AN67: =INDEX(Targets!L$3:L$41,MATCH(Charts!$AC67,Targets!$A$3:$A$41,0)) -> 1401.325681 | AO67: =INDEX(Targets!M$3:M$41,MATCH(Charts!$AC67,Targets!$A$3:$A$41,0)) -> 1268.043363 | AP67: =INDEX(Targets!N$3:N$41,MATCH(Charts!$AC67,Targets!$A$3:$A$41,0)) -> 1648.412112
AD68: Cummulative
AD69: =AD65 -> Actual | AE69: 1014.264063 | AF69: =SUM($AE65:AF65) -> 2262.610854 | AG69: =SUM($AE65:AG65) -> 3524.773084 | AH69: =SUM($AE65:AH65) -> 4139.392178 | AI69: =SUM($AE65:AI65) -> 4379.12064 | AJ69: =SUM($AE65:AJ65) ->  | AK69: =SUM($AE65:AK65) ->  | AL69: =SUM($AE65:AL65) ->  | AM69: =SUM($AE65:AM65) ->  | AN69: =SUM($AE65:AN65) ->  | AO69: =SUM($AE65:AO65) ->  | AP69: =SUM($AE65:AP65) ->  | AQ69: =AQ62 -> Flag if any | AR69: =IF((1-AE69/AE70)>$B$11,AE69,#N/A) -> 
AD70: 2019 Target | AF70: =SUM($AE66:AF66) ->  | AG70: =SUM($AE66:AG66) ->  | AH70: =SUM($AE66:AH66) ->  | AI70: =SUM($AE66:AI66) ->  | AJ70: =SUM($AE66:AJ66) ->  | AK70: =SUM($AE66:AK66) ->  | AL70: =SUM($AE66:AL66) ->  | AM70: =SUM($AE66:AM66) ->  | AN70: =SUM($AE66:AN66) ->  | AO70: =SUM($AE66:AO66) ->  | AP70: =SUM($AE66:AP66) ->  | AQ70: Historical Year Performance | AR70: =INDEX(Targets!Q$70:Q$109,MATCH(Charts!$AQ71,Targets!$A$70:$A$109,0)) -> 1426 | AS70: =INDEX(Targets!R$70:R$109,MATCH(Charts!$AQ71,Targets!$A$70:$A$109,0)) -> 2890 | AT70: =INDEX(Targets!S$70:S$109,MATCH(Charts!$AQ71,Targets!$A$70:$A$109,0)) -> 4387 | AU70: =INDEX(Targets!T$70:T$109,MATCH(Charts!$AQ71,Targets!$A$70:$A$109,0)) -> 5530 | AV70: =INDEX(Targets!U$70:U$109,MATCH(Charts!$AQ71,Targets!$A$70:$A$109,0)) -> 6800 | AW70: =INDEX(Targets!V$70:V$109,MATCH(Charts!$AQ71,Targets!$A$70:$A$109,0)) -> 8125 | AX70: =INDEX(Targets!W$70:W$109,MATCH(Charts!$AQ71,Targets!$A$70:$A$109,0)) -> 9376 | AY70: =INDEX(Targets!X$70:X$109,MATCH(Charts!$AQ71,Targets!$A$70:$A$109,0)) -> 10798 | AZ70: =INDEX(Targets!Y$70:Y$109,MATCH(Charts!$AQ71,Targets!$A$70:$A$109,0)) -> 12037 | BA70: =INDEX(Targets!Z$70:Z$109,MATCH(Charts!$AQ71,Targets!$A$70:$A$109,0)) -> 13418 | BB70: =INDEX(Targets!AA$70:AA$109,MATCH(Charts!$AQ71,Targets!$A$70:$A$109,0)) -> 15328 | BC70: =INDEX(Targets!AB$70:AB$109,MATCH(Charts!$AQ71,Targets!$A$70:$A$109,0)) -> 17103
AD71: Previous Year performance | AE71: 1669.959583 | AF71: =SUM($AE67:AF67) -> 3192.495195 | AG71: =SUM($AE67:AG67) -> 4831.603647 | AH71: =SUM($AE67:AH67) -> 6158.967088 | AI71: =SUM($AE67:AI67) -> 7710.778981 | AJ71: =SUM($AE67:AJ67) -> 9246.512101 | AK71: =SUM($AE67:AK67) -> 10979.81184 | AL71: =SUM($AE67:AL67) -> 12301.80942 | AM71: =SUM($AE67:AM67) -> 13735.22743 | AN71: =SUM($AE67:AN67) -> 15136.55311 | AO71: =SUM($AE67:AO67) -> 16404.59648 | AP71: =SUM($AE67:AP67) -> 18053.00859 | AQ71: =$B$10&$B$79 -> FY1395Herat Customs Office
AC72: =A80 -> Figure 7: | AD72: =FY1399_YTD_Actual!$A$1 -> Actual | AE72: =IF(INDEX(FY1399_YTD_Actual!B$3:B$19,MATCH($B$80,FY1399_YTD_Actual!$A$3:$A$19,0))=0,#N/A,INDEX(FY1399_YTD_Actual!B$3:B$19,MATCH($B$80,FY1399_YTD_Actual!$A$3:$A$19,0))) -> 1099.89838 | AF72: =IF(INDEX(FY1399_YTD_Actual!C$3:C$19,MATCH($B$80,FY1399_YTD_Actual!$A$3:$A$19,0))=0,#N/A,INDEX(FY1399_YTD_Actual!C$3:C$19,MATCH($B$80,FY1399_YTD_Actual!$A$3:$A$19,0))) -> 1745.768924 | AG72: =IF(INDEX(FY1399_YTD_Actual!D$3:D$19,MATCH($B$80,FY1399_YTD_Actual!$A$3:$A$19,0))=0,#N/A,INDEX(FY1399_YTD_Actual!D$3:D$19,MATCH($B$80,FY1399_YTD_Actual!$A$3:$A$19,0))) -> 1251.9192 | AH72: =IF(INDEX(FY1399_YTD_Actual!E$3:E$19,MATCH($B$80,FY1399_YTD_Actual!$A$3:$A$19,0))=0,#N/A,INDEX(FY1399_YTD_Actual!E$3:E$19,MATCH($B$80,FY1399_YTD_Actual!$A$3:$A$19,0))) -> 80.464446 | AI72: =IF(INDEX(FY1399_YTD_Actual!F$3:F$19,MATCH($B$80,FY1399_YTD_Actual!$A$3:$A$19,0))=0,#N/A,INDEX(FY1399_YTD_Actual!F$3:F$19,MATCH($B$80,FY1399_YTD_Actual!$A$3:$A$19,0))) -> 69.360511 | AJ72: =IF(INDEX(FY1399_YTD_Actual!G$3:G$19,MATCH($B$80,FY1399_YTD_Actual!$A$3:$A$19,0))=0,#N/A,INDEX(FY1399_YTD_Actual!G$3:G$19,MATCH($B$80,FY1399_YTD_Actual!$A$3:$A$19,0))) ->  | AK72: =IF(INDEX(FY1399_YTD_Actual!H$3:H$19,MATCH($B$80,FY1399_YTD_Actual!$A$3:$A$19,0))=0,#N/A,INDEX(FY1399_YTD_Actual!H$3:H$19,MATCH($B$80,FY1399_YTD_Actual!$A$3:$A$19,0))) ->  | AL72: =IF(INDEX(FY1399_YTD_Actual!I$3:I$19,MATCH($B$80,FY1399_YTD_Actual!$A$3:$A$19,0))=0,#N/A,INDEX(FY1399_YTD_Actual!I$3:I$19,MATCH($B$80,FY1399_YTD_Actual!$A$3:$A$19,0))) ->  | AM72: =IF(INDEX(FY1399_YTD_Actual!J$3:J$19,MATCH($B$80,FY1399_YTD_Actual!$A$3:$A$19,0))=0,#N/A,INDEX(FY1399_YTD_Actual!J$3:J$19,MATCH($B$80,FY1399_YTD_Actual!$A$3:$A$19,0))) ->  | AN72: =IF(INDEX(FY1399_YTD_Actual!K$3:K$19,MATCH($B$80,FY1399_YTD_Actual!$A$3:$A$19,0))=0,#N/A,INDEX(FY1399_YTD_Actual!K$3:K$19,MATCH($B$80,FY1399_YTD_Actual!$A$3:$A$19,0))) ->  | AO72: =IF(INDEX(FY1399_YTD_Actual!L$3:L$19,MATCH($B$80,FY1399_YTD_Actual!$A$3:$A$19,0))=0,#N/A,INDEX(FY1399_YTD_Actual!L$3:L$19,MATCH($B$80,FY1399_YTD_Actual!$A$3:$A$19,0))) ->  | AP72: =IF(INDEX(FY1399_YTD_Actual!M$3:M$19,MATCH($B$80,FY1399_YTD_Actual!$A$3:$A$19,0))=0,#N/A,INDEX(FY1399_YTD_Actual!M$3:M$19,MATCH($B$80,FY1399_YTD_Actual!$A$3:$A$19,0))) -> 
AC73: =AD73&$B$80 -> 2019 TargetNangarhar Customs Office | AD73: =Targets!$C$115 -> 2019 Target | AE73: =INDEX(Targets!C$3:C$41,MATCH(Charts!$AC73,Targets!$A$3:$A$41,0)) ->  | AF73: =INDEX(Targets!D$3:D$41,MATCH(Charts!$AC73,Targets!$A$3:$A$41,0)) ->  | AG73: =INDEX(Targets!E$3:E$41,MATCH(Charts!$AC73,Targets!$A$3:$A$41,0)) ->  | AH73: =INDEX(Targets!F$3:F$41,MATCH(Charts!$AC73,Targets!$A$3:$A$41,0)) ->  | AI73: =INDEX(Targets!G$3:G$41,MATCH(Charts!$AC73,Targets!$A$3:$A$41,0)) ->  | AJ73: =INDEX(Targets!H$3:H$41,MATCH(Charts!$AC73,Targets!$A$3:$A$41,0)) ->  | AK73: =INDEX(Targets!I$3:I$41,MATCH(Charts!$AC73,Targets!$A$3:$A$41,0)) ->  | AL73: =INDEX(Targets!J$3:J$41,MATCH(Charts!$AC73,Targets!$A$3:$A$41,0)) ->  | AM73: =INDEX(Targets!K$3:K$41,MATCH(Charts!$AC73,Targets!$A$3:$A$41,0)) ->  | AN73: =INDEX(Targets!L$3:L$41,MATCH(Charts!$AC73,Targets!$A$3:$A$41,0)) ->  | AO73: =INDEX(Targets!M$3:M$41,MATCH(Charts!$AC73,Targets!$A$3:$A$41,0)) ->  | AP73: =INDEX(Targets!N$3:N$41,MATCH(Charts!$AC73,Targets!$A$3:$A$41,0)) -> 
D74: Ministry of Finance | AC74: =AD74&$B$80 -> Previous Year performanceNangarhar Customs Office | AD74: =Targets!$C$116 -> Previous Year performance | AE74: =INDEX(Targets!C$3:C$41,MATCH(Charts!$AC74,Targets!$A$3:$A$41,0)) -> 1416.589154 | AF74: =INDEX(Targets!D$3:D$41,MATCH(Charts!$AC74,Targets!$A$3:$A$41,0)) -> 1338.922474 | AG74: =INDEX(Targets!E$3:E$41,MATCH(Charts!$AC74,Targets!$A$3:$A$41,0)) -> 1287.971107 | AH74: =INDEX(Targets!F$3:F$41,MATCH(Charts!$AC74,Targets!$A$3:$A$41,0)) -> 1511.775045 | AI74: =INDEX(Targets!G$3:G$41,MATCH(Charts!$AC74,Targets!$A$3:$A$41,0)) -> 1562.188742 | AJ74: =INDEX(Targets!H$3:H$41,MATCH(Charts!$AC74,Targets!$A$3:$A$41,0)) -> 1312.323695 | AK74: =INDEX(Targets!I$3:I$41,MATCH(Charts!$AC74,Targets!$A$3:$A$41,0)) -> 1806.793566 | AL74: =INDEX(Targets!J$3:J$41,MATCH(Charts!$AC74,Targets!$A$3:$A$41,0)) -> 1284.739882 | AM74: =INDEX(Targets!K$3:K$41,MATCH(Charts!$AC74,Targets!$A$3:$A$41,0)) -> 1376.20153 | AN74: =INDEX(Targets!L$3:L$41,MATCH(Charts!$AC74,Targets!$A$3:$A$41,0)) -> 1147.860979 | AO74: =INDEX(Targets!M$3:M$41,MATCH(Charts!$AC74,Targets!$A$3:$A$41,0)) -> 1763.156853 | AP74: =INDEX(Targets!N$3:N$41,MATCH(Charts!$AC74,Targets!$A$3:$A$41,0)) -> 1652.696173
AD75: Cummulative
AD76: =AD72 -> Actual | AE76: 1099.89838 | AF76: =SUM($AE72:AF72) -> 2845.667304 | AG76: =SUM($AE72:AG72) -> 4097.586504 | AH76: =SUM($AE72:AH72) -> 4178.05095 | AI76: =SUM($AE72:AI72) -> 4247.411461 | AJ76: =SUM($AE72:AJ72) ->  | AK76: =SUM($AE72:AK72) ->  | AL76: =SUM($AE72:AL72) ->  | AM76: =SUM($AE72:AM72) ->  | AN76: =SUM($AE72:AN72) ->  | AO76: =SUM($AE72:AO72) ->  | AP76: =SUM($AE72:AP72) ->  | AQ76: =AQ69 -> Flag if any | AR76: =IF((1-AE76/AE77)>$B$11,AE76,#N/A) -> 
A77: Select charts for page 2: | AD77: 2019 Target | AF77: =SUM($AE73:AF73) ->  | AG77: =SUM($AE73:AG73) ->  | AH77: =SUM($AE73:AH73) ->  | AI77: =SUM($AE73:AI73) ->  | AJ77: =SUM($AE73:AJ73) ->  | AK77: =SUM($AE73:AK73) ->  | AL77: =SUM($AE73:AL73) ->  | AM77: =SUM($AE73:AM73) ->  | AN77: =SUM($AE73:AN73) ->  | AO77: =SUM($AE73:AO73) ->  | AP77: =SUM($AE73:AP73) ->  | AQ77: Historical Year Performance | AR77: =INDEX(Targets!Q$70:Q$109,MATCH(Charts!$AQ78,Targets!$A$70:$A$109,0)) -> 913 | AS77: =INDEX(Targets!R$70:R$109,MATCH(Charts!$AQ78,Targets!$A$70:$A$109,0)) -> 2079 | AT77: =INDEX(Targets!S$70:S$109,MATCH(Charts!$AQ78,Targets!$A$70:$A$109,0)) -> 3213 | AU77: =INDEX(Targets!T$70:T$109,MATCH(Charts!$AQ78,Targets!$A$70:$A$109,0)) -> 4064 | AV77: =INDEX(Targets!U$70:U$109,MATCH(Charts!$AQ78,Targets!$A$70:$A$109,0)) -> 4945 | AW77: =INDEX(Targets!V$70:V$109,MATCH(Charts!$AQ78,Targets!$A$70:$A$109,0)) -> 5910 | AX77: =INDEX(Targets!W$70:W$109,MATCH(Charts!$AQ78,Targets!$A$70:$A$109,0)) -> 6901 | AY77: =INDEX(Targets!X$70:X$109,MATCH(Charts!$AQ78,Targets!$A$70:$A$109,0)) -> 8002 | AZ77: =INDEX(Targets!Y$70:Y$109,MATCH(Charts!$AQ78,Targets!$A$70:$A$109,0)) -> 9053 | BA77: =INDEX(Targets!Z$70:Z$109,MATCH(Charts!$AQ78,Targets!$A$70:$A$109,0)) -> 10125 | BB77: =INDEX(Targets!AA$70:AA$109,MATCH(Charts!$AQ78,Targets!$A$70:$A$109,0)) -> 11342 | BC77: =INDEX(Targets!AB$70:AB$109,MATCH(Charts!$AQ78,Targets!$A$70:$A$109,0)) -> 12334
A78: Figure 5: | B78: Customs Department | C78: =A78&" "&B78 -> Figure 5: Customs Department | AD78: Previous Year performance | AE78: 1416.589154 | AF78: =SUM($AE74:AF74) -> 2755.511628 | AG78: =SUM($AE74:AG74) -> 4043.482735 | AH78: =SUM($AE74:AH74) -> 5555.25778 | AI78: =SUM($AE74:AI74) -> 7117.446522 | AJ78: =SUM($AE74:AJ74) -> 8429.770217 | AK78: =SUM($AE74:AK74) -> 10236.56378 | AL78: =SUM($AE74:AL74) -> 11521.30367 | AM78: =SUM($AE74:AM74) -> 12897.5052 | AN78: =SUM($AE74:AN74) -> 14045.36617 | AO78: =SUM($AE74:AO74) -> 15808.52303 | AP78: =SUM($AE74:AP74) -> 17461.2192 | AQ78: =$B$10&$B$80 -> FY1395Nangarhar Customs Office
A79: Figure 6: | B79: Herat Customs Office | C79: =A79&" "&B79 -> Figure 6: Herat Customs Office | AC79: =A81 -> Figure 8: | AD79: =FY1399_YTD_Actual!$A$1 -> Actual | AE79: =IF(INDEX(FY1399_YTD_Actual!B$3:B$19,MATCH($B$81,FY1399_YTD_Actual!$A$3:$A$19,0))=0,#N/A,INDEX(FY1399_YTD_Actual!B$3:B$19,MATCH($B$81,FY1399_YTD_Actual!$A$3:$A$19,0))) -> 1121.217111 | AF79: =IF(INDEX(FY1399_YTD_Actual!C$3:C$19,MATCH($B$81,FY1399_YTD_Actual!$A$3:$A$19,0))=0,#N/A,INDEX(FY1399_YTD_Actual!C$3:C$19,MATCH($B$81,FY1399_YTD_Actual!$A$3:$A$19,0))) -> 857.827388 | AG79: =IF(INDEX(FY1399_YTD_Actual!D$3:D$19,MATCH($B$81,FY1399_YTD_Actual!$A$3:$A$19,0))=0,#N/A,INDEX(FY1399_YTD_Actual!D$3:D$19,MATCH($B$81,FY1399_YTD_Actual!$A$3:$A$19,0))) -> 875.704863 | AH79: =IF(INDEX(FY1399_YTD_Actual!E$3:E$19,MATCH($B$81,FY1399_YTD_Actual!$A$3:$A$19,0))=0,#N/A,INDEX(FY1399_YTD_Actual!E$3:E$19,MATCH($B$81,FY1399_YTD_Actual!$A$3:$A$19,0))) -> 1051.230011 | AI79: =IF(INDEX(FY1399_YTD_Actual!F$3:F$19,MATCH($B$81,FY1399_YTD_Actual!$A$3:$A$19,0))=0,#N/A,INDEX(FY1399_YTD_Actual!F$3:F$19,MATCH($B$81,FY1399_YTD_Actual!$A$3:$A$19,0))) -> 358.338396 | AJ79: =IF(INDEX(FY1399_YTD_Actual!G$3:G$19,MATCH($B$81,FY1399_YTD_Actual!$A$3:$A$19,0))=0,#N/A,INDEX(FY1399_YTD_Actual!G$3:G$19,MATCH($B$81,FY1399_YTD_Actual!$A$3:$A$19,0))) ->  | AK79: =IF(INDEX(FY1399_YTD_Actual!H$3:H$19,MATCH($B$81,FY1399_YTD_Actual!$A$3:$A$19,0))=0,#N/A,INDEX(FY1399_YTD_Actual!H$3:H$19,MATCH($B$81,FY1399_YTD_Actual!$A$3:$A$19,0))) ->  | AL79: =IF(INDEX(FY1399_YTD_Actual!I$3:I$19,MATCH($B$81,FY1399_YTD_Actual!$A$3:$A$19,0))=0,#N/A,INDEX(FY1399_YTD_Actual!I$3:I$19,MATCH($B$81,FY1399_YTD_Actual!$A$3:$A$19,0))) ->  | AM79: =IF(INDEX(FY1399_YTD_Actual!J$3:J$19,MATCH($B$81,FY1399_YTD_Actual!$A$3:$A$19,0))=0,#N/A,INDEX(FY1399_YTD_Actual!J$3:J$19,MATCH($B$81,FY1399_YTD_Actual!$A$3:$A$19,0))) ->  | AN79: =IF(INDEX(FY1399_YTD_Actual!K$3:K$19,MATCH($B$81,FY1399_YTD_Actual!$A$3:$A$19,0))=0,#N/A,INDEX(FY1399_YTD_Actual!K$3:K$19,MATCH($B$81,FY1399_YTD_Actual!$A$3:$A$19,0))) ->  | AO79: =IF(INDEX(FY1399_YTD_Actual!L$3:L$19,MATCH($B$81,FY1399_YTD_Actual!$A$3:$A$19,0))=0,#N/A,INDEX(FY1399_YTD_Actual!L$3:L$19,MATCH($B$81,FY1399_YTD_Actual!$A$3:$A$19,0))) ->  | AP79: =IF(INDEX(FY1399_YTD_Actual!M$3:M$19,MATCH($B$81,FY1399_YTD_Actual!$A$3:$A$19,0))=0,#N/A,INDEX(FY1399_YTD_Actual!M$3:M$19,MATCH($B$81,FY1399_YTD_Actual!$A$3:$A$19,0))) -> 
A80: Figure 7: | B80: Nangarhar Customs Office | C80: Figure 7: Nangarhar Customs Office | AC80: =AD80&$B$81 -> 2019 TargetBalkh Customs Office | AD80: =Targets!$C$115 -> 2019 Target | AE80: =INDEX(Targets!C$3:C$41,MATCH(Charts!$AC80,Targets!$A$3:$A$41,0)) ->  | AF80: =INDEX(Targets!D$3:D$41,MATCH(Charts!$AC80,Targets!$A$3:$A$41,0)) ->  | AG80: =INDEX(Targets!E$3:E$41,MATCH(Charts!$AC80,Targets!$A$3:$A$41,0)) ->  | AH80: =INDEX(Targets!F$3:F$41,MATCH(Charts!$AC80,Targets!$A$3:$A$41,0)) ->  | AI80: =INDEX(Targets!G$3:G$41,MATCH(Charts!$AC80,Targets!$A$3:$A$41,0)) ->  | AJ80: =INDEX(Targets!H$3:H$41,MATCH(Charts!$AC80,Targets!$A$3:$A$41,0)) ->  | AK80: =INDEX(Targets!I$3:I$41,MATCH(Charts!$AC80,Targets!$A$3:$A$41,0)) ->  | AL80: =INDEX(Targets!J$3:J$41,MATCH(Charts!$AC80,Targets!$A$3:$A$41,0)) ->  | AM80: =INDEX(Targets!K$3:K$41,MATCH(Charts!$AC80,Targets!$A$3:$A$41,0)) ->  | AN80: =INDEX(Targets!L$3:L$41,MATCH(Charts!$AC80,Targets!$A$3:$A$41,0)) ->  | AO80: =INDEX(Targets!M$3:M$41,MATCH(Charts!$AC80,Targets!$A$3:$A$41,0)) ->  | AP80: =INDEX(Targets!N$3:N$41,MATCH(Charts!$AC80,Targets!$A$3:$A$41,0)) -> 
A81: Figure 8: | B81: Balkh Customs Office | C81: Figure 8: Balkh Customs Office | AC81: =AD81&$B$81 -> Previous Year performanceBalkh Customs Office | AD81: =Targets!$C$116 -> Previous Year performance | AE81: =INDEX(Targets!C$3:C$41,MATCH(Charts!$AC81,Targets!$A$3:$A$41,0)) -> 1004.925283 | AF81: =INDEX(Targets!D$3:D$41,MATCH(Charts!$AC81,Targets!$A$3:$A$41,0)) -> 933.342203 | AG81: =INDEX(Targets!E$3:E$41,MATCH(Charts!$AC81,Targets!$A$3:$A$41,0)) -> 640.956549 | AH81: =INDEX(Targets!F$3:F$41,MATCH(Charts!$AC81,Targets!$A$3:$A$41,0)) -> 859.621079 | AI81: =INDEX(Targets!G$3:G$41,MATCH(Charts!$AC81,Targets!$A$3:$A$41,0)) -> 753.634922 | AJ81: =INDEX(Targets!H$3:H$41,MATCH(Charts!$AC81,Targets!$A$3:$A$41,0)) -> 826.192129 | AK81: =INDEX(Targets!I$3:I$41,MATCH(Charts!$AC81,Targets!$A$3:$A$41,0)) -> 686.919117 | AL81: =INDEX(Targets!J$3:J$41,MATCH(Charts!$AC81,Targets!$A$3:$A$41,0)) -> 692.389078 | AM81: =INDEX(Targets!K$3:K$41,MATCH(Charts!$AC81,Targets!$A$3:$A$41,0)) -> 810.139083 | AN81: =INDEX(Targets!L$3:L$41,MATCH(Charts!$AC81,Targets!$A$3:$A$41,0)) -> 710.695515 | AO81: =INDEX(Targets!M$3:M$41,MATCH(Charts!$AC81,Targets!$A$3:$A$41,0)) -> 1133.516472 | AP81: =INDEX(Targets!N$3:N$41,MATCH(Charts!$AC81,Targets!$A$3:$A$41,0)) -> 1252.346273
A82: Figure 9: | B82: Afghanistan Revenue Department | C82: Figure 9: Afghanistan Revenue Department | AD82: Cummulative
A83: Figure 10: | B83: LTO | C83: Figure 10: LTO | AD83: =AD79 -> Actual | AE83: 1121.217111 | AF83: =SUM($AE79:AF79) -> 1979.044499 | AG83: =SUM($AE79:AG79) -> 2854.749362 | AH83: =SUM($AE79:AH79) -> 3905.979373 | AI83: =SUM($AE79:AI79) -> 4264.317769 | AJ83: =SUM($AE79:AJ79) ->  | AK83: =SUM($AE79:AK79) ->  | AL83: =SUM($AE79:AL79) ->  | AM83: =SUM($AE79:AM79) ->  | AN83: =SUM($AE79:AN79) ->  | AO83: =SUM($AE79:AO79) ->  | AP83: =SUM($AE79:AP79) ->  | AQ83: =AQ76 -> Flag if any | AR83: =IF((1-AE83/AE84)>$B$11,AE83,#N/A) -> 
A84: Figure 11: | B84: MTO | C84: Figure 11: MTO | AD84: 2019 Target | AF84: =SUM($AE80:AF80) ->  | AG84: =SUM($AE80:AG80) ->  | AH84: =SUM($AE80:AH80) ->  | AI84: =SUM($AE80:AI80) ->  | AJ84: =SUM($AE80:AJ80) ->  | AK84: =SUM($AE80:AK80) ->  | AL84: =SUM($AE80:AL80) ->  | AM84: =SUM($AE80:AM80) ->  | AN84: =SUM($AE80:AN80) ->  | AO84: =SUM($AE80:AO80) ->  | AP84: =SUM($AE80:AP80) ->  | AQ84: Historical Year Performance | AR84: =INDEX(Targets!Q$70:Q$109,MATCH(Charts!$AQ85,Targets!$A$70:$A$109,0)) -> 783 | AS84: =INDEX(Targets!R$70:R$109,MATCH(Charts!$AQ85,Targets!$A$70:$A$109,0)) -> 1625 | AT84: =INDEX(Targets!S$70:S$109,MATCH(Charts!$AQ85,Targets!$A$70:$A$109,0)) -> 2388 | AU84: =INDEX(Targets!T$70:T$109,MATCH(Charts!$AQ85,Targets!$A$70:$A$109,0)) -> 3478 | AV84: =INDEX(Targets!U$70:U$109,MATCH(Charts!$AQ85,Targets!$A$70:$A$109,0)) -> 4293 | AW84: =INDEX(Targets!V$70:V$109,MATCH(Charts!$AQ85,Targets!$A$70:$A$109,0)) -> 5136 | AX84: =INDEX(Targets!W$70:W$109,MATCH(Charts!$AQ85,Targets!$A$70:$A$109,0)) -> 5863 | AY84: =INDEX(Targets!X$70:X$109,MATCH(Charts!$AQ85,Targets!$A$70:$A$109,0)) -> 6601 | AZ84: =INDEX(Targets!Y$70:Y$109,MATCH(Charts!$AQ85,Targets!$A$70:$A$109,0)) -> 7184 | BA84: =INDEX(Targets!Z$70:Z$109,MATCH(Charts!$AQ85,Targets!$A$70:$A$109,0)) -> 8004 | BB84: =INDEX(Targets!AA$70:AA$109,MATCH(Charts!$AQ85,Targets!$A$70:$A$109,0)) -> 9165 | BC84: =INDEX(Targets!AB$70:AB$109,MATCH(Charts!$AQ85,Targets!$A$70:$A$109,0)) -> 10229
A85: Figure 12: | B85: STO | C85: Figure 12: STO | AD85: Previous Year performance | AE85: 1004.925283 | AF85: =SUM($AE81:AF81) -> 1938.267486 | AG85: =SUM($AE81:AG81) -> 2579.224035 | AH85: =SUM($AE81:AH81) -> 3438.845114 | AI85: =SUM($AE81:AI81) -> 4192.480036 | AJ85: =SUM($AE81:AJ81) -> 5018.672165 | AK85: =SUM($AE81:AK81) -> 5705.591282 | AL85: =SUM($AE81:AL81) -> 6397.98036 | AM85: =SUM($AE81:AM81) -> 7208.119443 | AN85: =SUM($AE81:AN81) -> 7918.814958 | AO85: =SUM($AE81:AO81) -> 9052.33143 | AP85: =SUM($AE81:AP81) -> 10304.6777 | AQ85: =$B$10&$B$81 -> FY1395Balkh Customs Office
C86: =A83&" "&B83 -> Figure 10: LTO | AC86: =A82 -> Figure 9: | AD86: =FY1399_YTD_Actual!$A$1 -> Actual | AE86: =IF(INDEX(FY1399_YTD_Actual!B$3:B$19,MATCH($B$82,FY1399_YTD_Actual!$A$3:$A$19,0))=0,#N/A,INDEX(FY1399_YTD_Actual!B$3:B$19,MATCH($B$82,FY1399_YTD_Actual!$A$3:$A$19,0))) -> 6257.329698 | AF86: =IF(INDEX(FY1399_YTD_Actual!C$3:C$19,MATCH($B$82,FY1399_YTD_Actual!$A$3:$A$19,0))=0,#N/A,INDEX(FY1399_YTD_Actual!C$3:C$19,MATCH($B$82,FY1399_YTD_Actual!$A$3:$A$19,0))) -> 6177.412871 | AG86: =IF(INDEX(FY1399_YTD_Actual!D$3:D$19,MATCH($B$82,FY1399_YTD_Actual!$A$3:$A$19,0))=0,#N/A,INDEX(FY1399_YTD_Actual!D$3:D$19,MATCH($B$82,FY1399_YTD_Actual!$A$3:$A$19,0))) -> 7512.851577 | AH86: =IF(INDEX(FY1399_YTD_Actual!E$3:E$19,MATCH($B$82,FY1399_YTD_Actual!$A$3:$A$19,0))=0,#N/A,INDEX(FY1399_YTD_Actual!E$3:E$19,MATCH($B$82,FY1399_YTD_Actual!$A$3:$A$19,0))) -> 3698.268393 | AI86: =IF(INDEX(FY1399_YTD_Actual!F$3:F$19,MATCH($B$82,FY1399_YTD_Actual!$A$3:$A$19,0))=0,#N/A,INDEX(FY1399_YTD_Actual!F$3:F$19,MATCH($B$82,FY1399_YTD_Actual!$A$3:$A$19,0))) -> 269.2855176 | AJ86: =IF(INDEX(FY1399_YTD_Actual!G$3:G$19,MATCH($B$82,FY1399_YTD_Actual!$A$3:$A$19,0))=0,#N/A,INDEX(FY1399_YTD_Actual!G$3:G$19,MATCH($B$82,FY1399_YTD_Actual!$A$3:$A$19,0))) ->  | AK86: =IF(INDEX(FY1399_YTD_Actual!H$3:H$19,MATCH($B$82,FY1399_YTD_Actual!$A$3:$A$19,0))=0,#N/A,INDEX(FY1399_YTD_Actual!H$3:H$19,MATCH($B$82,FY1399_YTD_Actual!$A$3:$A$19,0))) ->  | AL86: =IF(INDEX(FY1399_YTD_Actual!I$3:I$19,MATCH($B$82,FY1399_YTD_Actual!$A$3:$A$19,0))=0,#N/A,INDEX(FY1399_YTD_Actual!I$3:I$19,MATCH($B$82,FY1399_YTD_Actual!$A$3:$A$19,0))) ->  | AM86: =IF(INDEX(FY1399_YTD_Actual!J$3:J$19,MATCH($B$82,FY1399_YTD_Actual!$A$3:$A$19,0))=0,#N/A,INDEX(FY1399_YTD_Actual!J$3:J$19,MATCH($B$82,FY1399_YTD_Actual!$A$3:$A$19,0))) ->  | AN86: =IF(INDEX(FY1399_YTD_Actual!K$3:K$19,MATCH($B$82,FY1399_YTD_Actual!$A$3:$A$19,0))=0,#N/A,INDEX(FY1399_YTD_Actual!K$3:K$19,MATCH($B$82,FY1399_YTD_Actual!$A$3:$A$19,0))) ->  | AO86: =IF(INDEX(FY1399_YTD_Actual!L$3:L$19,MATCH($B$82,FY1399_YTD_Actual!$A$3:$A$19,0))=0,#N/A,INDEX(FY1399_YTD_Actual!L$3:L$19,MATCH($B$82,FY1399_YTD_Actual!$A$3:$A$19,0))) ->  | AP86: =IF(INDEX(FY1399_YTD_Actual!M$3:M$19,MATCH($B$82,FY1399_YTD_Actual!$A$3:$A$19,0))=0,#N/A,INDEX(FY1399_YTD_Actual!M$3:M$19,MATCH($B$82,FY1399_YTD_Actual!$A$3:$A$19,0))) -> 
C87: Figure 11: MTO | AC87: =AD87&$B$82 -> 2019 TargetAfghanistan Revenue Department | AD87: =Targets!$C$115 -> 2019 Target | AE87: =INDEX(Targets!C$3:C$41,MATCH(Charts!$AC87,Targets!$A$3:$A$41,0)) ->  | AF87: =INDEX(Targets!D$3:D$41,MATCH(Charts!$AC87,Targets!$A$3:$A$41,0)) ->  | AG87: =INDEX(Targets!E$3:E$41,MATCH(Charts!$AC87,Targets!$A$3:$A$41,0)) ->  | AH87: =INDEX(Targets!F$3:F$41,MATCH(Charts!$AC87,Targets!$A$3:$A$41,0)) ->  | AI87: =INDEX(Targets!G$3:G$41,MATCH(Charts!$AC87,Targets!$A$3:$A$41,0)) ->  | AJ87: =INDEX(Targets!H$3:H$41,MATCH(Charts!$AC87,Targets!$A$3:$A$41,0)) ->  | AK87: =INDEX(Targets!I$3:I$41,MATCH(Charts!$AC87,Targets!$A$3:$A$41,0)) ->  | AL87: =INDEX(Targets!J$3:J$41,MATCH(Charts!$AC87,Targets!$A$3:$A$41,0)) ->  | AM87: =INDEX(Targets!K$3:K$41,MATCH(Charts!$AC87,Targets!$A$3:$A$41,0)) ->  | AN87: =INDEX(Targets!L$3:L$41,MATCH(Charts!$AC87,Targets!$A$3:$A$41,0)) ->  | AO87: =INDEX(Targets!M$3:M$41,MATCH(Charts!$AC87,Targets!$A$3:$A$41,0)) ->  | AP87: =INDEX(Targets!N$3:N$41,MATCH(Charts!$AC87,Targets!$A$3:$A$41,0)) -> 
C88: Figure 12: STO | AC88: =AD88&$B$82 -> Previous Year performanceAfghanistan Revenue Department | AD88: =Targets!$C$116 -> Previous Year performance | AE88: =INDEX(Targets!C$3:C$41,MATCH(Charts!$AC88,Targets!$A$3:$A$41,0)) -> 7315.003433 | AF88: =INDEX(Targets!D$3:D$41,MATCH(Charts!$AC88,Targets!$A$3:$A$41,0)) -> 6878.406756 | AG88: =INDEX(Targets!E$3:E$41,MATCH(Charts!$AC88,Targets!$A$3:$A$41,0)) -> 7910.767357 | AH88: =INDEX(Targets!F$3:F$41,MATCH(Charts!$AC88,Targets!$A$3:$A$41,0)) -> 9079.919878 | AI88: =INDEX(Targets!G$3:G$41,MATCH(Charts!$AC88,Targets!$A$3:$A$41,0)) -> 15066.0345 | AJ88: =INDEX(Targets!H$3:H$41,MATCH(Charts!$AC88,Targets!$A$3:$A$41,0)) -> 7396.469185 | AK88: =INDEX(Targets!I$3:I$41,MATCH(Charts!$AC88,Targets!$A$3:$A$41,0)) -> 8812.465612 | AL88: =INDEX(Targets!J$3:J$41,MATCH(Charts!$AC88,Targets!$A$3:$A$41,0)) -> 5791.424696 | AM88: =INDEX(Targets!K$3:K$41,MATCH(Charts!$AC88,Targets!$A$3:$A$41,0)) -> 8809.08191 | AN88: =INDEX(Targets!L$3:L$41,MATCH(Charts!$AC88,Targets!$A$3:$A$41,0)) -> 13985.44492 | AO88: =INDEX(Targets!M$3:M$41,MATCH(Charts!$AC88,Targets!$A$3:$A$41,0)) -> 8079.678536 | AP88: =INDEX(Targets!N$3:N$41,MATCH(Charts!$AC88,Targets!$A$3:$A$41,0)) -> 29109.49515
AD89: Cummulative
AD90: =AD86 -> Actual | AE90: 6257.329698 | AF90: =SUM($AE86:AF86) -> 12434.74257 | AG90: =SUM($AE86:AG86) -> 19947.59415 | AH90: =SUM($AE86:AH86) -> 23645.86254 | AI90: =SUM($AE86:AI86) -> 23915.14806 | AJ90: =SUM($AE86:AJ86) ->  | AK90: =SUM($AE86:AK86) ->  | AL90: =SUM($AE86:AL86) ->  | AM90: =SUM($AE86:AM86) ->  | AN90: =SUM($AE86:AN86) ->  | AO90: =SUM($AE86:AO86) ->  | AP90: =SUM($AE86:AP86) ->  | AQ90: =AQ83 -> Flag if any | AR90: =IF((1-AE90/AE91)>$B$11,AE90,#N/A) -> 
AD91: 2019 Target | AF91: =SUM($AE87:AF87) ->  | AG91: =SUM($AE87:AG87) ->  | AH91: =SUM($AE87:AH87) ->  | AI91: =SUM($AE87:AI87) ->  | AJ91: =SUM($AE87:AJ87) ->  | AK91: =SUM($AE87:AK87) ->  | AL91: =SUM($AE87:AL87) ->  | AM91: =SUM($AE87:AM87) ->  | AN91: =SUM($AE87:AN87) ->  | AO91: =SUM($AE87:AO87) ->  | AP91: =SUM($AE87:AP87) ->  | AQ91: Historical Year Performance | AR91: =INDEX(Targets!Q$70:Q$109,MATCH(Charts!$AQ92,Targets!$A$70:$A$109,0)) -> 5187 | AS91: =INDEX(Targets!R$70:R$109,MATCH(Charts!$AQ92,Targets!$A$70:$A$109,0)) -> 9913 | AT91: =INDEX(Targets!S$70:S$109,MATCH(Charts!$AQ92,Targets!$A$70:$A$109,0)) -> 15851 | AU91: =INDEX(Targets!T$70:T$109,MATCH(Charts!$AQ92,Targets!$A$70:$A$109,0)) -> 23640 | AV91: =INDEX(Targets!U$70:U$109,MATCH(Charts!$AQ92,Targets!$A$70:$A$109,0)) -> 29665 | AW91: =INDEX(Targets!V$70:V$109,MATCH(Charts!$AQ92,Targets!$A$70:$A$109,0)) -> 47846 | AX91: =INDEX(Targets!W$70:W$109,MATCH(Charts!$AQ92,Targets!$A$70:$A$109,0)) -> 54704 | AY91: =INDEX(Targets!X$70:X$109,MATCH(Charts!$AQ92,Targets!$A$70:$A$109,0)) -> 62845 | AZ91: =INDEX(Targets!Y$70:Y$109,MATCH(Charts!$AQ92,Targets!$A$70:$A$109,0)) -> 67697 | BA91: =INDEX(Targets!Z$70:Z$109,MATCH(Charts!$AQ92,Targets!$A$70:$A$109,0)) -> 73278 | BB91: =INDEX(Targets!AA$70:AA$109,MATCH(Charts!$AQ92,Targets!$A$70:$A$109,0)) -> 80973 | BC91: =INDEX(Targets!AB$70:AB$109,MATCH(Charts!$AQ92,Targets!$A$70:$A$109,0)) -> 88183
AD92: Previous Year performance | AE92: 7315.003433 | AF92: =SUM($AE88:AF88) -> 14193.41019 | AG92: =SUM($AE88:AG88) -> 22104.17755 | AH92: =SUM($AE88:AH88) -> 31184.09742 | AI92: =SUM($AE88:AI88) -> 46250.13193 | AJ92: =SUM($AE88:AJ88) -> 53646.60111 | AK92: =SUM($AE88:AK88) -> 62459.06672 | AL92: =SUM($AE88:AL88) -> 68250.49142 | AM92: =SUM($AE88:AM88) -> 77059.57333 | AN92: =SUM($AE88:AN88) -> 91045.01825 | AO92: =SUM($AE88:AO88) -> 99124.69679 | AP92: =SUM($AE88:AP88) -> 128234.1919 | AQ92: =$B$10&$B$82 -> FY1395Afghanistan Revenue Department
AC93: =A83 -> Figure 10: | AD93: =FY1399_YTD_Actual!$A$1 -> Actual | AE93: =IF(INDEX(FY1399_YTD_Actual!B$3:B$19,MATCH($B$83,FY1399_YTD_Actual!$A$3:$A$19,0))=0,#N/A,INDEX(FY1399_YTD_Actual!B$3:B$19,MATCH($B$83,FY1399_YTD_Actual!$A$3:$A$19,0))) -> 2143.597224 | AF93: =IF(INDEX(FY1399_YTD_Actual!C$3:C$19,MATCH($B$83,FY1399_YTD_Actual!$A$3:$A$19,0))=0,#N/A,INDEX(FY1399_YTD_Actual!C$3:C$19,MATCH($B$83,FY1399_YTD_Actual!$A$3:$A$19,0))) -> 1277.948313 | AG93: =IF(INDEX(FY1399_YTD_Actual!D$3:D$19,MATCH($B$83,FY1399_YTD_Actual!$A$3:$A$19,0))=0,#N/A,INDEX(FY1399_YTD_Actual!D$3:D$19,MATCH($B$83,FY1399_YTD_Actual!$A$3:$A$19,0))) -> 2177.542371 | AH93: =IF(INDEX(FY1399_YTD_Actual!E$3:E$19,MATCH($B$83,FY1399_YTD_Actual!$A$3:$A$19,0))=0,#N/A,INDEX(FY1399_YTD_Actual!E$3:E$19,MATCH($B$83,FY1399_YTD_Actual!$A$3:$A$19,0))) -> 1700.045218 | AI93: =IF(INDEX(FY1399_YTD_Actual!F$3:F$19,MATCH($B$83,FY1399_YTD_Actual!$A$3:$A$19,0))=0,#N/A,INDEX(FY1399_YTD_Actual!F$3:F$19,MATCH($B$83,FY1399_YTD_Actual!$A$3:$A$19,0))) -> 3.33154724 | AJ93: =IF(INDEX(FY1399_YTD_Actual!G$3:G$19,MATCH($B$83,FY1399_YTD_Actual!$A$3:$A$19,0))=0,#N/A,INDEX(FY1399_YTD_Actual!G$3:G$19,MATCH($B$83,FY1399_YTD_Actual!$A$3:$A$19,0))) ->  | AK93: =IF(INDEX(FY1399_YTD_Actual!H$3:H$19,MATCH($B$83,FY1399_YTD_Actual!$A$3:$A$19,0))=0,#N/A,INDEX(FY1399_YTD_Actual!H$3:H$19,MATCH($B$83,FY1399_YTD_Actual!$A$3:$A$19,0))) ->  | AL93: =IF(INDEX(FY1399_YTD_Actual!I$3:I$19,MATCH($B$83,FY1399_YTD_Actual!$A$3:$A$19,0))=0,#N/A,INDEX(FY1399_YTD_Actual!I$3:I$19,MATCH($B$83,FY1399_YTD_Actual!$A$3:$A$19,0))) ->  | AM93: =IF(INDEX(FY1399_YTD_Actual!J$3:J$19,MATCH($B$83,FY1399_YTD_Actual!$A$3:$A$19,0))=0,#N/A,INDEX(FY1399_YTD_Actual!J$3:J$19,MATCH($B$83,FY1399_YTD_Actual!$A$3:$A$19,0))) ->  | AN93: =IF(INDEX(FY1399_YTD_Actual!K$3:K$19,MATCH($B$83,FY1399_YTD_Actual!$A$3:$A$19,0))=0,#N/A,INDEX(FY1399_YTD_Actual!K$3:K$19,MATCH($B$83,FY1399_YTD_Actual!$A$3:$A$19,0))) ->  | AO93: =IF(INDEX(FY1399_YTD_Actual!L$3:L$19,MATCH($B$83,FY1399_YTD_Actual!$A$3:$A$19,0))=0,#N/A,INDEX(FY1399_YTD_Actual!L$3:L$19,MATCH($B$83,FY1399_YTD_Actual!$A$3:$A$19,0))) ->  | AP93: =IF(INDEX(FY1399_YTD_Actual!M$3:M$19,MATCH($B$83,FY1399_YTD_Actual!$A$3:$A$19,0))=0,#N/A,INDEX(FY1399_YTD_Actual!M$3:M$19,MATCH($B$83,FY1399_YTD_Actual!$A$3:$A$19,0))) -> 
AC94: =AD94&$B$83 -> 2019 TargetLTO | AD94: =Targets!$C$115 -> 2019 Target | AE94: =INDEX(Targets!C$3:C$41,MATCH(Charts!$AC94,Targets!$A$3:$A$41,0)) ->  | AF94: =INDEX(Targets!D$3:D$41,MATCH(Charts!$AC94,Targets!$A$3:$A$41,0)) ->  | AG94: =INDEX(Targets!E$3:E$41,MATCH(Charts!$AC94,Targets!$A$3:$A$41,0)) ->  | AH94: =INDEX(Targets!F$3:F$41,MATCH(Charts!$AC94,Targets!$A$3:$A$41,0)) ->  | AI94: =INDEX(Targets!G$3:G$41,MATCH(Charts!$AC94,Targets!$A$3:$A$41,0)) ->  | AJ94: =INDEX(Targets!H$3:H$41,MATCH(Charts!$AC94,Targets!$A$3:$A$41,0)) ->  | AK94: =INDEX(Targets!I$3:I$41,MATCH(Charts!$AC94,Targets!$A$3:$A$41,0)) ->  | AL94: =INDEX(Targets!J$3:J$41,MATCH(Charts!$AC94,Targets!$A$3:$A$41,0)) ->  | AM94: =INDEX(Targets!K$3:K$41,MATCH(Charts!$AC94,Targets!$A$3:$A$41,0)) ->  | AN94: =INDEX(Targets!L$3:L$41,MATCH(Charts!$AC94,Targets!$A$3:$A$41,0)) ->  | AO94: =INDEX(Targets!M$3:M$41,MATCH(Charts!$AC94,Targets!$A$3:$A$41,0)) ->  | AP94: =INDEX(Targets!N$3:N$41,MATCH(Charts!$AC94,Targets!$A$3:$A$41,0)) -> 
AC95: =AD95&$B$83 -> Previous Year performanceLTO | AD95: =Targets!$C$116 -> Previous Year performance | AE95: =INDEX(Targets!C$3:C$41,MATCH(Charts!$AC95,Targets!$A$3:$A$41,0)) -> 2756.84631 | AF95: =INDEX(Targets!D$3:D$41,MATCH(Charts!$AC95,Targets!$A$3:$A$41,0)) -> 1665.143238 | AG95: =INDEX(Targets!E$3:E$41,MATCH(Charts!$AC95,Targets!$A$3:$A$41,0)) -> 1709.504585 | AH95: =INDEX(Targets!F$3:F$41,MATCH(Charts!$AC95,Targets!$A$3:$A$41,0)) -> 2889.151351 | AI95: =INDEX(Targets!G$3:G$41,MATCH(Charts!$AC95,Targets!$A$3:$A$41,0)) -> 1401.997677 | AJ95: =INDEX(Targets!H$3:H$41,MATCH(Charts!$AC95,Targets!$A$3:$A$41,0)) -> 2559.948049 | AK95: =INDEX(Targets!I$3:I$41,MATCH(Charts!$AC95,Targets!$A$3:$A$41,0)) -> 2486.023123 | AL95: =INDEX(Targets!J$3:J$41,MATCH(Charts!$AC95,Targets!$A$3:$A$41,0)) -> 941.0177563 | AM95: =INDEX(Targets!K$3:K$41,MATCH(Charts!$AC95,Targets!$A$3:$A$41,0)) -> 2262.484653 | AN95: =INDEX(Targets!L$3:L$41,MATCH(Charts!$AC95,Targets!$A$3:$A$41,0)) -> 4131.951392 | AO95: =INDEX(Targets!M$3:M$41,MATCH(Charts!$AC95,Targets!$A$3:$A$41,0)) -> 2124.499091 | AP95: =INDEX(Targets!N$3:N$41,MATCH(Charts!$AC95,Targets!$A$3:$A$41,0)) -> 2120.993447
AD96: Cummulative
AD97: =AD93 -> Actual | AE97: 2143.597224 | AF97: =SUM($AE93:AF93) -> 3421.545536 | AG97: =SUM($AE93:AG93) -> 5599.087907 | AH97: =SUM($AE93:AH93) -> 7299.133125 | AI97: =SUM($AE93:AI93) -> 7302.464672 | AJ97: =SUM($AE93:AJ93) ->  | AK97: =SUM($AE93:AK93) ->  | AL97: =SUM($AE93:AL93) ->  | AM97: =SUM($AE93:AM93) ->  | AN97: =SUM($AE93:AN93) ->  | AO97: =SUM($AE93:AO93) ->  | AP97: =SUM($AE93:AP93) ->  | AQ97: =AQ90 -> Flag if any | AR97: =IF((1-AE97/AE98)>$B$11,AE97,#N/A) -> 
AD98: 2019 Target | AF98: =SUM($AE94:AF94) ->  | AG98: =SUM($AE94:AG94) ->  | AH98: =SUM($AE94:AH94) ->  | AI98: =SUM($AE94:AI94) ->  | AJ98: =SUM($AE94:AJ94) ->  | AK98: =SUM($AE94:AK94) ->  | AL98: =SUM($AE94:AL94) ->  | AM98: =SUM($AE94:AM94) ->  | AN98: =SUM($AE94:AN94) ->  | AO98: =SUM($AE94:AO94) ->  | AP98: =SUM($AE94:AP94) ->  | AQ98: Historical Year Performance | AR98: =INDEX(Targets!Q$70:Q$109,MATCH(Charts!$AQ99,Targets!$A$70:$A$109,0)) -> 2015 | AS98: =INDEX(Targets!R$70:R$109,MATCH(Charts!$AQ99,Targets!$A$70:$A$109,0)) -> 2795 | AT98: =INDEX(Targets!S$70:S$109,MATCH(Charts!$AQ99,Targets!$A$70:$A$109,0)) -> 3682 | AU98: =INDEX(Targets!T$70:T$109,MATCH(Charts!$AQ99,Targets!$A$70:$A$109,0)) -> 5951 | AV98: =INDEX(Targets!U$70:U$109,MATCH(Charts!$AQ99,Targets!$A$70:$A$109,0)) -> 7239 | AW98: =INDEX(Targets!V$70:V$109,MATCH(Charts!$AQ99,Targets!$A$70:$A$109,0)) -> 8203 | AX98: =INDEX(Targets!W$70:W$109,MATCH(Charts!$AQ99,Targets!$A$70:$A$109,0)) -> 10332 | AY98: =INDEX(Targets!X$70:X$109,MATCH(Charts!$AQ99,Targets!$A$70:$A$109,0)) -> 11960 | AZ98: =INDEX(Targets!Y$70:Y$109,MATCH(Charts!$AQ99,Targets!$A$70:$A$109,0)) -> 12642 | BA98: =INDEX(Targets!Z$70:Z$109,MATCH(Charts!$AQ99,Targets!$A$70:$A$109,0)) -> 15237 | BB98: =INDEX(Targets!AA$70:AA$109,MATCH(Charts!$AQ99,Targets!$A$70:$A$109,0)) -> 16722 | BC98: =INDEX(Targets!AB$70:AB$109,MATCH(Charts!$AQ99,Targets!$A$70:$A$109,0)) -> 18363
AD99: Previous Year performance | AE99: 2756.84631 | AF99: =SUM($AE95:AF95) -> 4421.989547 | AG99: =SUM($AE95:AG95) -> 6131.494132 | AH99: =SUM($AE95:AH95) -> 9020.645483 | AI99: =SUM($AE95:AI95) -> 10422.64316 | AJ99: =SUM($AE95:AJ95) -> 12982.59121 | AK99: =SUM($AE95:AK95) -> 15468.61433 | AL99: =SUM($AE95:AL95) -> 16409.63209 | AM99: =SUM($AE95:AM95) -> 18672.11674 | AN99: =SUM($AE95:AN95) -> 22804.06813 | AO99: =SUM($AE95:AO95) -> 24928.56722 | AP99: =SUM($AE95:AP95) -> 27049.56067 | AQ99: =$B$10&$B$83 -> FY1395LTO
AC100: =A84 -> Figure 11: | AD100: =FY1399_YTD_Actual!$A$1 -> Actual | AE100: =IF(INDEX(FY1399_YTD_Actual!B$3:B$19,MATCH($B$84,FY1399_YTD_Actual!$A$3:$A$19,0))=0,#N/A,INDEX(FY1399_YTD_Actual!B$3:B$19,MATCH($B$84,FY1399_YTD_Actual!$A$3:$A$19,0))) -> 950.9558282 | AF100: =IF(INDEX(FY1399_YTD_Actual!C$3:C$19,MATCH($B$84,FY1399_YTD_Actual!$A$3:$A$19,0))=0,#N/A,INDEX(FY1399_YTD_Actual!C$3:C$19,MATCH($B$84,FY1399_YTD_Actual!$A$3:$A$19,0))) -> 1118.014286 | AG100: =IF(INDEX(FY1399_YTD_Actual!D$3:D$19,MATCH($B$84,FY1399_YTD_Actual!$A$3:$A$19,0))=0,#N/A,INDEX(FY1399_YTD_Actual!D$3:D$19,MATCH($B$84,FY1399_YTD_Actual!$A$3:$A$19,0))) -> 1294.890603 | AH100: =IF(INDEX(FY1399_YTD_Actual!E$3:E$19,MATCH($B$84,FY1399_YTD_Actual!$A$3:$A$19,0))=0,#N/A,INDEX(FY1399_YTD_Actual!E$3:E$19,MATCH($B$84,FY1399_YTD_Actual!$A$3:$A$19,0))) -> 1024.720891 | AI100: =IF(INDEX(FY1399_YTD_Actual!F$3:F$19,MATCH($B$84,FY1399_YTD_Actual!$A$3:$A$19,0))=0,#N/A,INDEX(FY1399_YTD_Actual!F$3:F$19,MATCH($B$84,FY1399_YTD_Actual!$A$3:$A$19,0))) -> 164.9808194 | AJ100: =IF(INDEX(FY1399_YTD_Actual!G$3:G$19,MATCH($B$84,FY1399_YTD_Actual!$A$3:$A$19,0))=0,#N/A,INDEX(FY1399_YTD_Actual!G$3:G$19,MATCH($B$84,FY1399_YTD_Actual!$A$3:$A$19,0))) ->  | AK100: =IF(INDEX(FY1399_YTD_Actual!H$3:H$19,MATCH($B$84,FY1399_YTD_Actual!$A$3:$A$19,0))=0,#N/A,INDEX(FY1399_YTD_Actual!H$3:H$19,MATCH($B$84,FY1399_YTD_Actual!$A$3:$A$19,0))) ->  | AL100: =IF(INDEX(FY1399_YTD_Actual!I$3:I$19,MATCH($B$84,FY1399_YTD_Actual!$A$3:$A$19,0))=0,#N/A,INDEX(FY1399_YTD_Actual!I$3:I$19,MATCH($B$84,FY1399_YTD_Actual!$A$3:$A$19,0))) ->  | AM100: =IF(INDEX(FY1399_YTD_Actual!J$3:J$19,MATCH($B$84,FY1399_YTD_Actual!$A$3:$A$19,0))=0,#N/A,INDEX(FY1399_YTD_Actual!J$3:J$19,MATCH($B$84,FY1399_YTD_Actual!$A$3:$A$19,0))) ->  | AN100: =IF(INDEX(FY1399_YTD_Actual!K$3:K$19,MATCH($B$84,FY1399_YTD_Actual!$A$3:$A$19,0))=0,#N/A,INDEX(FY1399_YTD_Actual!K$3:K$19,MATCH($B$84,FY1399_YTD_Actual!$A$3:$A$19,0))) ->  | AO100: =IF(INDEX(FY1399_YTD_Actual!L$3:L$19,MATCH($B$84,FY1399_YTD_Actual!$A$3:$A$19,0))=0,#N/A,INDEX(FY1399_YTD_Actual!L$3:L$19,MATCH($B$84,FY1399_YTD_Actual!$A$3:$A$19,0))) ->  | AP100: =IF(INDEX(FY1399_YTD_Actual!M$3:M$19,MATCH($B$84,FY1399_YTD_Actual!$A$3:$A$19,0))=0,#N/A,INDEX(FY1399_YTD_Actual!M$3:M$19,MATCH($B$84,FY1399_YTD_Actual!$A$3:$A$19,0))) -> 
AC101: =AD101&$B$84 -> 2019 TargetMTO | AD101: =Targets!$C$115 -> 2019 Target | AE101: =INDEX(Targets!C$3:C$41,MATCH(Charts!$AC101,Targets!$A$3:$A$41,0)) ->  | AF101: =INDEX(Targets!D$3:D$41,MATCH(Charts!$AC101,Targets!$A$3:$A$41,0)) ->  | AG101: =INDEX(Targets!E$3:E$41,MATCH(Charts!$AC101,Targets!$A$3:$A$41,0)) ->  | AH101: =INDEX(Targets!F$3:F$41,MATCH(Charts!$AC101,Targets!$A$3:$A$41,0)) ->  | AI101: =INDEX(Targets!G$3:G$41,MATCH(Charts!$AC101,Targets!$A$3:$A$41,0)) ->  | AJ101: =INDEX(Targets!H$3:H$41,MATCH(Charts!$AC101,Targets!$A$3:$A$41,0)) ->  | AK101: =INDEX(Targets!I$3:I$41,MATCH(Charts!$AC101,Targets!$A$3:$A$41,0)) ->  | AL101: =INDEX(Targets!J$3:J$41,MATCH(Charts!$AC101,Targets!$A$3:$A$41,0)) ->  | AM101: =INDEX(Targets!K$3:K$41,MATCH(Charts!$AC101,Targets!$A$3:$A$41,0)) ->  | AN101: =INDEX(Targets!L$3:L$41,MATCH(Charts!$AC101,Targets!$A$3:$A$41,0)) ->  | AO101: =INDEX(Targets!M$3:M$41,MATCH(Charts!$AC101,Targets!$A$3:$A$41,0)) ->  | AP101: =INDEX(Targets!N$3:N$41,MATCH(Charts!$AC101,Targets!$A$3:$A$41,0)) -> 
AC102: =AD102&$B$84 -> Previous Year performanceMTO | AD102: =Targets!$C$116 -> Previous Year performance | AE102: =INDEX(Targets!C$3:C$41,MATCH(Charts!$AC102,Targets!$A$3:$A$41,0)) -> 1006.731279 | AF102: =INDEX(Targets!D$3:D$41,MATCH(Charts!$AC102,Targets!$A$3:$A$41,0)) -> 1047.719179 | AG102: =INDEX(Targets!E$3:E$41,MATCH(Charts!$AC102,Targets!$A$3:$A$41,0)) -> 1358.678984 | AH102: =INDEX(Targets!F$3:F$41,MATCH(Charts!$AC102,Targets!$A$3:$A$41,0)) -> 1447.368569 | AI102: =INDEX(Targets!G$3:G$41,MATCH(Charts!$AC102,Targets!$A$3:$A$41,0)) -> 1125.34004 | AJ102: =INDEX(Targets!H$3:H$41,MATCH(Charts!$AC102,Targets!$A$3:$A$41,0)) -> 1410.218924 | AK102: =INDEX(Targets!I$3:I$41,MATCH(Charts!$AC102,Targets!$A$3:$A$41,0)) -> 1460.951785 | AL102: =INDEX(Targets!J$3:J$41,MATCH(Charts!$AC102,Targets!$A$3:$A$41,0)) -> 1112.731251 | AM102: =INDEX(Targets!K$3:K$41,MATCH(Charts!$AC102,Targets!$A$3:$A$41,0)) -> 899.7011214 | AN102: =INDEX(Targets!L$3:L$41,MATCH(Charts!$AC102,Targets!$A$3:$A$41,0)) -> 1575.163392 | AO102: =INDEX(Targets!M$3:M$41,MATCH(Charts!$AC102,Targets!$A$3:$A$41,0)) -> 1155.06472 | AP102: =INDEX(Targets!N$3:N$41,MATCH(Charts!$AC102,Targets!$A$3:$A$41,0)) -> 2265.199704
AD103: Cummulative
AD104: =AD100 -> Actual | AE104: 950.9558282 | AF104: =SUM($AE100:AF100) -> 2068.970114 | AG104: =SUM($AE100:AG100) -> 3363.860717 | AH104: =SUM($AE100:AH100) -> 4388.581608 | AI104: =SUM($AE100:AI100) -> 4553.562427 | AJ104: =SUM($AE100:AJ100) ->  | AK104: =SUM($AE100:AK100) ->  | AL104: =SUM($AE100:AL100) ->  | AM104: =SUM($AE100:AM100) ->  | AN104: =SUM($AE100:AN100) ->  | AO104: =SUM($AE100:AO100) ->  | AP104: =SUM($AE100:AP100) ->  | AQ104: =AQ97 -> Flag if any | AR104: =IF((1-AE104/AE105)>$B$11,AE104,#N/A) -> 
AD105: 2019 Target | AF105: =SUM($AE101:AF101) ->  | AG105: =SUM($AE101:AG101) ->  | AH105: =SUM($AE101:AH101) ->  | AI105: =SUM($AE101:AI101) ->  | AJ105: =SUM($AE101:AJ101) ->  | AK105: =SUM($AE101:AK101) ->  | AL105: =SUM($AE101:AL101) ->  | AM105: =SUM($AE101:AM101) ->  | AN105: =SUM($AE101:AN101) ->  | AO105: =SUM($AE101:AO101) ->  | AP105: =SUM($AE101:AP101) ->  | AQ105: Historical Year Performance | AR105: =INDEX(Targets!Q$70:Q$109,MATCH(Charts!$AQ106,Targets!$A$70:$A$109,0)) -> 703 | AS105: =INDEX(Targets!R$70:R$109,MATCH(Charts!$AQ106,Targets!$A$70:$A$109,0)) -> 1492 | AT105: =INDEX(Targets!S$70:S$109,MATCH(Charts!$AQ106,Targets!$A$70:$A$109,0)) -> 2435 | AU105: =INDEX(Targets!T$70:T$109,MATCH(Charts!$AQ106,Targets!$A$70:$A$109,0)) -> 3606 | AV105: =INDEX(Targets!U$70:U$109,MATCH(Charts!$AQ106,Targets!$A$70:$A$109,0)) -> 4545 | AW105: =INDEX(Targets!V$70:V$109,MATCH(Charts!$AQ106,Targets!$A$70:$A$109,0)) -> 5573 | AX105: =INDEX(Targets!W$70:W$109,MATCH(Charts!$AQ106,Targets!$A$70:$A$109,0)) -> 6796 | AY105: =INDEX(Targets!X$70:X$109,MATCH(Charts!$AQ106,Targets!$A$70:$A$109,0)) -> 7977 | AZ105: =INDEX(Targets!Y$70:Y$109,MATCH(Charts!$AQ106,Targets!$A$70:$A$109,0)) -> 8889 | BA105: =INDEX(Targets!Z$70:Z$109,MATCH(Charts!$AQ106,Targets!$A$70:$A$109,0)) -> 10070 | BB105: =INDEX(Targets!AA$70:AA$109,MATCH(Charts!$AQ106,Targets!$A$70:$A$109,0)) -> 11443 | BC105: =INDEX(Targets!AB$70:AB$109,MATCH(Charts!$AQ106,Targets!$A$70:$A$109,0)) -> 13089
AD106: Previous Year performance | AE106: 1006.731279 | AF106: =SUM($AE102:AF102) -> 2054.450459 | AG106: =SUM($AE102:AG102) -> 3413.129442 | AH106: =SUM($AE102:AH102) -> 4860.498011 | AI106: =SUM($AE102:AI102) -> 5985.838051 | AJ106: =SUM($AE102:AJ102) -> 7396.056975 | AK106: =SUM($AE102:AK102) -> 8857.00876 | AL106: =SUM($AE102:AL102) -> 9969.740011 | AM106: =SUM($AE102:AM102) -> 10869.44113 | AN106: =SUM($AE102:AN102) -> 12444.60452 | AO106: =SUM($AE102:AO102) -> 13599.66924 | AP106: =SUM($AE102:AP102) -> 15864.86895 | AQ106: =$B$10&$B$84 -> FY1395MTO
AC107: =A85 -> Figure 12: | AD107: =FY1399_YTD_Actual!$A$1 -> Actual | AE107: =IF(INDEX(FY1399_YTD_Actual!B$3:B$19,MATCH($B$85,FY1399_YTD_Actual!$A$3:$A$19,0))=0,#N/A,INDEX(FY1399_YTD_Actual!B$3:B$19,MATCH($B$85,FY1399_YTD_Actual!$A$3:$A$19,0))) -> 203.287436 | AF107: =IF(INDEX(FY1399_YTD_Actual!C$3:C$19,MATCH($B$85,FY1399_YTD_Actual!$A$3:$A$19,0))=0,#N/A,INDEX(FY1399_YTD_Actual!C$3:C$19,MATCH($B$85,FY1399_YTD_Actual!$A$3:$A$19,0))) -> 184.758696 | AG107: =IF(INDEX(FY1399_YTD_Actual!D$3:D$19,MATCH($B$85,FY1399_YTD_Actual!$A$3:$A$19,0))=0,#N/A,INDEX(FY1399_YTD_Actual!D$3:D$19,MATCH($B$85,FY1399_YTD_Actual!$A$3:$A$19,0))) -> 534.974656 | AH107: =IF(INDEX(FY1399_YTD_Actual!E$3:E$19,MATCH($B$85,FY1399_YTD_Actual!$A$3:$A$19,0))=0,#N/A,INDEX(FY1399_YTD_Actual!E$3:E$19,MATCH($B$85,FY1399_YTD_Actual!$A$3:$A$19,0))) -> 170.86934 | AI107: =IF(INDEX(FY1399_YTD_Actual!F$3:F$19,MATCH($B$85,FY1399_YTD_Actual!$A$3:$A$19,0))=0,#N/A,INDEX(FY1399_YTD_Actual!F$3:F$19,MATCH($B$85,FY1399_YTD_Actual!$A$3:$A$19,0))) ->  | AJ107: =IF(INDEX(FY1399_YTD_Actual!G$3:G$19,MATCH($B$85,FY1399_YTD_Actual!$A$3:$A$19,0))=0,#N/A,INDEX(FY1399_YTD_Actual!G$3:G$19,MATCH($B$85,FY1399_YTD_Actual!$A$3:$A$19,0))) ->  | AK107: =IF(INDEX(FY1399_YTD_Actual!H$3:H$19,MATCH($B$85,FY1399_YTD_Actual!$A$3:$A$19,0))=0,#N/A,INDEX(FY1399_YTD_Actual!H$3:H$19,MATCH($B$85,FY1399_YTD_Actual!$A$3:$A$19,0))) ->  | AL107: =IF(INDEX(FY1399_YTD_Actual!I$3:I$19,MATCH($B$85,FY1399_YTD_Actual!$A$3:$A$19,0))=0,#N/A,INDEX(FY1399_YTD_Actual!I$3:I$19,MATCH($B$85,FY1399_YTD_Actual!$A$3:$A$19,0))) ->  | AM107: =IF(INDEX(FY1399_YTD_Actual!J$3:J$19,MATCH($B$85,FY1399_YTD_Actual!$A$3:$A$19,0))=0,#N/A,INDEX(FY1399_YTD_Actual!J$3:J$19,MATCH($B$85,FY1399_YTD_Actual!$A$3:$A$19,0))) ->  | AN107: =IF(INDEX(FY1399_YTD_Actual!K$3:K$19,MATCH($B$85,FY1399_YTD_Actual!$A$3:$A$19,0))=0,#N/A,INDEX(FY1399_YTD_Actual!K$3:K$19,MATCH($B$85,FY1399_YTD_Actual!$A$3:$A$19,0))) ->  | AO107: =IF(INDEX(FY1399_YTD_Actual!L$3:L$19,MATCH($B$85,FY1399_YTD_Actual!$A$3:$A$19,0))=0,#N/A,INDEX(FY1399_YTD_Actual!L$3:L$19,MATCH($B$85,FY1399_YTD_Actual!$A$3:$A$19,0))) ->  | AP107: =IF(INDEX(FY1399_YTD_Actual!M$3:M$19,MATCH($B$85,FY1399_YTD_Actual!$A$3:$A$19,0))=0,#N/A,INDEX(FY1399_YTD_Actual!M$3:M$19,MATCH($B$85,FY1399_YTD_Actual!$A$3:$A$19,0))) -> 
AC108: =AD108&$B$85 -> 2019 TargetSTO | AD108: =Targets!$C$115 -> 2019 Target | AE108: =INDEX(Targets!C$3:C$41,MATCH(Charts!$AC108,Targets!$A$3:$A$41,0)) ->  | AF108: =INDEX(Targets!D$3:D$41,MATCH(Charts!$AC108,Targets!$A$3:$A$41,0)) ->  | AG108: =INDEX(Targets!E$3:E$41,MATCH(Charts!$AC108,Targets!$A$3:$A$41,0)) ->  | AH108: =INDEX(Targets!F$3:F$41,MATCH(Charts!$AC108,Targets!$A$3:$A$41,0)) ->  | AI108: =INDEX(Targets!G$3:G$41,MATCH(Charts!$AC108,Targets!$A$3:$A$41,0)) ->  | AJ108: =INDEX(Targets!H$3:H$41,MATCH(Charts!$AC108,Targets!$A$3:$A$41,0)) ->  | AK108: =INDEX(Targets!I$3:I$41,MATCH(Charts!$AC108,Targets!$A$3:$A$41,0)) ->  | AL108: =INDEX(Targets!J$3:J$41,MATCH(Charts!$AC108,Targets!$A$3:$A$41,0)) ->  | AM108: =INDEX(Targets!K$3:K$41,MATCH(Charts!$AC108,Targets!$A$3:$A$41,0)) ->  | AN108: =INDEX(Targets!L$3:L$41,MATCH(Charts!$AC108,Targets!$A$3:$A$41,0)) ->  | AO108: =INDEX(Targets!M$3:M$41,MATCH(Charts!$AC108,Targets!$A$3:$A$41,0)) ->  | AP108: =INDEX(Targets!N$3:N$41,MATCH(Charts!$AC108,Targets!$A$3:$A$41,0)) -> 
AC109: =AD109&$B$85 -> Previous Year performanceSTO | AD109: =Targets!$C$116 -> Previous Year performance | AE109: =INDEX(Targets!C$3:C$41,MATCH(Charts!$AC109,Targets!$A$3:$A$41,0)) -> 181.331598 | AF109: =INDEX(Targets!D$3:D$41,MATCH(Charts!$AC109,Targets!$A$3:$A$41,0)) -> 166.095397 | AG109: =INDEX(Targets!E$3:E$41,MATCH(Charts!$AC109,Targets!$A$3:$A$41,0)) -> 420.232954 | AH109: =INDEX(Targets!F$3:F$41,MATCH(Charts!$AC109,Targets!$A$3:$A$41,0)) -> 404.80215 | AI109: =INDEX(Targets!G$3:G$41,MATCH(Charts!$AC109,Targets!$A$3:$A$41,0)) -> 226.774294 | AJ109: =INDEX(Targets!H$3:H$41,MATCH(Charts!$AC109,Targets!$A$3:$A$41,0)) -> 196.335392 | AK109: =INDEX(Targets!I$3:I$41,MATCH(Charts!$AC109,Targets!$A$3:$A$41,0)) -> 234.88208 | AL109: =INDEX(Targets!J$3:J$41,MATCH(Charts!$AC109,Targets!$A$3:$A$41,0)) -> 197.203236 | AM109: =INDEX(Targets!K$3:K$41,MATCH(Charts!$AC109,Targets!$A$3:$A$41,0)) -> 261.720703 | AN109: =INDEX(Targets!L$3:L$41,MATCH(Charts!$AC109,Targets!$A$3:$A$41,0)) -> 338.837406 | AO109: =INDEX(Targets!M$3:M$41,MATCH(Charts!$AC109,Targets!$A$3:$A$41,0)) -> 335.068134 | AP109: =INDEX(Targets!N$3:N$41,MATCH(Charts!$AC109,Targets!$A$3:$A$41,0)) -> 522.887882
AD110: Cummulative
AD111: =AD107 -> Actual | AE111: 203.287436 | AF111: =SUM($AE107:AF107) -> 388.046132 | AG111: =SUM($AE107:AG107) -> 923.020788 | AH111: =SUM($AE107:AH107) -> 1093.890128 | AI111: =SUM($AE107:AI107) ->  | AJ111: =SUM($AE107:AJ107) ->  | AK111: =SUM($AE107:AK107) ->  | AL111: =SUM($AE107:AL107) ->  | AM111: =SUM($AE107:AM107) ->  | AN111: =SUM($AE107:AN107) ->  | AO111: =SUM($AE107:AO107) ->  | AP111: =SUM($AE107:AP107) ->  | AQ111: =AQ104 -> Flag if any | AR111: =IF((1-AE111/AE112)>$B$11,AE111,#N/A) -> 
AD112: 2019 Target | AF112: =SUM($AE108:AF108) ->  | AG112: =SUM($AE108:AG108) ->  | AH112: =SUM($AE108:AH108) ->  | AI112: =SUM($AE108:AI108) ->  | AJ112: =SUM($AE108:AJ108) ->  | AK112: =SUM($AE108:AK108) ->  | AL112: =SUM($AE108:AL108) ->  | AM112: =SUM($AE108:AM108) ->  | AN112: =SUM($AE108:AN108) ->  | AO112: =SUM($AE108:AO108) ->  | AP112: =SUM($AE108:AP108) ->  | AQ112: Historical Year Performance | AR112: =INDEX(Targets!Q$70:Q$109,MATCH(Charts!$AQ113,Targets!$A$70:$A$109,0)) -> 160 | AS112: =INDEX(Targets!R$70:R$109,MATCH(Charts!$AQ113,Targets!$A$70:$A$109,0)) -> 358 | AT112: =INDEX(Targets!S$70:S$109,MATCH(Charts!$AQ113,Targets!$A$70:$A$109,0)) -> 727 | AU112: =INDEX(Targets!T$70:T$109,MATCH(Charts!$AQ113,Targets!$A$70:$A$109,0)) -> 1018 | AV112: =INDEX(Targets!U$70:U$109,MATCH(Charts!$AQ113,Targets!$A$70:$A$109,0)) -> 1199 | AW112: =INDEX(Targets!V$70:V$109,MATCH(Charts!$AQ113,Targets!$A$70:$A$109,0)) -> 1398 | AX112: =INDEX(Targets!W$70:W$109,MATCH(Charts!$AQ113,Targets!$A$70:$A$109,0)) -> 1556 | AY112: =INDEX(Targets!X$70:X$109,MATCH(Charts!$AQ113,Targets!$A$70:$A$109,0)) -> 1766 | AZ112: =INDEX(Targets!Y$70:Y$109,MATCH(Charts!$AQ113,Targets!$A$70:$A$109,0)) -> 1952 | BA112: =INDEX(Targets!Z$70:Z$109,MATCH(Charts!$AQ113,Targets!$A$70:$A$109,0)) -> 2174 | BB112: =INDEX(Targets!AA$70:AA$109,MATCH(Charts!$AQ113,Targets!$A$70:$A$109,0)) -> 2443 | BC112: =INDEX(Targets!AB$70:AB$109,MATCH(Charts!$AQ113,Targets!$A$70:$A$109,0)) -> 2757
AD113: Previous Year performance | AE113: 181.331598 | AF113: =SUM($AE109:AF109) -> 347.426995 | AG113: =SUM($AE109:AG109) -> 767.659949 | AH113: =SUM($AE109:AH109) -> 1172.462099 | AI113: =SUM($AE109:AI109) -> 1399.236393 | AJ113: =SUM($AE109:AJ109) -> 1595.571785 | AK113: =SUM($AE109:AK109) -> 1830.453865 | AL113: =SUM($AE109:AL109) -> 2027.657101 | AM113: =SUM($AE109:AM109) -> 2289.377804 | AN113: =SUM($AE109:AN109) -> 2628.21521 | AO113: =SUM($AE109:AO109) -> 2963.283344 | AP113: =SUM($AE109:AP109) -> 3486.171226 | AQ113: =$B$10&$B$85 -> FY1395STO

Sheet Targets
C1: =B2 -> 2020 Target | R1: 22 | S1: 23 | T1: 25 | U1: 30
B2: 2020 Target | C2: M1 | D2: M2 | E2: M3 | F2: M4 | G2: M5 | H2: M6 | I2: M7 | J2: M8 | K2: M9 | L2: M10 | M2: M11 | N2: M12 | O2: Total | R2: Q1 | S2: Q2 | T2: Q3 | U2: Q4 | V2: Budget Target
A3: =$B$2&B3 -> 2020 TargetCustoms Department | B3: =B115 -> Customs Department | C3: =SUM(C4:C9) -> 6615.733165 | D3: =SUM(D4:D9) -> 6615.733165 | E3: 6615.733165 | F3: 7401.162674 | G3: 7401.162674 | H3: 7401.162674 | I3: 7733.459773 | J3: 7733.459773 | K3: 7733.459773 | L3: 8458.471627 | M3: 8458.471627 | N3: 8458.471627 | O3: =SUM(C3:N3) -> 90626.48172 | R3: =$V3*R$1/100 -> 17690.79806 | S3: =$V3*S$1/100 -> 18494.92525 | T3: 20103.17962 | U3: 24123.81554 | V3: 80412.71847
A4: =$B$2&B4 -> 2020 TargetHerat Customs Office | B4: =B116 -> Herat Customs Office | C4: 1510.740278 | D4: 1510.740278 | E4: 1510.740278 | F4: 1690.097571 | G4: 1690.097571 | H4: 1690.097571 | I4: 1765.979503 | J4: 1765.979503 | K4: 1765.979503 | L4: 1931.540081 | M4: 1931.540081 | N4: 1931.540081 | O4: 20695.0723 | R4: =$V4*R$1/100 -> 4801.087287 | S4: 5019.318527 | T4: 5455.781008 | U4: 6546.937209 | V4: 21823.12403
A5: 2020 TargetNangarhar Customs Office | B5: Nangarhar Customs Office | C5: 1460.70829 | D5: 1460.70829 | E5: 1460.70829 | F5: 1634.125713 | G5: 1634.125713 | H5: 1634.125713 | I5: 1707.494622 | J5: 1707.494622 | K5: 1707.494622 | L5: 1867.572243 | M5: 1867.572243 | N5: 1867.572243 | O5: 20009.70261 | R5: 3815.557526 | S5: 3988.991959 | T5: 4335.860825 | U5: 5203.03299 | V5: 17343.4433
A6: 2020 TargetBalkh Customs Office | B6: Balkh Customs Office | C6: 865.468948 | D6: 865.468948 | E6: 865.468948 | F6: 968.2186861 | G6: 968.2186861 | H6: 968.2186861 | I6: 1011.689729 | J6: 1011.689729 | K6: 1011.689729 | L6: 1106.535641 | M6: 1106.535641 | N6: 1106.535641 | O6: 11855.73901 | R6: 2769.828647 | S6: 2895.72995 | T6: 3147.532554 | U6: 3777.039065 | V6: 12590.13022
A7: 2020 TargetKandahar Customs Office | B7: Kandahar Customs Office | C7: 951.820298 | D7: 951.820298 | E7: 951.820298 | F7: 1064.821795 | G7: 1064.821795 | H7: 1064.821795 | I7: 1112.63012 | J7: 1112.63012 | K7: 1112.63012 | L7: 1216.939194 | M7: 1216.939194 | N7: 1216.939194 | O7: 13038.63422 | R7: 1638.903003 | S7: 1713.398594 | T7: 1862.389776 | U7: 2234.867731 | V7: 7449.559104
A8: 2020 TargetNimroz Customs Office | B8: Nimroz Customs Office | C8: 620.7216409 | D8: 620.7216409 | E8: 620.7216409 | F8: 694.4146211 | G8: 694.4146211 | H8: 694.4146211 | I8: 725.5924205 | J8: 725.5924205 | K8: 725.5924205 | L8: 793.6167099 | M8: 793.6167099 | N8: 793.6167099 | O8: 8503.036177 | R8: 1590.534867 | S8: 1662.831907 | T8: 1807.425986 | U8: 2168.911183 | V8: 7229.703942
A9: 2020 TargetOther Customs Offices | B9: Other Customs Offices | C9: 1206.27371 | D9: 1206.27371 | E9: 1206.27371 | F9: 1349.484288 | G9: 1349.484288 | H9: 1349.484288 | I9: 1410.073378 | J9: 1410.073378 | K9: 1410.073378 | L9: 1542.267758 | M9: 1542.267758 | N9: 1542.267758 | O9: 16524.2974 | R9: 3074.886734 | S9: 3214.654312 | T9: 3494.18947 | U9: 4193.027364 | V9: =V3-SUM(V4:V8) -> 13976.75788
A10: 2020 TargetAfghanistan Revenue Department | B10: Afghanistan Revenue Department | C10: =SUM(C11:C15) -> 8633.967675 | D10: =SUM(D11:D15) -> 8633.967675 | E10: 8633.967675 | F10: 9659.004933 | G10: 9659.004933 | H10: 9659.004933 | I10: 10092.67454 | J10: 10092.67454 | K10: 10092.67454 | L10: 11038.86278 | M10: 11038.86278 | N10: 11038.86278 | O10: 118273.5298
A11: 2020 TargetMustofiats | B11: Mustofiats | C11: 1373.797577 | D11: 1373.797577 | E11: 1373.797577 | F11: 1536.896833 | G11: 1536.896833 | H11: 1536.896833 | I11: 1605.900364 | J11: 1605.900364 | K11: 1605.900364 | L11: 1756.453523 | M11: 1756.453523 | N11: 1756.453523 | O11: 18819.14489 | R11: 4277.243083 | S11: 4471.663224 | T11: 4860.503504 | U11: 5832.604205 | V11: 19442.01402
A12: 2020 TargetLTO | B12: LTO | C12: 2566.112083 | D12: 2566.112083 | E12: 2566.112083 | F12: 2870.764659 | G12: 2870.764659 | H12: 2870.764659 | I12: 2999.656134 | J12: 2999.656134 | K12: 2999.656134 | L12: 3280.873896 | M12: 3280.873896 | N12: 3280.873896 | O12: 35152.22032 | R12: 6799.499223 | S12: 7108.567369 | T12: 7726.703662 | U12: 9272.044394 | V12: 30906.81465
A13: 2020 TargetMTO | B13: MTO | C13: 1454.98979 | D13: 1454.98979 | E13: 1454.98979 | F13: 1627.728304 | G13: 1627.728304 | H13: 1627.728304 | I13: 1700.809983 | J13: 1700.809983 | K13: 1700.809983 | L13: 1860.260919 | M13: 1860.260919 | N13: 1860.260919 | O13: 19931.36699 | R13: 3548.47862 | S13: 3709.773103 | T13: 4032.362068 | U13: 4838.834482 | V13: 16129.44827
A14: 2020 TargetSTO | B14: STO | C14: 299.7479362 | D14: 299.7479362 | E14: 299.7479362 | F14: 335.3344492 | G14: 335.3344492 | H14: 335.3344492 | I14: 350.3902816 | J14: 350.3902816 | K14: 350.3902816 | L14: 383.2393705 | M14: 383.2393705 | N14: 383.2393705 | O14: 4106.136113 | R14: 769.6840318 | S14: 804.6696696 | T14: 874.6409452 | U14: 1049.569134 | V14: 3498.563781
A15: 2020 TargetMinistries | B15: =B127 -> Ministries | C15: 2939.320288 | D15: 2939.320288 | E15: 2939.320288 | F15: 3288.280688 | G15: 3288.280688 | H15: 3288.280688 | I15: 3435.91778 | J15: 3435.91778 | K15: 3435.91778 | L15: 3758.035072 | M15: 3758.035072 | N15: 3758.035072 | O15: 40264.66148 | R15: 8275.751932 | S15: 8651.922474 | T15: 9404.263559 | U15: 11285.11627 | V15: 37617.05424
A16: 2020 TargetTotal Revenues | B16: Total Revenues | C16: =C3+C10 -> 15249.70084 | D16: =D3+D10 -> 15249.70084 | E16: 15249.70084 | F16: 17060.16761 | G16: 17060.16761 | H16: 17060.16761 | I16: 17826.13432 | J16: 17826.13432 | K16: 17826.13432 | L16: 19497.33441 | M16: 19497.33441 | N16: 19497.33441 | O16: 208900.0115
A17: 2020 TargetTax Revenues | B17: Tax Revenues | R17: 18929.28074 | S17: 19789.70259 | T17: 21510.5463 | U17: 25812.65556 | V17: =$O$16*O39/$O$42 -> 86042.18519
A18: 2020 TargetCustoms Revenues | B18: Customs Revenues | R18: 8223.966012 | S18: 8597.782649 | T18: 9345.415923 | U18: 11214.49911 | V18: =$O$16*O40/$O$42 -> 37381.66369
A19: 2020 TargetNon-tax Revenues | B19: =B131 -> Non-tax Revenues | R19: 18804.75578 | S19: 19659.5174 | T19: 21369.04066 | U19: 25642.84879 | V19: 85476.16263
B20: Total Revenues | C20: =SUM(C17:C19) -> 0 | D20: =SUM(D17:D19) -> 0 | E20: 0 | F20: 0 | G20: 0 | H20: 0 | I20: 0 | J20: 0 | K20: 0 | L20: 0 | M20: 0 | N20: 0 | O20: =SUM(C20:N20) -> 0
B22: Check
C23: Previous Year performance (FY1398)
B24: =C116 -> Previous Year performance | C24: M1 | D24: M2 | E24: M3 | F24: M4 | G24: M5 | H24: M6 | I24: M7 | J24: M8 | K24: M9 | L24: M10 | M24: M11 | N24: M12 | O24: Total
A25: =$B$24&B25 -> Previous Year performanceCustoms Department | B25: =B3 -> Customs Department | C25: =SUM(C26:C31) -> 7121.954075 | D25: =SUM(D26:D31) -> 6626.573266 | E25: =SUM(E26:E31) -> 6314.747443 | F25: =SUM(F26:F31) -> 6445.142824 | G25: =SUM(G26:G31) -> 7100.673798 | H25: =SUM(H26:H31) -> 5923.310036 | I25: =SUM(I26:I31) -> 7042.078335 | J25: =SUM(J26:J31) -> 5525.767132 | K25: =SUM(K26:K31) -> 6328.26713 | L25: =SUM(L26:L31) -> 5820.816818 | M25: =SUM(M26:M31) -> 6994.265015 | N25: =SUM(N26:N31) -> 7881.569284 | O25: =SUM(C25:N25) -> 79125.16516
A26: Previous Year performanceHerat Customs Office | B26: Herat Customs Office | C26: 1669.959583 | D26: 1522.535612 | E26: 1639.108452 | F26: 1327.363441 | G26: 1551.811893 | H26: 1535.73312 | I26: 1733.299742 | J26: 1321.997578 | K26: 1433.418012 | L26: 1401.325681 | M26: 1268.043363 | N26: 1648.412112 | O26: 18053.00859
A27: Previous Year performanceNangarhar Customs Office | B27: Nangarhar Customs Office | C27: 1416.589154 | D27: 1338.922474 | E27: 1287.971107 | F27: 1511.775045 | G27: 1562.188742 | H27: 1312.323695 | I27: 1806.793566 | J27: 1284.739882 | K27: 1376.20153 | L27: 1147.860979 | M27: 1763.156853 | N27: 1652.696173 | O27: 17461.2192
A28: Previous Year performanceBalkh Customs Office | B28: Balkh Customs Office | C28: 1004.925283 | D28: 933.342203 | E28: 640.956549 | F28: 859.621079 | G28: 753.634922 | H28: 826.192129 | I28: 686.919117 | J28: 692.389078 | K28: 810.139083 | L28: 710.695515 | M28: 1133.516472 | N28: 1252.346273 | O28: 10304.6777
A29: Previous Year performanceKandahar Customs Office | B29: Kandahar Customs Office | C29: 1089.49417 | D29: 994.10088 | E29: 825.191678 | F29: 900.816593 | G29: 1037.931151 | H29: 744.327969 | I29: 964.129408 | J29: 710.606813 | K29: 904.972241 | L29: 983.867476 | M29: 1045.769651 | N29: 1191.855241 | O29: 11393.06327
A30: Previous Year performanceNimroz Customs Office | B30: Nimroz Customs Office | C30: 700.634586 | D30: 743.74491 | E30: 644.876308 | F30: 509.046626 | G30: 701.512586 | H30: 468.36998 | I30: 655.098274 | J30: 430.944319 | K30: 562.301694 | L30: 528.045862 | M30: 651.121974 | N30: 873.395857 | O30: 7469.092976
A31: Previous Year performanceOther Customs Offices | B31: Other Customs Offices | C31: 1240.351299 | D31: 1093.927187 | E31: 1276.643349 | F31: 1336.52004 | G31: 1493.594504 | H31: 1036.363143 | I31: 1195.838228 | J31: 1085.089462 | K31: 1241.23457 | L31: 1049.021305 | M31: 1132.656702 | N31: 1262.863628 | O31: 14444.10342
A32: Previous Year performanceAfghanistan Revenue Department | B32: Afghanistan Revenue Department | C32: =SUM(C33:C37) -> 7315.003433 | D32: =SUM(D33:D37) -> 6878.406756 | E32: =SUM(E33:E37) -> 7910.767357 | F32: =SUM(F33:F37) -> 9079.919878 | G32: =SUM(G33:G37) -> 15066.0345 | H32: =SUM(H33:H37) -> 7396.469185 | I32: =SUM(I33:I37) -> 8812.465612 | J32: =SUM(J33:J37) -> 5791.424696 | K32: =SUM(K33:K37) -> 8809.08191 | L32: =SUM(L33:L37) -> 13985.44492 | M32: =SUM(M33:M37) -> 8079.678536 | N32: =SUM(N33:N37) -> 29109.49515 | O32: 128234.1919
A33: Previous Year performanceMustofiats | B33: Mustofiats | C33: 1183.760174 | D33: 1433.835287 | E33: 1635.349434 | F33: 1496.94967 | G33: 1371.180729 | H33: 1442.483496 | I33: 1629.167338 | J33: 1441.355723 | K33: 1530.137699 | L33: 1641.502886 | M33: 1354.671877 | N33: 3393.910513 | O33: 19554.30483
A34: Previous Year performanceLTO | B34: LTO | C34: 2756.84631 | D34: 1665.143238 | E34: 1709.504585 | F34: 2889.151351 | G34: 1401.997677 | H34: 2559.948049 | I34: 2486.023123 | J34: 941.0177563 | K34: 2262.484653 | L34: 4131.951392 | M34: 2124.499091 | N34: 2120.993447 | O34: 27049.56067
A35: Previous Year performanceMTO | B35: MTO | C35: 1006.731279 | D35: 1047.719179 | E35: 1358.678984 | F35: 1447.368569 | G35: 1125.34004 | H35: 1410.218924 | I35: 1460.951785 | J35: 1112.731251 | K35: 899.7011214 | L35: 1575.163392 | M35: 1155.06472 | N35: 2265.199704 | O35: 15864.86895
A36: Previous Year performanceSTO | B36: STO | C36: 181.331598 | D36: 166.095397 | E36: 420.232954 | F36: 404.80215 | G36: 226.774294 | H36: 196.335392 | I36: 234.88208 | J36: 197.203236 | K36: 261.720703 | L36: 338.837406 | M36: 335.068134 | N36: 522.887882 | O36: 3486.171226
A37: Previous Year performanceMinistries | B37: Ministries | C37: 2186.334073 | D37: 2565.613654 | E37: 2787.0014 | F37: 2841.648138 | G37: 10940.74177 | H37: 1787.483324 | I37: 3001.441285 | J37: 2099.11673 | K37: 3855.037734 | L37: 6297.989843 | M37: 3110.374714 | N37: 20806.50361 | O37: 62279.28627
A38: Previous Year performanceTotal Revenues | B38: Total Revenues | C38: =C25+C32 -> 14436.95751 | D38: =D25+D32 -> 13504.98002 | E38: 14225.5148 | F38: 15525.0627 | G38: 22166.7083 | H38: 13319.77922 | I38: 15854.54395 | J38: 11317.19183 | K38: 15137.34904 | L38: 19806.26174 | M38: 15073.94355 | N38: 36991.06444 | O38: 207359.3571
A39: Previous Year performanceTax Revenues | B39: Tax Revenues | C39: 7546.190495 | D39: 6161.385337 | E39: 6578.882001 | F39: 7922.712859 | G39: 6302.572913 | H39: 7228.577312 | I39: 7870.631984 | J39: 5158.898995 | K39: 5641.597106 | L39: 8370.05697 | M39: 6953.59959 | N39: 9672.511581 | O39: =SUM(C39:N39) -> 85407.61714
A40: Previous Year performanceCustoms Revenues | B40: Customs Revenues | C40: 3319.310992 | D40: 3053.049711 | E40: 3110.94217 | F40: 3138.926383 | G40: 3434.973687 | H40: 2808.631128 | I40: 3478.960038 | J40: 2496.733137 | K40: 2893.910815 | L40: 2610.28863 | M40: 3206.019526 | N40: 3554.224693 | O40: 37105.97091
A41: Previous Year performanceNon-tax Revenues | B41: Non-tax Revenues | C41: 3571.456021 | D41: 4290.544974 | E41: 4535.690629 | F41: 4463.42346 | G41: 12429.1617 | H41: 3282.570782 | I41: 4504.951925 | J41: 3661.559696 | K41: 6601.841119 | L41: 8825.916138 | M41: 4914.324435 | N41: 23764.32816 | O41: 84845.76904
B42: Total Revenues | C42: =SUM(C39:C41) -> 14436.95751 | D42: =SUM(D39:D41) -> 13504.98002 | E42: =SUM(E39:E41) -> 14225.5148 | F42: =SUM(F39:F41) -> 15525.0627 | G42: =SUM(G39:G41) -> 22166.7083 | H42: =SUM(H39:H41) -> 13319.77922 | I42: =SUM(I39:I41) -> 15854.54395 | J42: =SUM(J39:J41) -> 11317.19183 | K42: =SUM(K39:K41) -> 15137.34904 | L42: =SUM(L39:L41) -> 19806.26174 | M42: =SUM(M39:M41) -> 15073.94355 | N42: =SUM(N39:N41) -> 36991.06444 | O42: 207359.3571
B44: Check | C44: =C38-C42 -> 0 | D44: =D38-D42 -> 0 | E44: 0 | F44: 0 | G44: 0 | H44: 0 | I44: 0 | J44: 0 | K44: 0 | L44: 0 | M44: 0 | N44: 0
C46: Previous Year performance (FY1397)
B47: =C99 -> 1655 | C47: M1 | D47: M2 | E47: M3 | F47: M4 | G47: M5 | H47: M6 | I47: M7 | J47: M8 | K47: M9 | L47: M10 | M47: M11 | N47: M12 | O47: Total
B48: =B26 -> Herat Customs Office | C48: =SUM(C49:C54) -> 6140.413238 | D48: =SUM(D49:D54) -> 5913.22327 | E48: 6053.092942 | F48: 5286.745736 | G48: 6298.255079 | H48: 5888.72474 | I48: 4975.888846 | J48: 6347.029213 | K48: 6641.710773 | L48: 6059.101046 | M48: 7031.291373 | N48: 7309.40952 | O48: =SUM(C48:N48) -> 73944.88578
B49: Nangarhar Customs Office | C49: 1633.915314 | D49: 1774.08312 | E49: 1355.560981 | F49: 1118.033342 | G49: 1716.169371 | H49: 1760.612705 | I49: 2030.082532 | J49: 2000.715219 | K49: 1558.996058 | L49: 1556.687852 | M49: 2175.235004 | N49: 2105.208059 | O49: 20785.29956
B50: Balkh Customs Office | C50: 1082.80051 | D50: 1136.998269 | E50: 1220.108724 | F50: 1288.295966 | G50: 1559.555858 | H50: 1506.529001 | I50: 1462.75823 | J50: 1346.366633 | K50: 1242.180881 | L50: 1617.166052 | M50: 1344.05514 | N50: 1638.66228 | O50: 16445.47754
B51: Kandahar Customs Office | C51: 1092.813065 | D51: 857.166936 | E51: 1310.432634 | F51: 1015.273751 | G51: 919.09435 | H51: 824.273193 | I51: 713.06732 | J51: 1131.883166 | K51: 966.191288 | L51: 939.247103 | M51: 1156.912519 | N51: 1041.631525 | O51: 11967.98685
B52: Nimroz Customs Office | C52: 588.899082 | D52: 495.208596 | E52: 553.028891 | F52: 576.223402 | G52: 594.85601 | H52: 453.905417 | I52: -746.644278 | J52: 446.099946 | K52: 1642.61147 | L52: 630.525036 | M52: 866.703117 | N52: 967.026556 | O52: 7068.443245
B53: Other Customs Offices | C53: 788.976806 | D53: 699.240386 | E53: 504.671532 | F53: 382.174175 | G53: 623.322963 | H53: 656.666207 | I53: 664.798065 | J53: 563.897327 | K53: 387.673545 | L53: 445.899062 | M53: 515.997566 | N53: 0 | O53: 6233.317634
B54: Afghanistan Revenue Department | C54: 953.008461 | D54: 950.525963 | E54: 1109.29018 | F54: 906.7451 | G54: 885.256527 | H54: 686.738217 | I54: 851.826977 | J54: 858.066922 | K54: 844.057531 | L54: 869.575941 | M54: 972.388027 | N54: 1556.8811 | O54: 11444.36095
B55: Mustofiats | C55: =SUM(C56:C60) -> 7208.353701 | D55: =SUM(D56:D60) -> 5086.01996 | E55: 7597.5008 | F55: 9399.923626 | G55: 6508.91166 | H55: 8893.446019 | I55: 10692.4962 | J55: 6692.152503 | K55: 10776.43003 | L55: 10568.07946 | M55: 16443.28802 | N55: 15750.28594 | O55: 115616.8879
B56: LTO | C56: 308.509622 | D56: 286.242671 | E56: 539.159761 | F56: 431.432169 | G56: 398.802867 | H56: 388.04638 | I56: 1558.992485 | J56: 570.3491106 | K56: -846.148442 | L56: 559.218669 | M56: 635.138778 | N56: 897.77905 | O56: 5727.523121
B57: MTO | C57: 2900.85481 | D57: 790.300629 | E57: 1595.75158 | F57: 2773.51705 | G57: 874.0127404 | H57: 2934.519556 | I57: 2717.592181 | J57: 904.2728918 | K57: 4545.277415 | L57: 4227.548233 | M57: 3892.012986 | N57: 3062.792088 | O57: 31218.45216
B58: STO | C58: 1184.170472 | D58: 866.4093103 | E58: 1348.015268 | F58: 1577.866636 | G58: 1198.439948 | H58: 1303.157018 | I58: 1564.382102 | J58: 1415.182864 | K58: 1094.731388 | L58: 1991.548825 | M58: 1881.18302 | N58: 2267.969966 | O58: 17693.05682
B59: Ministries | C59: 214.013912 | D59: 195.848448 | E59: 339.948553 | F59: 268.804639 | G59: 207.974096 | H59: 182.802892 | I59: 313.872153 | J59: 227.622608 | K59: 216.16086 | L59: 354.97694 | M59: 400.293721 | N59: 0 | O59: 2922.318822
B60: Total Revenues | C60: 2600.804885 | D60: 2947.218902 | E60: 3774.625638 | F60: 4348.303132 | G60: 3829.682008 | H60: 4084.920173 | I60: 4537.657278 | J60: 3574.725029 | K60: 5766.408814 | L60: 3434.786795 | M60: 9634.659512 | N60: 9521.744839 | O60: 58055.53701
B61: Tax Revenues | C61: =C48+C55 -> 13348.76694 | D61: =D48+D55 -> 10999.24323 | E61: 13650.59374 | F61: 14686.66936 | G61: 12807.16674 | H61: 14782.17076 | I61: 15668.38505 | J61: 13039.18172 | K61: 17418.14081 | L61: 16627.18051 | M61: 23474.57939 | N61: 23059.69546 | O61: 189561.7737
B62: Customs Revenues | C62: 7276.370557 | D62: 4537.255813 | E62: 6193.796967 | F62: 6975.289812 | G62: 5079.682374 | H62: 7126.997264 | I62: 7308.975625 | J62: 5616.289003 | K62: 6442.2178 | L62: 8720.222202 | M62: 9552.850289 | N62: 8654.68915 | O62: =SUM(C62:N62) -> 83484.63686
B63: Non-tax Revenues | C63: 2767.147681 | D63: 2745.11485 | E63: 2852.411152 | F63: 2650.673459 | G63: 3065.464372 | H63: 2690.8434 | I63: 3127.610377 | J63: 3097.243378 | K63: 2529.925416 | L63: 2881.704204 | M63: 3301.100888 | N63: 3482.925564 | O63: 35192.16474
B64: Total Revenues | C64: 3305.248701 | D64: 3716.872568 | E64: 4604.385623 | F64: 5060.706091 | G64: 4662.019993 | H64: 4964.330095 | I64: 5231.799043 | J64: 4325.649334 | K64: 8445.997592 | L64: 5025.254103 | M64: 10620.62821 | N64: 10922.08075 | O64: 70884.9721
B65: 0 | C65: =SUM(C62:C64) -> 13348.76694 | D65: =SUM(D62:D64) -> 10999.24323 | E65: 13650.59374 | F65: 14686.66936 | G65: 12807.16674 | H65: 14782.17076 | I65: 15668.38505 | J65: 13039.18172 | K65: 17418.14081 | L65: 16627.18051 | M65: 23474.57939 | N65: 23059.69546 | O65: 189561.7737
G68: FY 1396 Performance
B69: FY1396 | C69: M1 | D69: M2 | E69: M3 | F69: M4 | G69: M5 | H69: M6 | I69: M7 | J69: M8 | K69: M9 | L69: M10 | M69: M11 | N69: M12 | O69: Total
A70: =$B$69&B70 -> FY1396Customs Department | B70: =B25 -> Customs Department | C70: =SUM(C71:C76) -> 6085 | D70: =SUM(D71:D76) -> 4941 | E70: 4181 | F70: 5642 | G70: 7377 | H70: 7446 | I70: 5800 | J70: 6807 | K70: 5766 | L70: 6087 | M70: 5945 | N70: 7514 | O70: =SUM(C70:N70) -> 73591 | Q70: =C70 -> 6085 | R70: =SUM($C70:D70) -> 11026 | S70: =SUM($C70:E70) -> 15207 | T70: =SUM($C70:F70) -> 20849 | U70: =SUM($C70:G70) -> 28226 | V70: =SUM($C70:H70) -> 35672 | W70: =SUM($C70:I70) -> 41472 | X70: =SUM($C70:J70) -> 48279 | Y70: =SUM($C70:K70) -> 54045 | Z70: =SUM($C70:L70) -> 60132 | AA70: =SUM($C70:M70) -> 66077 | AB70: =SUM($C70:N70) -> 73591
A71: =$B$69&B71 -> FY1396Herat Customs Office | B71: =B26 -> Herat Customs Office | C71: 1599 | D71: 1005 | E71: 666 | F71: 1249 | G71: 1972 | H71: 2264 | I71: 1850 | J71: 1858 | K71: 2358 | L71: 1733 | M71: 1821 | N71: 1782 | O71: 20157 | Q71: =C71 -> 1599 | R71: =SUM($C71:D71) -> 2604 | S71: =SUM($C71:E71) -> 3270 | T71: =SUM($C71:F71) -> 4519 | U71: =SUM($C71:G71) -> 6491 | V71: =SUM($C71:H71) -> 8755 | W71: =SUM($C71:I71) -> 10605 | X71: =SUM($C71:J71) -> 12463 | Y71: =SUM($C71:K71) -> 14821 | Z71: =SUM($C71:L71) -> 16554 | AA71: =SUM($C71:M71) -> 18375 | AB71: =SUM($C71:N71) -> 20157
A72: FY1396Nangarhar Customs Office | B72: =B27 -> Nangarhar Customs Office | C72: 1294 | D72: 1205 | E72: 48 | F72: 1419 | G72: 1332 | H72: 1282 | I72: 972 | J72: 1229 | K72: 1244 | L72: 1239 | M72: 1314 | N72: 1371 | O72: 13949 | Q72: 1294 | R72: =SUM($C72:D72) -> 2499 | S72: =SUM($C72:E72) -> 2547 | T72: =SUM($C72:F72) -> 3966 | U72: =SUM($C72:G72) -> 5298 | V72: =SUM($C72:H72) -> 6580 | W72: =SUM($C72:I72) -> 7552 | X72: =SUM($C72:J72) -> 8781 | Y72: =SUM($C72:K72) -> 10025 | Z72: =SUM($C72:L72) -> 11264 | AA72: =SUM($C72:M72) -> 12578 | AB72: =SUM($C72:N72) -> 13949
A73: FY1396Balkh Customs Office | B73: Balkh Customs Office | C73: 1095 | D73: 914 | E73: 830 | F73: 979 | G73: 995 | H73: 906 | I73: 1015 | J73: 1154 | K73: 846 | L73: 930 | M73: 734 | N73: 1548 | O73: 11946 | Q73: 1095 | R73: =SUM($C73:D73) -> 2009 | S73: =SUM($C73:E73) -> 2839 | T73: =SUM($C73:F73) -> 3818 | U73: =SUM($C73:G73) -> 4813 | V73: =SUM($C73:H73) -> 5719 | W73: =SUM($C73:I73) -> 6734 | X73: =SUM($C73:J73) -> 7888 | Y73: =SUM($C73:K73) -> 8734 | Z73: =SUM($C73:L73) -> 9664 | AA73: =SUM($C73:M73) -> 10398 | AB73: =SUM($C73:N73) -> 11946
A74: FY1396Kandahar Customs Office | B74: Kandahar Customs Office | C74: 631 | D74: 469 | E74: 102 | F74: 558 | G74: 473 | H74: 509 | I74: 427 | J74: 492 | K74: 358 | L74: 528 | M74: 519 | N74: 689 | O74: 5755 | Q74: 631 | R74: =SUM($C74:D74) -> 1100 | S74: =SUM($C74:E74) -> 1202 | T74: =SUM($C74:F74) -> 1760 | U74: =SUM($C74:G74) -> 2233 | V74: =SUM($C74:H74) -> 2742 | W74: =SUM($C74:I74) -> 3169 | X74: =SUM($C74:J74) -> 3661 | Y74: =SUM($C74:K74) -> 4019 | Z74: =SUM($C74:L74) -> 4547 | AA74: =SUM($C74:M74) -> 5066 | AB74: =SUM($C74:N74) -> 5755
A75: FY1396Nimroz Customs Office | B75: Nimroz Customs Office | C75: 693 | D75: 705 | E75: 909 | F75: 575 | G75: 1460 | H75: 1340 | I75: 755 | J75: 825 | K75: 701 | L75: 673 | M75: 638 | N75: 576 | O75: 9850 | Q75: 693 | R75: =SUM($C75:D75) -> 1398 | S75: =SUM($C75:E75) -> 2307 | T75: =SUM($C75:F75) -> 2882 | U75: =SUM($C75:G75) -> 4342 | V75: =SUM($C75:H75) -> 5682 | W75: =SUM($C75:I75) -> 6437 | X75: =SUM($C75:J75) -> 7262 | Y75: =SUM($C75:K75) -> 7963 | Z75: =SUM($C75:L75) -> 8636 | AA75: =SUM($C75:M75) -> 9274 | AB75: =SUM($C75:N75) -> 9850
A76: FY1396Other Customs Offices | B76: Other Customs Offices | C76: 773 | D76: 643 | E76: 1626 | F76: 862 | G76: 1145 | H76: 1145 | I76: 781 | J76: 1249 | K76: 259 | L76: 984 | M76: 919 | N76: 1548 | O76: 11934 | Q76: 773 | R76: =SUM($C76:D76) -> 1416 | S76: =SUM($C76:E76) -> 3042 | T76: =SUM($C76:F76) -> 3904 | U76: =SUM($C76:G76) -> 5049 | V76: =SUM($C76:H76) -> 6194 | W76: =SUM($C76:I76) -> 6975 | X76: =SUM($C76:J76) -> 8224 | Y76: =SUM($C76:K76) -> 8483 | Z76: =SUM($C76:L76) -> 9467 | AA76: =SUM($C76:M76) -> 10386 | AB76: =SUM($C76:N76) -> 11934
A77: FY1396Afghanistan Revenue Department | B77: Afghanistan Revenue Department | C77: =SUM(C78:C82) -> 6078 | D77: =SUM(D78:D82) -> 4715 | E77: 7871 | F77: 8372 | G77: 7820 | H77: 6004 | I77: 8084 | J77: 7193 | K77: 5812 | L77: 8930 | M77: 8359 | N77: 16257 | O77: 95495 | Q77: 6078 | R77: =SUM($C77:D77) -> 10793 | S77: =SUM($C77:E77) -> 18664 | T77: =SUM($C77:F77) -> 27036 | U77: =SUM($C77:G77) -> 34856 | V77: =SUM($C77:H77) -> 40860 | W77: =SUM($C77:I77) -> 48944 | X77: =SUM($C77:J77) -> 56137 | Y77: =SUM($C77:K77) -> 61949 | Z77: =SUM($C77:L77) -> 70879 | AA77: =SUM($C77:M77) -> 79238 | AB77: =SUM($C77:N77) -> 95495
A78: FY1396Mustofiats | B78: Mustofiats | C78: 995 | D78: 854 | E78: 2220 | F78: 1576 | G78: 1517 | H78: 1536 | I78: 1366 | J78: 1408 | K78: 1152 | L78: 1570 | M78: 2468 | N78: 1303 | O78: 17965 | Q78: 995 | R78: =SUM($C78:D78) -> 1849 | S78: =SUM($C78:E78) -> 4069 | T78: =SUM($C78:F78) -> 5645 | U78: =SUM($C78:G78) -> 7162 | V78: =SUM($C78:H78) -> 8698 | W78: =SUM($C78:I78) -> 10064 | X78: =SUM($C78:J78) -> 11472 | Y78: =SUM($C78:K78) -> 12624 | Z78: =SUM($C78:L78) -> 14194 | AA78: =SUM($C78:M78) -> 16662 | AB78: =SUM($C78:N78) -> 17965
A79: FY1396LTO | B79: LTO | C79: 2418 | D79: 655 | E79: 1788 | F79: 2959 | G79: 1676 | H79: 1053 | I79: 3378 | J79: 1374 | K79: 1106 | L79: 2810 | M79: 1310 | N79: 1138 | O79: 21665 | Q79: 2418 | R79: =SUM($C79:D79) -> 3073 | S79: =SUM($C79:E79) -> 4861 | T79: =SUM($C79:F79) -> 7820 | U79: =SUM($C79:G79) -> 9496 | V79: =SUM($C79:H79) -> 10549 | W79: =SUM($C79:I79) -> 13927 | X79: =SUM($C79:J79) -> 15301 | Y79: =SUM($C79:K79) -> 16407 | Z79: =SUM($C79:L79) -> 19217 | AA79: =SUM($C79:M79) -> 20527 | AB79: =SUM($C79:N79) -> 21665
A80: FY1396MTO | B80: MTO | C80: 890 | D80: 860 | E80: 1279 | F80: 1273 | G80: 1206 | H80: 1346 | I80: 1327 | J80: 1146 | K80: 925 | L80: 1363 | M80: 1135 | N80: 1718 | O80: 14468 | Q80: 890 | R80: =SUM($C80:D80) -> 1750 | S80: =SUM($C80:E80) -> 3029 | T80: =SUM($C80:F80) -> 4302 | U80: =SUM($C80:G80) -> 5508 | V80: =SUM($C80:H80) -> 6854 | W80: =SUM($C80:I80) -> 8181 | X80: =SUM($C80:J80) -> 9327 | Y80: =SUM($C80:K80) -> 10252 | Z80: =SUM($C80:L80) -> 11615 | AA80: =SUM($C80:M80) -> 12750 | AB80: =SUM($C80:N80) -> 14468
A81: FY1396STO | B81: STO | C81: 204 | D81: 181 | E81: 454 | F81: 298 | G81: 266 | H81: 220 | I81: 166 | J81: 368 | K81: 171 | L81: 246 | M81: 321 | N81: 433 | O81: 3328 | Q81: 204 | R81: =SUM($C81:D81) -> 385 | S81: =SUM($C81:E81) -> 839 | T81: =SUM($C81:F81) -> 1137 | U81: =SUM($C81:G81) -> 1403 | V81: =SUM($C81:H81) -> 1623 | W81: =SUM($C81:I81) -> 1789 | X81: =SUM($C81:J81) -> 2157 | Y81: =SUM($C81:K81) -> 2328 | Z81: =SUM($C81:L81) -> 2574 | AA81: =SUM($C81:M81) -> 2895 | AB81: =SUM($C81:N81) -> 3328
A82: FY1396Ministries | B82: Ministries | C82: 1571 | D82: 2165 | E82: 2130 | F82: 2266 | G82: 3155 | H82: 1849 | I82: 1847 | J82: 2897 | K82: 2458 | L82: 2941 | M82: 3125 | N82: 11665 | O82: 38069 | Q82: 1571 | R82: =SUM($C82:D82) -> 3736 | S82: =SUM($C82:E82) -> 5866 | T82: =SUM($C82:F82) -> 8132 | U82: =SUM($C82:G82) -> 11287 | V82: =SUM($C82:H82) -> 13136 | W82: =SUM($C82:I82) -> 14983 | X82: =SUM($C82:J82) -> 17880 | Y82: =SUM($C82:K82) -> 20338 | Z82: =SUM($C82:L82) -> 23279 | AA82: =SUM($C82:M82) -> 26404 | AB82: =SUM($C82:N82) -> 38069
A83: FY1396Total Revenues | B83: Total Revenues | C83: =C70+C77 -> 12163 | D83: =D70+D77 -> 9656 | E83: 12052 | F83: 14014 | G83: 15197 | H83: 13450 | I83: 13884 | J83: 14000 | K83: 11578 | L83: 15017 | M83: 14304 | N83: 23771 | O83: 169086 | Q83: 12163 | R83: =SUM($C83:D83) -> 21819 | S83: =SUM($C83:E83) -> 33871 | T83: =SUM($C83:F83) -> 47885 | U83: =SUM($C83:G83) -> 63082 | V83: =SUM($C83:H83) -> 76532 | W83: =SUM($C83:I83) -> 90416 | X83: =SUM($C83:J83) -> 104416 | Y83: =SUM($C83:K83) -> 115994 | Z83: =SUM($C83:L83) -> 131011 | AA83: =SUM($C83:M83) -> 145315 | AB83: =SUM($C83:N83) -> 169086
A84: FY1396Tax Revenues | B84: Tax Revenues | C84: 6504 | D84: 4027 | E84: 5911 | F84: 7348 | G84: 6654 | H84: 6196 | I84: 7714 | J84: 6178 | K84: 4822 | L84: 7485 | M84: 6230 | N84: 6547 | O84: =SUM(C84:N84) -> 75616 | Q84: 6504 | R84: =SUM($C84:D84) -> 10531 | S84: =SUM($C84:E84) -> 16442 | T84: =SUM($C84:F84) -> 23790 | U84: =SUM($C84:G84) -> 30444 | V84: =SUM($C84:H84) -> 36640 | W84: =SUM($C84:I84) -> 44354 | X84: =SUM($C84:J84) -> 50532 | Y84: =SUM($C84:K84) -> 55354 | Z84: =SUM($C84:L84) -> 62839 | AA84: =SUM($C84:M84) -> 69069 | AB84: =SUM($C84:N84) -> 75616
A85: FY1396Customs Revenues | B85: Customs Revenues | C85: 2934 | D85: 2431 | E85: 2066 | F85: 2768 | G85: 3791 | H85: 3661 | I85: 2869 | J85: 3332 | K85: 2779 | L85: 2898 | M85: 3014 | N85: 3383 | O85: 35926 | Q85: 2934 | R85: =SUM($C85:D85) -> 5365 | S85: =SUM($C85:E85) -> 7431 | T85: =SUM($C85:F85) -> 10199 | U85: =SUM($C85:G85) -> 13990 | V85: =SUM($C85:H85) -> 17651 | W85: =SUM($C85:I85) -> 20520 | X85: =SUM($C85:J85) -> 23852 | Y85: =SUM($C85:K85) -> 26631 | Z85: =SUM($C85:L85) -> 29529 | AA85: =SUM($C85:M85) -> 32543 | AB85: =SUM($C85:N85) -> 35926
A86: FY1396Non-tax Revenues | B86: Non-tax Revenues | C86: 2725 | D86: 3198 | E86: 4075 | F86: 3898 | G86: 4752 | H86: 3593 | I86: 3301 | J86: 4490 | K86: 3977 | L86: 4634 | M86: 5060 | N86: 13841 | O86: 57544 | Q86: 2725 | R86: =SUM($C86:D86) -> 5923 | S86: =SUM($C86:E86) -> 9998 | T86: =SUM($C86:F86) -> 13896 | U86: =SUM($C86:G86) -> 18648 | V86: =SUM($C86:H86) -> 22241 | W86: =SUM($C86:I86) -> 25542 | X86: =SUM($C86:J86) -> 30032 | Y86: =SUM($C86:K86) -> 34009 | Z86: =SUM($C86:L86) -> 38643 | AA86: =SUM($C86:M86) -> 43703 | AB86: =SUM($C86:N86) -> 57544
B87: Total Revenues | C87: =SUM(C84:C86) -> 12163 | D87: =SUM(D84:D86) -> 9656 | E87: 12052 | F87: 14014 | G87: 15197 | H87: 13450 | I87: 13884 | J87: 14000 | K87: 11578 | L87: 15017 | M87: 14304 | N87: 23771 | O87: 169086
B89: Check | C89: =C83-C87 -> 0 | D89: =D83-D87 -> 0 | E89: 0 | F89: 0 | G89: 0 | H89: 0 | I89: 0 | J89: 0 | K89: 0 | L89: 0 | M89: 0 | N89: 0
G91: FY 1395 Performance
B92: FY1395 | C92: M1 | D92: M2 | E92: M3 | F92: M4 | G92: M5 | H92: M6 | I92: M7 | J92: M8 | K92: M9 | L92: M10 | M92: M11 | N92: M12 | O92: Total
A93: =$B$92&B93 -> FY1395Customs Department | B93: =B70 -> Customs Department | C93: =SUM(C94:C99) -> 5263 | D93: =SUM(D94:D99) -> 5444 | E93: 5691 | F93: 5117 | G93: 5431 | H93: 5235 | I93: 4533 | J93: 5300 | K93: 4715 | L93: 5348 | M93: 6066 | N93: 7170 | O93: =SUM(C93:N93) -> 65313 | Q93: =C93 -> 5263 | R93: =SUM($C93:D93) -> 10707 | S93: =SUM($C93:E93) -> 16398 | T93: =SUM($C93:F93) -> 21515 | U93: =SUM($C93:G93) -> 26946 | V93: =SUM($C93:H93) -> 32181 | W93: =SUM($C93:I93) -> 36714 | X93: =SUM($C93:J93) -> 42014 | Y93: =SUM($C93:K93) -> 46729 | Z93: =SUM($C93:L93) -> 52077 | AA93: =SUM($C93:M93) -> 58143 | AB93: =SUM($C93:N93) -> 65313
A94: =$B$92&B94 -> FY1395Herat Customs Office | B94: =B71 -> Herat Customs Office | C94: 1426 | D94: 1464 | E94: 1497 | F94: 1143 | G94: 1270 | H94: 1325 | I94: 1251 | J94: 1422 | K94: 1239 | L94: 1381 | M94: 1910 | N94: 1775 | O94: 17103 | Q94: =C94 -> 1426 | R94: =SUM($C94:D94) -> 2890 | S94: =SUM($C94:E94) -> 4387 | T94: =SUM($C94:F94) -> 5530 | U94: =SUM($C94:G94) -> 6800 | V94: =SUM($C94:H94) -> 8125 | W94: =SUM($C94:I94) -> 9376 | X94: =SUM($C94:J94) -> 10798 | Y94: =SUM($C94:K94) -> 12037 | Z94: =SUM($C94:L94) -> 13418 | AA94: =SUM($C94:M94) -> 15328 | AB94: =SUM($C94:N94) -> 17103
A95: FY1395Nangarhar Customs Office | B95: =B72 -> Nangarhar Customs Office | C95: 913 | D95: 1166 | E95: 1134 | F95: 851 | G95: 881 | H95: 965 | I95: 991 | J95: 1101 | K95: 1051 | L95: 1072 | M95: 1217 | N95: 992 | O95: 12334 | Q95: 913 | R95: =SUM($C95:D95) -> 2079 | S95: =SUM($C95:E95) -> 3213 | T95: =SUM($C95:F95) -> 4064 | U95: =SUM($C95:G95) -> 4945 | V95: =SUM($C95:H95) -> 5910 | W95: =SUM($C95:I95) -> 6901 | X95: =SUM($C95:J95) -> 8002 | Y95: =SUM($C95:K95) -> 9053 | Z95: =SUM($C95:L95) -> 10125 | AA95: =SUM($C95:M95) -> 11342 | AB95: =SUM($C95:N95) -> 12334
A96: FY1395Balkh Customs Office | B96: =B73 -> Balkh Customs Office | C96: 783 | D96: 842 | E96: 763 | F96: 1090 | G96: 815 | H96: 843 | I96: 727 | J96: 738 | K96: 583 | L96: 820 | M96: 1161 | N96: 1064 | O96: 10229 | Q96: 783 | R96: =SUM($C96:D96) -> 1625 | S96: =SUM($C96:E96) -> 2388 | T96: =SUM($C96:F96) -> 3478 | U96: =SUM($C96:G96) -> 4293 | V96: =SUM($C96:H96) -> 5136 | W96: =SUM($C96:I96) -> 5863 | X96: =SUM($C96:J96) -> 6601 | Y96: =SUM($C96:K96) -> 7184 | Z96: =SUM($C96:L96) -> 8004 | AA96: =SUM($C96:M96) -> 9165 | AB96: =SUM($C96:N96) -> 10229
A97: FY1395Kandahar Customs Office | B97: =B74 -> Kandahar Customs Office | C97: 454 | D97: 327 | E97: 465 | F97: 469 | G97: 450 | H97: 417 | I97: 450 | J97: 475 | K97: 271 | L97: 565 | M97: 451 | N97: 527 | O97: 5321 | Q97: 454 | R97: =SUM($C97:D97) -> 781 | S97: =SUM($C97:E97) -> 1246 | T97: =SUM($C97:F97) -> 1715 | U97: =SUM($C97:G97) -> 2165 | V97: =SUM($C97:H97) -> 2582 | W97: =SUM($C97:I97) -> 3032 | X97: =SUM($C97:J97) -> 3507 | Y97: =SUM($C97:K97) -> 3778 | Z97: =SUM($C97:L97) -> 4343 | AA97: =SUM($C97:M97) -> 4794 | AB97: =SUM($C97:N97) -> 5321
A98: FY1395Nimroz Customs Office | B98: =B75 -> Nimroz Customs Office | C98: 32 | D98: 26 | E98: 32 | F98: 18 | G98: 22 | H98: 26 | I98: 14 | J98: 32 | K98: 40 | L98: 34 | M98: 46 | N98: 34 | O98: 356 | Q98: 32 | R98: =SUM($C98:D98) -> 58 | S98: =SUM($C98:E98) -> 90 | T98: =SUM($C98:F98) -> 108 | U98: =SUM($C98:G98) -> 130 | V98: =SUM($C98:H98) -> 156 | W98: =SUM($C98:I98) -> 170 | X98: =SUM($C98:J98) -> 202 | Y98: =SUM($C98:K98) -> 242 | Z98: =SUM($C98:L98) -> 276 | AA98: =SUM($C98:M98) -> 322 | AB98: =SUM($C98:N98) -> 356
A99: FY1395Other Customs Offices | B99: Other Customs Offices | C99: 1655 | D99: 1619 | E99: 1800 | F99: 1546 | G99: 1993 | H99: 1659 | I99: 1100 | J99: 1532 | K99: 1531 | L99: 1476 | M99: 1281 | N99: 2778 | O99: 19970 | Q99: 1655 | R99: =SUM($C99:D99) -> 3274 | S99: =SUM($C99:E99) -> 5074 | T99: =SUM($C99:F99) -> 6620 | U99: =SUM($C99:G99) -> 8613 | V99: =SUM($C99:H99) -> 10272 | W99: =SUM($C99:I99) -> 11372 | X99: =SUM($C99:J99) -> 12904 | Y99: =SUM($C99:K99) -> 14435 | Z99: =SUM($C99:L99) -> 15911 | AA99: =SUM($C99:M99) -> 17192 | AB99: =SUM($C99:N99) -> 19970
A100: FY1395Afghanistan Revenue Department | B100: Afghanistan Revenue Department | C100: =SUM(C101:C105) -> 5187 | D100: =SUM(D101:D105) -> 4726 | E100: 5938 | F100: 7789 | G100: 6025 | H100: 18181 | I100: 6858 | J100: 8141 | K100: 4852 | L100: 5581 | M100: 7695 | N100: 7210 | O100: 88183 | Q100: 5187 | R100: =SUM($C100:D100) -> 9913 | S100: =SUM($C100:E100) -> 15851 | T100: =SUM($C100:F100) -> 23640 | U100: =SUM($C100:G100) -> 29665 | V100: =SUM($C100:H100) -> 47846 | W100: =SUM($C100:I100) -> 54704 | X100: =SUM($C100:J100) -> 62845 | Y100: =SUM($C100:K100) -> 67697 | Z100: =SUM($C100:L100) -> 73278 | AA100: =SUM($C100:M100) -> 80973 | AB100: =SUM($C100:N100) -> 88183
A101: FY1395Mustofiats | B101: Mustofiats | C101: 664 | D101: 1194 | E101: 1467 | F101: 1366 | G101: 1264 | H101: 1131 | I101: 1257 | J101: 1242 | K101: 1270 | L101: 1529 | M101: 1982 | N101: 1354 | O101: 15720 | Q101: 664 | R101: =SUM($C101:D101) -> 1858 | S101: =SUM($C101:E101) -> 3325 | T101: =SUM($C101:F101) -> 4691 | U101: =SUM($C101:G101) -> 5955 | V101: =SUM($C101:H101) -> 7086 | W101: =SUM($C101:I101) -> 8343 | X101: =SUM($C101:J101) -> 9585 | Y101: =SUM($C101:K101) -> 10855 | Z101: =SUM($C101:L101) -> 12384 | AA101: =SUM($C101:M101) -> 14366 | AB101: =SUM($C101:N101) -> 15720
A102: FY1395LTO | B102: LTO | C102: 2015 | D102: 780 | E102: 887 | F102: 2269 | G102: 1288 | H102: 964 | I102: 2129 | J102: 1628 | K102: 682 | L102: 2595 | M102: 1485 | N102: 1641 | O102: 18363 | Q102: 2015 | R102: =SUM($C102:D102) -> 2795 | S102: =SUM($C102:E102) -> 3682 | T102: =SUM($C102:F102) -> 5951 | U102: =SUM($C102:G102) -> 7239 | V102: =SUM($C102:H102) -> 8203 | W102: =SUM($C102:I102) -> 10332 | X102: =SUM($C102:J102) -> 11960 | Y102: =SUM($C102:K102) -> 12642 | Z102: =SUM($C102:L102) -> 15237 | AA102: =SUM($C102:M102) -> 16722 | AB102: =SUM($C102:N102) -> 18363
A103: FY1395MTO | B103: MTO | C103: 703 | D103: 789 | E103: 943 | F103: 1171 | G103: 939 | H103: 1028 | I103: 1223 | J103: 1181 | K103: 912 | L103: 1181 | M103: 1373 | N103: 1646 | O103: 13089 | Q103: 703 | R103: =SUM($C103:D103) -> 1492 | S103: =SUM($C103:E103) -> 2435 | T103: =SUM($C103:F103) -> 3606 | U103: =SUM($C103:G103) -> 4545 | V103: =SUM($C103:H103) -> 5573 | W103: =SUM($C103:I103) -> 6796 | X103: =SUM($C103:J103) -> 7977 | Y103: =SUM($C103:K103) -> 8889 | Z103: =SUM($C103:L103) -> 10070 | AA103: =SUM($C103:M103) -> 11443 | AB103: =SUM($C103:N103) -> 13089
A104: FY1395STO | B104: STO | C104: 160 | D104: 198 | E104: 369 | F104: 291 | G104: 181 | H104: 199 | I104: 158 | J104: 210 | K104: 186 | L104: 222 | M104: 269 | N104: 314 | O104: 2757 | Q104: 160 | R104: =SUM($C104:D104) -> 358 | S104: =SUM($C104:E104) -> 727 | T104: =SUM($C104:F104) -> 1018 | U104: =SUM($C104:G104) -> 1199 | V104: =SUM($C104:H104) -> 1398 | W104: =SUM($C104:I104) -> 1556 | X104: =SUM($C104:J104) -> 1766 | Y104: =SUM($C104:K104) -> 1952 | Z104: =SUM($C104:L104) -> 2174 | AA104: =SUM($C104:M104) -> 2443 | AB104: =SUM($C104:N104) -> 2757
A105: FY1395Ministries | B105: Ministries | C105: 1645 | D105: 1765 | E105: 2272 | F105: 2692 | G105: 2353 | H105: 14859 | I105: 2091 | J105: 3880 | K105: 1802 | L105: 54 | M105: 2586 | N105: 2255 | O105: 38254 | Q105: 1645 | R105: =SUM($C105:D105) -> 3410 | S105: =SUM($C105:E105) -> 5682 | T105: =SUM($C105:F105) -> 8374 | U105: =SUM($C105:G105) -> 10727 | V105: =SUM($C105:H105) -> 25586 | W105: =SUM($C105:I105) -> 27677 | X105: =SUM($C105:J105) -> 31557 | Y105: =SUM($C105:K105) -> 33359 | Z105: =SUM($C105:L105) -> 33413 | AA105: =SUM($C105:M105) -> 35999 | AB105: =SUM($C105:N105) -> 38254
A106: FY1395Total Revenues | B106: Total Revenues | C106: =C93+C100 -> 10450 | D106: =D93+D100 -> 10170 | E106: 11629 | F106: 12906 | G106: 11456 | H106: 23416 | I106: 11391 | J106: 13441 | K106: 9567 | L106: 10929 | M106: 13761 | N106: 14380 | O106: 153496 | Q106: 10450 | R106: =SUM($C106:D106) -> 20620 | S106: =SUM($C106:E106) -> 32249 | T106: =SUM($C106:F106) -> 45155 | U106: =SUM($C106:G106) -> 56611 | V106: =SUM($C106:H106) -> 80027 | W106: =SUM($C106:I106) -> 91418 | X106: =SUM($C106:J106) -> 104859 | Y106: =SUM($C106:K106) -> 114426 | Z106: =SUM($C106:L106) -> 125355 | AA106: =SUM($C106:M106) -> 139116 | AB106: =SUM($C106:N106) -> 153496
A107: FY1395Tax Revenues | B107: Tax Revenues | C107: 5377 | D107: 4608 | E107: 5346 | F107: 6443 | G107: 5152 | H107: 4866 | I107: 6078 | J107: 5862 | K107: 4275 | L107: 7013 | M107: 6383 | N107: 8095 | O107: =SUM(C107:N107) -> 69498 | Q107: 5377 | R107: =SUM($C107:D107) -> 9985 | S107: =SUM($C107:E107) -> 15331 | T107: =SUM($C107:F107) -> 21774 | U107: =SUM($C107:G107) -> 26926 | V107: =SUM($C107:H107) -> 31792 | W107: =SUM($C107:I107) -> 37870 | X107: =SUM($C107:J107) -> 43732 | Y107: =SUM($C107:K107) -> 48007 | Z107: =SUM($C107:L107) -> 55020 | AA107: =SUM($C107:M107) -> 61403 | AB107: =SUM($C107:N107) -> 69498
A108: FY1395Customs Revenues | B108: Customs Revenues | C108: 2512 | D108: 2547 | E108: 2706 | F108: 2520 | G108: 2869 | H108: 2647 | I108: 2222 | J108: 2635 | K108: 2424 | L108: 2731 | M108: 2958 | N108: 2495 | O108: 31266 | Q108: 2512 | R108: =SUM($C108:D108) -> 5059 | S108: =SUM($C108:E108) -> 7765 | T108: =SUM($C108:F108) -> 10285 | U108: =SUM($C108:G108) -> 13154 | V108: =SUM($C108:H108) -> 15801 | W108: =SUM($C108:I108) -> 18023 | X108: =SUM($C108:J108) -> 20658 | Y108: =SUM($C108:K108) -> 23082 | Z108: =SUM($C108:L108) -> 25813 | AA108: =SUM($C108:M108) -> 28771 | AB108: =SUM($C108:N108) -> 31266
A109: FY1395Non-tax Revenues | B109: Non-tax Revenues | C109: 2561 | D109: 3015 | E109: 3577 | F109: 3943 | G109: 3435 | H109: 15903 | I109: 3091 | J109: 4944 | K109: 2868 | L109: 1185 | M109: 4420 | N109: 3790 | O109: 52732 | Q109: 2561 | R109: =SUM($C109:D109) -> 5576 | S109: =SUM($C109:E109) -> 9153 | T109: =SUM($C109:F109) -> 13096 | U109: =SUM($C109:G109) -> 16531 | V109: =SUM($C109:H109) -> 32434 | W109: =SUM($C109:I109) -> 35525 | X109: =SUM($C109:J109) -> 40469 | Y109: =SUM($C109:K109) -> 43337 | Z109: =SUM($C109:L109) -> 44522 | AA109: =SUM($C109:M109) -> 48942 | AB109: =SUM($C109:N109) -> 52732
B110: Total Revenues | C110: =SUM(C107:C109) -> 10450 | D110: =SUM(D107:D109) -> 10170 | E110: 11629 | F110: 12906 | G110: 11456 | H110: 23416 | I110: 11391 | J110: 13441 | K110: 9567 | L110: 10929 | M110: 13761 | N110: 14380 | O110: 153496
B112: Check | C112: =C106-C110 -> 0 | D112: =D106-D110 -> 0 | E112: 0 | F112: 0 | G112: 0 | H112: 0 | I112: 0 | J112: 0 | K112: 0 | L112: 0 | M112: 0 | N112: 0
B114: Lists
A115: Collectorates | B115: Customs Department | C115: 2019 Target
B116: Herat Customs Office | C116: Previous Year performance
B117: Nangarhar Customs Office | C117: Previous 5 Years performance
B118: Balkh Customs Office | C118: Actual
B119: Kandahar Customs Office
B120: Nimroz Customs Office | C120: FY1395
B121: Other Customs Offices | C121: FY1396
B122: Afghanistan Revenue Department
B123: Mustofiats
B124: LTO
B125: MTO
B126: STO
B127: Ministries
B128: Total Revenues
A129: Tax Types | B129: Tax Revenues
B130: Customs Revenues
B131: Non-tax Revenues
B134: AFMIS
B135: RMIS
